Workbook

Sheet 玉溪市农业农村发展规划项目表
A1: 玉溪市“十四五”中药材种植产业发展规划重点建设项目表
M2: 单位：万元
A3: 序号 | B3: 项目名称 | C3: 项目性质 | D3: 建设 地点 | E3: 建设内容及规模 | F3: 建设 时间 | G3: 项目 总投资 | H3: “十四五”期间投资 | N3: 责任 单位
H4: 合计 | I4: 2021年 | J4: 2022年 | K4: 2023年 | L4: 2024年 | M4: 2025年
E5: 合计 | G5: =SUM(G6:G12) -> 156100 | H5: =SUM(H6:H12) -> 127100 | I5: 11200 | J5: 22400 | K5: 26700 | L5: 31400 | M5: 35400
A6: 1 | B6: 特色中药材基地建设项目 | C6: 新建 | D6: 华宁县 | E6: 种植中药材1.6万亩，其中：天门冬种植7000亩，三七6000亩，金铁锁800亩，黄精500亩，重楼200亩等。 | F6: 2021-2030 | G6: 38000 | H6: =SUM(I6:M6) -> 9000 | I6: 1000 | J6: 2000 | K6: 2000 | L6: 2000 | M6: 2000 | N6: 华宁永强中药材种植公司、云南稼禾丰茂公司
A7: 2 | B7: 铜厂乡中药材基地建设项目 | C7: 新建 | D7: 易门县 铜厂乡 | E7: 全乡规划种植中药材5000亩，其中，铜厂1100亩，米苴1550亩，股水650亩，西山1200亩、沙衣500亩，铜厂、沙衣主要种植黄精、重楼，西山、股水重要种植云木香、附子、白芨，米苴主要种植三七；万宝厂建设中药材加工厂一个1800平方米。 | F7: 2021-2022 | G7: 5000 | H7: =SUM(I7:M7) -> 5000 | I7: 2000 | J7: 3000 | K7: 0 | L7: 0 | M7: 0 | N7: 易门县农业农村局
A8: 3 | B8: 新平县哀牢中草药基地建设项目 | C8: 新建 | D8: 新平县 | E8: 建成滇黄精、滇重楼、滇龙胆等药用植物种质资源圃，保育民族药用植物300种、种质资源3000份，繁育区域重要中药材良种。建设3.7万亩以上良种良法配套应用的中药材规范化种植基地。 | F8: 2021-2025 | G8: 25800 | H8: =SUM(I8:M8) -> 25800 | I8: 1800 | J8: 6000 | K8: 6000 | L8: 6000 | M8: 6000 | N8: 新平县农业农村局
A9: 4 | B9: 新平县有机香料基地建设项目 | C9: 新建 | D9: 新平县 者竜乡 老厂乡 水塘镇 | E9: 在哀牢山区发展种植以草果、八角、花椒、香茅草、砂仁等为主的香料，规划建设面积2.5万亩，建设管网30千米，农耕道路100千米。 | F9: 2021-2025 | G9: 17500 | H9: =SUM(I9:M9) -> 17500 | I9: 3500 | J9: 3500 | K9: 3500 | L9: 3500 | M9: 3500 | N9: 新平县农业农村局
A10: 5 | B10: 元江县中药材种植基地建设项目 | C10: 新建 | D10: 元江县 | E10: 种植金银花、黄精、重楼、白芨、芦荟等中药材15000亩，配套水、路等基础设施和初加工厂房建设。 | F10: 2021-2025 | G10: 15000 | H10: =SUM(I10:M10) -> 15000 | I10: 2000 | J10: 2000 | K10: 4000 | L10: 4000 | M10: 3000 | N10: 元江县农业农村局
A11: 6 | B11: 元江县芦荟种植及深加工建设项目 | C11: 新建 | D11: 元江县 | E11: 实施芦荟新品种试验示范，加大对芦荟种植科研攻关，大力开发芦荟终端产品，延伸芦荟产业链。 | F11: 2022-2025 | G11: 50000 | H11: 50000 | I11: 0 | J11: 5000 | K11: 10000 | L11: 15000 | M11: 20000 | N11: 云南万绿生物公司
A12: 7 | B12: 玉溪中药材现代农业产业体系建设项目 | C12: 新建 | D12: 9县（市区） | E12: 中药材资源保护及良种繁育体系建设：建设中药材种质资源圃100亩，收集保护种质资源360种3000份，建设100亩以上道地药材良种繁育基地8个，年产优质种苗2亿苗；标准化种植示范基地建设：10个8万亩，其中三七2.0万亩，芦荟1.2万亩，天门冬1.5万亩，滇重楼0.6万亩，滇黄精0.8万亩，露水草0.8万亩，滇龙胆0.6万亩，天麻0.5万亩；中药材品牌打造：以“元江芦荟、华宁天门冬、新平哀牢山滇重楼滇黄精”四大中药材为主，进行品牌地理标识认证及有机认证；构建中药材技术服务体系：由玉溪市农科院牵头，依托云南农业大学、云南省农科院、玉溪师范学院等高等科研院校建设培养一批中药材种植加工的专业人才。 | F12: 2021-2025 | G12: 4800 | H12: =SUM(I12:M12) -> 4800 | I12: 900 | J12: 900 | K12: 1200 | L12: 900 | M12: 900 | N12: 玉溪市农业农村局

Sheet 5.一级项目储备库项目资金分类 (11.12)
A1: 新平彝族傣族自治县“十四五”规划建设项目表（县直单位）
A2: 编制单位：新平县发展和改革局 | F2: 编制时间：2020年7月28日 | H2: 填表联系人及电话：方涛 7011150 | M2: 联系领导：李睿 | P2: 单位：万元
A3: 序号 | B3: 行业分类 | C3: 项目名称 | D3: 建设性质 | E3: 建设地点 | F3: 建设内容及规模 | G3: 建设时间 | H3: 项目总投资 | I3: 其中：投资情况 | P3: 项目业主 | Q3: 备注 | R3: 十大行业 | S3: 新型城镇化 | T3: 新型基础设施 | U3: 一重 | V3: 项目建设资金争取意向 | AC3: 重点实施建设项目
I4: 到2020年累计完成投资 | J4: “十四五”期间规划投资 | K4: “十四五”年度投资建设规划 | V4: 专项资金 | W4: 中央预算内 | X4: 地方政府专项债券 | Y4: 地方政府自筹或配套 | Z4: PPP方式 | AA4: 企业自筹 | AB4: 招商引商
K5: 2021年 | L5: 2022年 | M5: 2023年 | N5: 2024年 | O5: 2025年
A6: ① | B6: ② | C6: ③ | D6: ④ | E6: ⑤ | F6: ⑥ | G6: ⑦ | H6: ⑧ | I6: ⑨ | J6: ⑩ | K6: ⑪ | L6: ⑫ | M6: ⑬ | N6: ⑭ | O6: ⑮ | P6: ⑯ | Q6: ⑰
A7: 合计 | E7: =E8+E63+E80+E82+E106+E196+E208+E245+E272+E285+E450+E466+E515+E551+E580+E627+E651+E662+E680+E683+E685+E736+E740+E742+E744+E746+E750+E760+E767+E769+E773+E775+E780 -> 742 | H7: 18272898 | I7: 802390 | J7: 16040448 | K7: 2534876 | L7: 3468673 | M7: 4313124 | N7: 3052260 | O7: 2671515
A8: 一 | C8: 县农业农村局 | E8: =COUNT(A9:A62) -> 54 | H8: =SUM(H9:H62) -> 1035924 | I8: 63964 | J8: 971960 | K8: 241176 | L8: 268054 | M8: 168326 | N8: 155398 | O8: 139006
A9: 1 | B9: 农林牧渔 | C9: 新平县柑桔绿色生产技术应用基地建设 | D9: 改建 | E9: 新平县 | F9: 在现有连片100亩以上桔园内改造提升灌水、施肥、施药设施，建设5万亩以上水肥一体化、药肥一体化管网设施。 选择连片100亩以上的山地桔园，建设覆盖3万亩山地果园的双轨运输轨道。 | G9: 2021.3-2025.12 | H9: =I9+J9 -> 22000 | I9: 0 | J9: =K9+L9+M9+N9+O9 -> 22000 | K9: 4400 | L9: 4400 | M9: 4400 | N9: 4400 | O9: 4400 | P9: 新平县农业农村局 | R9: 农业 | S9: 否 | T9: 否 | U9: 否 | V9: 是 | AC9: Ζ
A10: 2 | B10: 农林牧渔 | C10: 新平县芒果高标准基地示范园建设项目 | D10: 新建 | E10: 新平县 | F10: 规划面积2万亩，配套建设节水管网、机耕路、交易市场。 | G10: 2020.6-2025.12 | H10: 9200 | I10: 200 | J10: 9000 | K10: 1800 | L10: 1800 | M10: 1800 | N10: 1800 | O10: 1800 | P10: 新平县农业农村局 | R10: 农业 | S10: 否 | T10: 否 | U10: 否 | V10: 是
A11: 3 | B11: 农林牧渔 | C11: 新平县特色水果产业基地建设项目 | D11: 新建 | E11: 新平县 | F11: 实施香蕉、软籽石榴、牛油果、蓝莓、西番莲、人参果、火龙果、五丫梨、桃等特色水果产业基地建设。规划总面积3万亩。配套建设育苗基地600亩，果园道路86千米，引水管道120千米，田间灌溉管网7000千米，配套建设蓄水设施。 | G11: 2020.1-2025.12 | H11: 27900 | I11: 2900 | J11: 25000 | K11: 5000 | L11: 5000 | M11: 5000 | N11: 5000 | O11: 5000 | P11: 新平县农业农村局 | R11: 农业 | S11: 否 | T11: 否 | U11: 否 | V11: 是 | AA11: 是
A12: 4 | B12: 农林牧渔 | C12: 新平县德康生猪养殖建设项目 | D12: 其他 | E12: 各乡镇 | F12: 建设年出栏肉猪1000头以上的家庭农场500个单元，建设15000头父母代种猪场1个，配套建设存栏200头公猪站1个；建设年出栏肉猪20000头以上的规模化育肥场10个，建设为德康生猪养殖家庭农场、父母代种猪场提供人工授精精液的种公猪站1个。 | G12: 2018.3-2025.12 | H12: 160504 | I12: 52114 | J12: 108390 | K12: 25000 | L12: 28200 | M12: 28190 | N12: 13000 | O12: 14000 | P12: 新平县农业农村局 | R12: 农业 | S12: 否 | T12: 否 | U12: 否 | V12: 是 | W12: 是 | AA12: 是 | AC12: Ζ
A13: 5 | B13: 农林牧渔 | C13: 新平县肉牛养殖基地建设项目 | D13: 其他 | E13: 新平县 | F13: 引入良种，配套饲料基地建设，集约化育肥，年出栏肉牛10000头以上。 | G13: 2021.1-2025.12 | H13: 2500 | J13: 2500 | K13: 500 | L13: 500 | M13: 500 | N13: 500 | O13: 500 | P13: 新平县农业农村局 | R13: 农业 | S13: 否 | T13: 否 | U13: 否 | V13: 是 | W13: 是 | AA13: 是 | AC13: Ζ
A14: 6 | B14: 农林牧渔 | C14: 新平县山羊养殖基地建设项目 | D14: 其他 | E14: 新平县 | F14: 引入良种，配套饲料基地建设，集约化育肥，年出栏山羊15000只以上。 | G14: 2021.1-2025.12 | H14: 2500 | J14: 2500 | K14: 500 | L14: 500 | M14: 500 | N14: 500 | O14: 500 | P14: 新平县农业农村局 | R14: 农业 | S14: 否 | T14: 否 | U14: 否 | V14: 是 | W14: 是 | AA14: 是 | AC14: Ζ
A15: 7 | B15: 农林牧渔 | C15: 新平县禽类养殖基地建设项目 | D15: 其他 | E15: 新平县 | F15: 建立本土良种繁育场，发展林下土禽养殖，设计规模100万羽； 发展规模化特色养殖，建设规模10万羽。 | G15: 2020.4-2025.12 | H15: 3080 | I15: 80 | J15: 3000 | K15: 600 | L15: 600 | M15: 600 | N15: 600 | O15: 600 | P15: 新平县农业农村局 | R15: 农业 | S15: 否 | T15: 否 | U15: 否 | V15: 是 | W15: 是 | AA15: 是 | AC15: Ζ
A16: 8 | B16: 农林牧渔 | C16: 新平县生态蔬菜生产基地建设项目 | D16: 其他 | E16: 新平县 | F16: 建设蔬菜生产基地6万亩。重点以节水灌溉水池、喷滴灌系统、沟渠、田间道路等配套建设。 发展刺脑包、香椿、茶叶菜、野花等林下野菜，规划建设2万亩。 | G16: 2020.1-2025.12 | H16: 12000 | I16: 2000 | J16: 10000 | K16: 2000 | L16: 2000 | M16: 2000 | N16: 2000 | O16: 2000 | P16: 新平县农业农村局 | R16: 农业 | S16: 否 | T16: 否 | U16: 否 | V16: 是 | W16: 是 | AA16: 是 | AC16: Ζ
A17: 9 | B17: 农林牧渔 | C17: 新平县林下魔芋种植基地建设项目 | D17: 新建 | E17: 新平县 | F17: 利用核桃林地发展林下魔芋种植，规划种植2.5万亩。 | G17: 2021.1-2025.12 | H17: 11000 | J17: 11000 | K17: 2200 | L17: 2200 | M17: 2200 | N17: 2200 | O17: 2200 | P17: 新平县农业农村局 | R17: 农业 | S17: 否 | T17: 否 | U17: 否 | V17: 是 | AA17: 是
A18: 10 | B18: 农林牧渔 | C18: 新平县哀牢中草药基地建设项目 | D18: 其他 | E18: 新平县 | F18: 建成滇黄精、滇重楼、滇龙胆等药用植物种质资源圃，保育民族药用植物300种、种质资源3000份，繁育区域重要中药材良种。 建设3.7万亩以上良种良法配套应用的中药材规范化种植基地。 | G18: 2021.1-2025.12 | H18: 26200 | I18: 400 | J18: 25800 | K18: 1800 | L18: 6000 | M18: 6000 | N18: 6000 | O18: 6000 | P18: 新平县农业农村局 | R18: 农业 | S18: 否 | T18: 否 | U18: 否 | V18: 是 | AA18: 是 | AC18: Ζ
A19: 11 | B19: 农林牧渔 | C19: 新平县甘蔗高产高效高标准农田建设项目 | D19: 新建 | E19: 新平县 | F19: 建设新品种引进试验示范基地250亩。建设新品种筛选、繁育基地建设1000亩。品种改良3000亩。 推广甘蔗全膜覆盖轻简栽培技术50000亩。推广蔗地整地、开沟、理墒机械化应用50000亩。 | G19: 2021.1-2025.12 | H19: 4200 | I19: 0 | J19: 4200 | K19: 835 | L19: 800 | M19: 830 | N19: 845 | O19: 890 | P19: 新平县农业农村局 | R19: 农业 | S19: 否 | T19: 否 | U19: 否 | V19: 是 | W19: 是 | X19: 是 | Y19: 是 | AC19: Ζ
A20: 12 | B20: 农林牧渔 | C20: 新平县万亩生态有机茶园改造工程项目 | D20: 改建 | E20: 者竜乡、平掌乡、水塘镇 | F20: 对万亩茶叶进行有机标准化改造，嫁接优质茶叶10000亩，铺设1.6米宽的8000米道路，发展有机茶园2.4万亩。 | G20: 2021.1-2025.12 | H20: 12500 | J20: 12500 | K20: 2500 | L20: 2500 | M20: 2500 | N20: 2500 | O20: 2500 | P20: 新平县农业农村局 | R20: 农业 | S20: 否 | T20: 否 | U20: 否 | V20: 是 | W20: 是 | Y20: 是 | AA20: 是 | AC20: Ζ
A21: 13 | B21: 农林牧渔 | C21: 新平县有机香料基地建设项目 | D21: 新建 | E21: 者竜乡、老厂乡、水塘镇 | F21: 在哀牢山区发展种植以草果、八角、花椒、香茅草等为主的香料，规划建设面积25000亩，建设管网30千米，农耕道路100千米。 | G21: 2021.1-2025.12 | H21: 17500 | J21: 17500 | K21: 3500 | L21: 3500 | M21: 3500 | N21: 3500 | O21: 3500 | P21: 新平县农业农村局 | R21: 农业 | S21: 否 | T21: 否 | U21: 否 | V21: 是 | W21: 是 | Y21: 是 | AC21: Ζ
A22: 14 | B22: 农林牧渔 | C22: 新平县食用菌类生产基地建设项目 | D22: 新建 | E22: 新平县 | F22: 规划种植人工菌2.3万亩， | G22: 2021.1-2025.12 | H22: 8000 | J22: 8000 | K22: 1400 | L22: 1400 | M22: 1400 | N22: 1400 | O22: 2400 | P22: 新平县农业农村局 | R22: 农业 | S22: 否 | T22: 否 | U22: 否 | V22: 是 | AA22: 是 | AB22: 是
A23: 15 | B23: 农林牧渔 | C23: 新平县生态红米生产基地建设项目 | D23: 新建 | E23: 建兴乡、新化乡 | F23: 规划种植生态红米12000亩， | G23: 2021.1-2025.12 | H23: 6000 | J23: 6000 | K23: 1200 | L23: 1200 | M23: 1200 | N23: 1200 | O23: 1200 | P23: 新平县农业农村局 | R23: 农业 | S23: 否 | T23: 否 | U23: 否 | V23: 是 | AA23: 是 | AB23: 是
A24: 16 | B24: 农林牧渔 | C24: 新平县高粱种植示范区建设项目 | D24: 新建 | E24: 新平县 | F24: 建设糯高粱标准化示范基地10000亩（每年2000亩）。 | G24: 2022.1-2023.12 | H24: 1500 | J24: 1500 | K24: 300 | L24: 300 | M24: 300 | N24: 300 | O24: 300 | P24: 新平县农业农村局 | R24: 农业 | S24: 否 | T24: 否 | U24: 否 | V24: 是 | AA24: 是 | AB24: 是
A25: 17 | B25: 农林牧渔 | C25: 新平县观赏鱼－锦鲤规模化养殖项目 | D25: 新建 | E25: 漠沙镇 | F25: 租地500亩，建鱼池400亩，引进种鱼，建孵化育苗车间 | G25: 2021.2-2025.6 | H25: 5000 | J25: 5000 | K25: 3500 | L25: 800 | M25: 500 | N25: 100 | O25: 100 | P25: 新平县农业农村局 | R25: 农业 | S25: 否 | T25: 否 | U25: 否 | V25: 是 | AA25: 是 | AB25: 是
A26: 18 | B26: 农林牧渔 | C26: 新平县稻田高效生态养殖项目 | D26: 新建 | E26: 新平县 | F26: 鱼凼养殖1250亩，每年250亩，沟溜养殖3750亩，每年750亩。 | G26: 2021.2-2025.9 | H26: 250 | J26: 250 | K26: 50 | L26: 50 | M26: 50 | N26: 50 | O26: 50 | P26: 新平县农业农村局 | R26: 农业 | S26: 否 | T26: 否 | U26: 否 | V26: 是 | AA26: 是 | AB26: 是
A27: 19 | B27: 农林牧渔 | C27: 新平县畜禽屠宰场建设项目 | D27: 新建 | E27: 新平县 | F27: 建设年屠宰100万头的生猪屠宰场1座，建设年屠宰500万只的家禽屠宰场1座。 | G27: 2021.3-2025.12 | H27: 32500 | I27: 0 | J27: 32500 | K27: 1000 | L27: 1500 | M27: 0 | N27: 5000 | O27: 25000 | P27: 新平县农业农村局 | R27: 农业 | S27: 否 | T27: 否 | U27: 否 | V27: 是 | W27: 是 | X27: 是 | Y27: 是 | AB27: 是 | AC27: Ζ
A28: 20 | B28: 农林牧渔 | C28: 亚洲·新平柑桔产业孵化园建设项目 | D28: 新建 | E28: 新平县戛洒镇 | F28: 项目占地550亩。项目建设内容为： 1.亚洲·新平柑桔技术研发中心； 2.亚洲·新平柑桔技术推广中心； 3.亚洲·新平柑桔种苗繁育中心； 4.亚洲·新平产品营销中心； 5.亚洲·新平柑桔产品质检中心； 6.亚洲·新平柑桔智慧云中心； 7.建设10万平方米标准化厂房、5万立方米冷库等园区基础设施配套项目。 | G28: 2021.01-2022.12 | H28: 50000 | J28: 50000 | K28: 37000 | L28: 13000 | P28: 新平县农业农村局 | R28: 农业 | S28: 否 | T28: 否 | U28: 否 | V28: 是 | Y28: 是 | AC28: Ζ
A29: 21 | B29: 农林牧渔 | C29: 新平县柑桔“三品一标”生产基地和区域公共品牌建设工程 | D29: 新建 | E29: 新平县戛洒镇 | F29: 全面推进新平柑桔品种、品质、品牌和标志性产业提档升级，果园道路硬化工程80公里，搭建新平柑桔区域公共品牌全媒体推介平台 | G29: 2021.01-2022.12 | H29: 11500 | J29: 11500 | K29: 2000 | L29: 9500 | P29: 新平县农业农村局 | R29: 农业 | S29: 否 | T29: 否 | U29: 否 | V29: 是
A30: 22 | B30: 农林牧渔 | C30: 新平县柑桔初加工能力提升项目 | D30: 新建 | E30: 新平县戛洒镇 | F30: 建设（含改造提升）选果生产线23条 | G30: 2021.01- 2022.12 | H30: 18400 | J30: 18400 | K30: 4000 | L30: 14400 | P30: 新平县农业农村局 | R30: 农业 | S30: 否 | T30: 否 | U30: 否 | AA30: 是 | AB30: 是 | AC30: Ζ
A31: 23 | B31: 农林牧渔 | C31: 新平县普柑茶生产线建设项目 | D31: 新建 | E31: 新平县戛洒镇 | F31: 目占地10亩，主体厂房2000平方米，购置普柑挖肉机、普柑茶烘干机、环保水处理等设备62台（套）。年产普柑茶10000吨。 | G31: 2021.01- 2022.12 | H31: 10000 | J31: 10000 | K31: 2000 | L31: 8000 | P31: 新平县农业农村局 | R31: 农业 | S31: 否 | T31: 否 | U31: 否 | AA31: 是 | AB31: 是 | AC31: Ζ
A32: 24 | B32: 农林牧渔 | C32: 新平县柑桔精深加工项目建设项目 | D32: 新建 | E32: 新平县戛洒镇 | F32: 年处理鲜果6万吨的桔皮精油生产线、建设年处理鲜果6万吨NFC果汁生产线、柑桔籽油生产线、建设年产5万吨的饲料加工厂。 | G32: 2021.01- 2022.12 | H32: 25000 | J32: 25000 | K32: 5000 | L32: 20000 | P32: 新平县农业农村局 | R32: 农业 | S32: 否 | T32: 否 | U32: 否 | AA32: 是 | AB32: 是 | AC32: Ζ
A33: 25 | B33: 农林牧渔 | C33: 新平县戛洒美丽乡村建设项目 | D33: 新建 | E33: 新平县戛洒镇 | F33: 1.在曼哈、平寨、南蚌、耀南等村（社区）打造100个美丽乡村人居环境整治示范点，实施村庄绿化、亮化、美化工程；建设活动场地和体育设施、公益房、公厕、道路硬化、污水处理、垃圾清运等设施设备；开展林果产业发展，村民技能培训等项目。 2.实施东瓜林、耀南、平田、发启、达哈、磨刀、新寨、大田、腊戛底等17个村委会业务用房修缮，并建立村史馆。 | G33: 2021.01- 2022.12 | H33: 20000 | J33: 20000 | K33: 10000 | L33: 10000 | P33: 新平县农业农村局 | R33: 农业 | S33: 是 | T33: 否 | U33: 否 | V33: 是 | Y33: 是
A34: 26 | B34: 农林牧渔 | C34: 新平县戛洒镇传统村落提升改造项目 | D34: 新建 | E34: 新平县戛洒镇 | F34: 1.实施土锅寨、曼秀、曼湾、速都、曼李、旋涡、马家寨、大平掌、南薅、南碱10个传统村落提升改造项目。重点开展传统民居外观改造提升和内部宜居功能提升，纺织、刺绣、土陶等传统手工艺传承及产业化开发，花腰傣传统舞蹈、节庆、农耕技艺等民俗文化传承、展示及旅游体验； 2.建设特色产品线上线下综合营销平台； | G34: 2021.01- 2022.12 | H34: 20000 | J34: 20000 | K34: 5000 | L34: 15000 | P34: 新平县农业农村局 | R34: 农业 | S34: 否 | T34: 否 | U34: 否 | V34: 是 | Y34: 是 | AC34: Ζ
A35: 27 | B35: 农林牧渔 | C35: 新平县戛洒镇柑桔博物馆 | D35: 新建 | E35: 新平县戛洒镇 | F35: 建设集柑桔品种科普展示、种植科技展示、加工技艺展示、衍生品展示、数据展示、纪念品销售、管理用房、停车场、充电桩等。 | G35: 2021.01- 2022.12 | H35: 5000 | J35: 5000 | K35: 2000 | L35: 3000 | P35: 新平县农业农村局 | R35: 农业 | S35: 否 | T35: 否 | U35: 否 | V35: 是 | Y35: 是 | AC35: Ζ
A36: 28 | B36: 农林牧渔 | C36: 新平县戛洒镇百家千户休闲农业产业联盟提升工程 | D36: 新建 | E36: 新平县戛洒镇 | F36: 实施100家以民宿、农庄、特色农产品工坊为主的设施设备、服务、生产能力提升工程。每1家民宿、农庄、特色农产品工坊至少与10户农户建立稳定的农产品生产、购销或双方认可的利益分配和链结机制，带动1000户以上农户深度参与农旅融合发展。 | G36: 2021.01- 2022.12 | H36: 10000 | J36: 10000 | K36: 5000 | L36: 5000 | P36: 新平县农业农村局 | R36: 农业 | S36: 否 | T36: 否 | U36: 否 | AB36: 是
A37: 29 | B37: 农林牧渔 | C37: 新平县红河流域农村污水垃圾处理设施建设项目 | D37: 新建 | E37: 新平县戛洒镇 | F37: 实施戛洒、水塘、漠沙柑桔产业园农村污水收集管网及污水处理设施建设、垃圾及污水处理设施运营管理、涉及44个行政村、1054个自然村、受益人口96469，新增农村污水日处理能力5700立方米，年收集处理垃圾4.23万吨。 | G37: 2021.01- 2022.12 | H37: 6000 | J37: 6000 | K37: 3000 | L37: 3000 | P37: 新平县农业农村局 | R37: 公共设施管理业 | S37: 是 | T37: 否 | U37: 否 | V37: 是 | X37: 是 | Y37: 是 | AC37: Ζ
A38: 30 | B38: 制造业 | C38: 新平县晶凯生物科技有限公司年产15万吨有机肥项目 | D38: 新建 | E38: 新平县戛洒镇 | F38: 在新平县戛洒镇新寨村委会棉花河建设厂区规划面积62亩的有机肥生产线。建设三条独立生产线， 年产15万吨生物肥料。其中生物有机肥5万吨 有机无机肥5万吨 复合肥5万吨。 | G38: 2021.01-2022.12 | H38: 10000 | J38: 10000 | K38: 4000 | L38: 6000 | P38: 新平县农业农村局 | R38: 工业 | S38: 否 | T38: 否 | U38: 否 | AA38: 是 | AC38: Ζ
A39: 31 | B39: 农林牧渔 | C39: 新平县农产品初加工能力提升项目 | D39: 其他 | E39: 新平县 | F39: 通过加装近红外及光电品质分选功能模块等技术手段，在项目区建设（含改造提升）6通道的柑橘选果生产线23条，带动项目区果品分选从初级的按大小、重量分选向按内在品质分选跨越。每条生产线投资800万元。 建设果蔬预冷保鲜冷库10万立方米，每立方米投资650元。配套建设货运周转场地及附设业务用房。 扩大茶叶初制加工产能，完成1000吨生态茶鲜叶和50吨有机茶鲜叶的初制加工。 | G39: 2021.1-2025.12 | H39: =I39+J39 -> 24000 | I39: 6000 | J39: =K39+L39+M39+N39+O39 -> 18000 | K39: 3600 | L39: 3600 | M39: 3600 | N39: 3600 | O39: 3600 | P39: 新平县农业农村局 | R39: 农业 | S39: 否 | T39: 否 | U39: 否 | AA39: 是 | AB39: 是
A40: 32 | B40: 农林牧渔 | C40: 新平县柑桔深加工能力建设项目 | D40: 其他 | E40: 新平县 | F40: 继续建设普柑茶生产线。项目占地10亩，主体厂房2000平方米，购置普柑挖肉机、普柑茶烘干机、环保水处理等设备62台（套）。年产普柑茶10000吨。 新建NFC果汁生产线。项目占地30亩，建设机电一体化、多功能模块化、自动化、标准化的NFC果汁生产线。年处理鲜橙4万吨，年产果汁2万吨。 | G40: 2021.03-2025.12 | H40: 11000 | J40: 11000 | K40: 2200 | L40: 2200 | M40: 2200 | N40: 2200 | O40: 2200 | P40: 新平县农业农村局 | R40: 农业 | S40: 否 | T40: 否 | U40: 否 | AA40: 是 | AB40: 是
A41: 33 | B41: 农林牧渔 | C41: 新平县优质杜仲茶精深加工项目 | D41: 扩建 | E41: 平掌乡 | F41: 扩大杜仲种植基地到1000亩。扩建1000平方米，实现杜仲茶精深加工年产100吨。 | G41: 2021.3-2024.12 | H41: 1200 | J41: 1200 | K41: 600 | L41: 200 | M41: 200 | N41: 200 | P41: 新平县农业农村局 | R41: 农业 | S41: 否 | T41: 否 | U41: 否 | AA41: 是 | AB41: 是
A42: 34 | B42: 农林牧渔 | C42: 新平县现代农业产业园建设项目 | D42: 新建 | E42: 平甸乡、戛洒镇 | F42: 规划面积10000亩，建成旅游、养生、农场体验、休闲度假、科技示范、创意农业示范、基础工程及景观区。辐射带动周边地区旅游住宿餐饮业的发展，预计实现产值12029.14万元。 | G42: 2021.1-2025.12 | H42: 33783 | I42: 0 | J42: 33783 | K42: 200 | L42: 100 | M42: 1000 | N42: 15600 | O42: 16883 | P42: 新平县农业农村局 | R42: 农业 | S42: 否 | T42: 否 | U42: 否 | V42: 是 | AA42: 是 | AB42: 是 | AC42: Ζ
A43: 35 | B43: 农林牧渔 | C43: 新平县现代农业绿色有机产业园 | D43: 新建 | E43: 新平县 | F43: 建设1.2万亩现代农业综合示范园。其中：建设16万平方米标准化养殖圈舍，年出栏肥猪20万头；建设绿色柑橘基地1万亩，建设有机茶基地1000亩；配套建设户外营地观光园、农旅文化产业园。 | G43: 2020.6-2025.12 | H43: 166200 | I43: 200 | J43: 166000 | K43: 30000 | L43: 40000 | M43: 50000 | N43: 25000 | O43: 21000 | P43: 新平县农业农村局 | R43: 农业 | S43: 否 | T43: 否 | U43: 否 | V43: 是 | AA43: 是 | AB43: 是
A44: 36 | B44: 农林牧渔 | C44: 新平县高标准农田建设项目 | D44: 新建 | E44: 各乡镇 | F44: 建设高标准农田30万亩，每亩投资1500元，实施土地平整、沟渠、农耕道路、水池、管道建设等。 | G44: 2021.1-2025.12 | H44: 45000 | J44: 45000 | K44: 9000 | L44: 9000 | M44: 9000 | N44: 9000 | O44: 9000 | P44: 新平县农业农村局 | R44: 农业 | S44: 否 | T44: 否 | U44: 否 | V44: 是 | W44: 是 | X44: 是 | Y44: 是 | AC44: Ζ
A45: 37 | B45: 农林牧渔 | C45: 新平县粮食作物绿色高产高效种植项目 | D45: 新建 | E45: 新平县 | F45: 规划种植示范区主要粮食作物10万亩。 | G45: 2021.1-2025.12 | H45: 3000 | J45: 3000 | K45: 600 | L45: 600 | M45: 600 | N45: 600 | O45: 600 | P45: 新平县农业农村局 | R45: 农业 | S45: 否 | T45: 否 | U45: 否 | V45: 是 | Y45: 是 | AC45: Ζ
A46: 38 | B46: 农林牧渔 | C46: 新平县饲料加工厂建设项目 | D46: 新建 | E46: 桂山街道办 | F46: 建设年产30万吨的饲料加工厂1座 | G46: 2021.1-2025.12 | H46: 10000 | J46: 10000 | N46: 9000 | O46: 1000 | P46: 新平县农业农村局 | R46: 农业 | S46: 否 | T46: 否 | U46: 否 | AB46: 是 | AC46: Ζ
A47: 39 | B47: 农林牧渔 | C47: 新平县畜禽运输车辆洗消中心建设项目 | D47: 新建 | E47: 新平县 | F47: 建设对生猪运输车辆等清洗消毒的洗消中心4个 | G47: 2021.3-2025.12 | H47: 4000 | J47: 4000 | K47: 2000 | L47: 1500 | M47: 500 | P47: 新平县农业农村局 | R47: 农业 | S47: 否 | T47: 否 | U47: 否 | AB47: 是
A48: 40 | B48: 农林牧渔 | C48: 新平县高素质农民科技培训项目 | D48: 其他 | E48: 新平县 | F48: 培训高素质农民800人以上，开展农民科技培训3万人次以上。建设项目65个，重点打造蔬菜种植合作社15个。 | G48: 2020.1-2025.12 | H48: 2095 | I48: 70 | J48: 2025 | K48: 405 | L48: 405 | M48: 405 | N48: 405 | O48: 405 | P48: 新平县农业农村局 | R48: 农业 | S48: 否 | T48: 否 | U48: 否 | V48: 是 | Y48: 是
A49: 41 | B49: 农林牧渔 | C49: 新平县农产品质量安全监测系统建设项目 | D49: 新建 | E49: 新平县 | F49: 对《新平县农产品质量安全监管目录》内的农产品（蔬菜水果）生产企业生产的产品力争做到100％全覆盖。十四五期间计划开展主要农产品农药残留定量检测3000批次、快速检测14000批次，建设质量安全体系建设15个；并开展农产品质量安全绿色食品认证20个。 | G49: 2021.1-2025.12 | H49: 790 | J49: 790 | K49: 182 | L49: 153 | M49: 158 | N49: 128 | O49: 169 | P49: 新平县农业农村局 | R49: 农业 | S49: 是 | T49: 是 | U49: 否 | V49: 是 | Y49: 是 | AC49: Ζ
A50: 42 | B50: 农林牧渔 | C50: 新平县蔬菜工厂化育苗基地建设项目 | D50: 新建 | E50: 新平县 | F50: 建设工厂化育苗基地200亩。 | G50: 2021.8-2025.12 | H50: 800 | J50: 800 | K50: 160 | L50: 160 | M50: 160 | N50: 160 | O50: 160 | P50: 新平县农业农村局 | R50: 农业 | S50: 是 | T50: 否 | U50: 否 | AB50: 是
A51: 43 | B51: 农林牧渔 | C51: 新平县重要中药材种植技术标准构建及应用项目 | D51: 新建 | E51: 新平县 | F51: 建立露水草、滇黄精、滇重楼、芦荟、滇龙胆等重要中药材种子种苗质量标准、规范化种植技术规程等质量标准，并规范化种植示范基地。 | G51: 2025.1-2025.12 | H51: 100 | J51: 100 | O51: 100 | P51: 新平县农业农村局 | R51: 农业 | S51: 否 | T51: 否 | U51: 否 | V51: 是 | Y51: 是
A52: 44 | B52: 农林牧渔 | C52: 新平县柑桔产业产学研成果转化能力提升项目 | D52: 其他 | E52: 新平县 | F52: 深化与中柑所等国内一流科研单位的产学研合作，针对制约新平柑桔产业发展的精准施肥、绿色防控、产品品控等重点难点问题进行攻关，形成与新平环境资源承载力相适应的生产技术模式。 新建新平恒冠泰达职业技能培训学校。项目占地16857.3平方米，总建筑面积8713.89平方米，新建4层框架结构实训楼和学员住宿楼，活动室2间、厨房餐厅1间、操场等配套教学设施2套。 | G52: 2021.02-2025.03 | H52: 6350 | J52: 6350 | K52: 1270 | L52: 1270 | M52: 1270 | N52: 1270 | O52: 1270 | P52: 新平县农业农村局 | R52: 农业 | S52: 否 | T52: 否 | U52: 否 | V52: 是 | AB52: 是
A53: 45 | B53: 农林牧渔 | C53: 新平县大型沼气工程建设项目 | D53: 新建 | E53: 新平县 | F53: 建设反应装置为2000m31座、1500m34座、1000m310座、800m31座。 | G53: 2021.8-2025.12 | H53: 8000 | J53: 8000 | K53: 2000 | L53: 1500 | M53: 1500 | N53: 1500 | O53: 1500 | P53: 新平县农业农村局 | R53: 农业 | S53: 否 | T53: 否 | U53: 否 | V53: 是 | Y53: 是
A54: 46 | B54: 农林牧渔 | C54: 云南鼎成农业科技有限公司沼液循环利用建设项目 | D54: 新建 | E54: 漠沙镇 | F54: 建成3个1000立方米储液池及62千米沼液输送管网及6.75千米电网改造购置6台增压泵。 | G54: 2021.3-2023.12 | H54: 990 | J54: 990 | K54: 600 | L54: 300 | M54: 90 | P54: 新平县农业农村局 | R54: 农业 | S54: 否 | T54: 否 | U54: 否 | AA54: 是 | AC54: Ζ
A55: 47 | B55: 农林牧渔 | C55: 新平县太阳能热水器安装工程项目 | D55: 新建 | E55: 新平县 | F55: 计划争取太阳能热水器6000台，每年在全县实施太阳能热水器项目建设1200户，争取中央、省级财政投资600万元，群众投资600万元。 | G55: 2021.1-2025.12 | H55: 600 | J55: 600 | K55: 120 | L55: 120 | M55: 120 | N55: 120 | O55: 120 | P55: 新平县农业农村局 | R55: 农业 | S55: 否 | T55: 否 | U55: 否 | AB55: 是
A56: 48 | B56: 农林牧渔 | C56: 新平县病旧沼气池安全处置工程项目 | D56: 改建 | E56: 新平县 | F56: 计划进行改厕所2000个，每年400个；根据农户愿意，可以进行修复改造的，进行修复2000户，每年计划400户；对无法使用的，为了安全实行填埋，计划2000口，每年计划400口。 | G56: 2021.1-2025.12 | H56: 600 | J56: 600 | K56: 120 | L56: 120 | M56: 120 | N56: 120 | O56: 120 | P56: 新平县农业农村局 | R56: 农业 | S56: 否 | T56: 否 | U56: 否 | V56: 是
A57: 49 | B57: 农林牧渔 | C57: 新平县农用地土壤污染防治工程项目 | D57: 新建 | E57: 新平县 | F57: 修复受污染耕地4000亩 | G57: 2021.1-2024.12 | H57: 400 | J57: 400 | K57: 100 | L57: 100 | M57: 100 | N57: 100 | P57: 新平县农业农村局 | R57: 农业 | S57: 否 | T57: 否 | U57: 否 | V57: 是 | W57: 是 | Y57: 是
A58: 50 | B58: 农林牧渔 | C58: 新平县耕地保护与质量提升项目 | D58: 新建 | E58: 新平县 | F58: 耕地土壤改良示范103000亩 | G58: 2021.1-2025.12 | H58: 2600 | J58: 2600 | K58: 600 | L58: 500 | M58: 500 | N58: 500 | O58: 500 | P58: 新平县农业农村局 | R58: 农业 | S58: 否 | T58: 否 | U58: 否 | V58: 是 | Y58: 是
A59: 51 | B59: 农林牧渔 | C59: 新平县秸秆资源化利用工程项目 | D59: 新建 | E59: 新平县 | F59: 通过3年时间，推行秸秆资源化利用5万亩 | G59: 2021.1-2023.12 | H59: 1000 | J59: 1000 | K59: 334 | L59: 333 | M59: 333 | P59: 新平县农业农村局 | R59: 农业 | S59: 否 | T59: 否 | U59: 否 | AB59: 是
A60: 52 | B60: 农林牧渔 | C60: 新平县规模化以下畜禽养殖污染处理项目 | D60: 新建 | E60: 新平县 | F60: 拟建农村人畜分离点100个，主要建设内容，畜圈异地搬迁建设，配套水电路设施及养殖粪污处理设施。 | G60: 2021.1-2021.12 | H60: 10000 | J60: 10000 | K60: 10000 | P60: 新平县农业农村局 | R60: 农业 | S60: 否 | T60: 否 | U60: 否 | V60: 是 | W60: 是 | Y60: 是 | AA60: 是 | AB60: 是 | AC60: Ζ
A61: 53 | B61: 农林牧渔 | C61: 新平县粪污资源化利用整县推进项目 | D61: 新建 | E61: 新平县 | F61: 实施101个养殖场改造提升，配置高压冲洗机106台、干湿分离机84台，建设沉淀池3722立方米、堆粪棚2万平方米，沼气池3000立方米。实施规模化种猪场、养殖专业村粪污集中处理工程。建设3座有机肥加工厂，涉及生产规模合计16.5万吨。 | G61: 2021.1-2022.6 | H61: 5743 | J61: 5743 | K61: 5000 | L61: 743 | P61: 新平县农业农村局 | R61: 农业 | S61: 否 | T61: 否 | U61: 否 | V61: 是 | W61: 是 | Y61: 是 | AC61: Ζ
A62: 54 | B62: 农林牧渔 | C62: 新平县美丽乡村建设项目 | D62: 续建 | E62: 新平县 | F62: 亚尼社区6个小组雨污分离建设，硬化工程5200平方米，新建公厕2座；古城街道主要建设硬化工程8000平方米，排污管道建设9800米，11个小组的亮化工程，改建1座公厕；扬武镇主要建设硬化工程11100平方米，安装太阳能路灯27盏，猪圈改造80个，堆粪池84个，排污管道12000米；改建村庄公厕619座，硬化工程493个，每个村庄1000米，进行人畜分离、雨污分流、亮化、绿化、活动室、活动场地等建设。 | G62: 2021.1-2025.12 | H62: 147439 | J62: 147439 | K62: 35000 | L62: 35000 | M62: 35000 | N62: 35000 | O62: 7439 | P62: 新平县农业农村局 | R62: 农业 | S62: 否 | T62: 否 | U62: 否 | V62: 是 | W62: 是 | Y62: 是 | Z62: 是 | AC62: Ζ
A63: 二 | C63: 县林业和草原局 | E63: =COUNT(A64:A79) -> 16 | H63: =SUM(H64:H79) -> 165855 | I63: 0 | J63: 165855 | K63: 35135 | L63: 33600 | M63: 34600 | N63: 32560 | O63: 29960
A64: 1 | B64: 信息传输软件和信息技术服务业 | C64: 新平县林草数据化系统建设项目 | D64: 新建 | E64: 县域12个乡镇（街道） | F64: 新建防火检查站卡口视频监控120个，新建瞭望台视频监控系统建设10套，升级改造5套；投资2650万元。境内各自然保护地安装远程监控近距红外线自拍相机等监测设施200套、视频监控系统2套，投资1300万。境内国家重点保护珍稀濒危极小种群绿孔雀、陈式苏铁、旱地油杉、伯乐树等资源分布区安装远程监控50套，投资500万元；新建有害生物远程视频监控设备100套1000万元；建立智能化、可视化、数据化的监测预警指挥中心1个200平方米，投资1000万元，项目共投资6450万元。 | G64: 2021.5-2022.05 | H64: 6450 | J64: 6450 | K64: 1210 | L64: 1060 | M64: 1060 | N64: 1560 | O64: 1560 | P64: 新平县林业和草原局 | Q64: 部分新增 | R64: 农业 | S64: 是 | T64: 是 | U64: 否 | V64: 是 | W64: 是 | Y64: 是 | AC64: Ζ
A65: 2 | B65: 农林牧渔 | C65: 新平县自然保护地管护站建设项目 | D65: 新建 | E65: 新平县哀牢山、磨盘山、新化乡 | F65: 建设哀牢山县级自然保护区2个，磨盘山国家森林自然公园2个，新化古州野林森林自然公园2个共6个保护地管护站，每个建设规模280平方，投资100万元，共计投资600万元。管护点7个、哨卡22、个巡护补给点20个，收容救护站1个500平方米，扑火队营房1个500平方米。3个木材检查站建设投资300万元。 | G65: 2023.1.-2023.12 | H65: 2900 | J65: 2900 | K65: 700 | L65: 600 | M65: 600 | N65: 500 | O65: 500 | P65: 新平县林业和草原局、哀牢山管护局 | Q65: 部分新增 | R65: 农业 | S65: 否 | T65: 否 | U65: 否 | V65: 是 | W65: 是 | Y65: 是 | AC65: Ζ
A66: 3 | B66: 农林牧渔 | C66: 新平县森林草原防火基础设施建设项目 | D66: 新建 | E66: 县域12个乡镇（街道） | F66: 新建瞭望台1座，50平方米，投资80万元；新建防火检查站50个每个30平方米，共375万元；新建防火公路450公里，投资2700万元；新建防火隔离带500公里，投资1500万元；运兵车购置20辆共投资400万元，摩托车10辆投资10万，消防水车购置2辆投资80万元，防火物资10批500万元。 | G66: 2021.1-2025.12 | H66: 5645 | J66: 5645 | K66: 1045 | L66: 1200 | M66: 1200 | N66: 1200 | O66: 1000 | P66: 新平县林业和草原局 | Q66: 部分新增 | R66: 农业 | S66: 否 | T66: 否 | U66: 否 | V66: 是 | W66: 是 | Y66: 是 | AC66: Ζ
A67: 4 | B67: 农林牧渔 | C67: 新平县核桃竹子林区道路建设项目 | D67: 新建 | E67: 县域12个乡镇（街道） | F67: 新建核桃竹子林区道路500公里，每公里投资5万元，共2500万元。修缮林区道路500公里，每公里投资3万元，共1500万元。 | G67: 2021.3-2025.12 | H67: 4000 | J67: 4000 | K67: 800 | L67: 800 | M67: 800 | N67: 800 | O67: 800 | P67: 新平县林业和草原局 | R67: 农业 | S67: 否 | T67: 否 | U67: 否 | Y67: 是 | AC67: Ζ
A68: 5 | B68: 农林牧渔 | C68: 新平县造林绿化保障性苗圃建设项目 | D68: 改建 | E68: 县域内 | F68: 总建设5000亩（1000亩/ 年）、每亩投资1万元。 | G68: 2021-2022 | H68: 5000 | J68: 5000 | K68: 1000 | L68: 1000 | M68: 1000 | N68: 1000 | O68: 1000 | P68: 新平县林业和草原局 | Q68: 增加规模 | R68: 农业 | S68: 否 | T68: 否 | U68: 否 | V68: 是 | AC68: Ζ
A69: 6 | B69: 农林牧渔 | C69: 新平县大戛高速公路建设临时用地绿化恢复项目 | D69: 新建 | E69: 县域内 | F69: 大戛高速公路建设临时用地恢复造林5000亩，每亩1200元，造林树种：榕树、黄连木、云南松、清香木、旱冬瓜等。项目共计投资600万元。 | G69: 2021.1-2022.12 | H69: 600 | J69: 600 | K69: 120 | L69: 240 | M69: 240 | P69: 新平县林业和草原局 | Q69: 新增 | R69: 农业 | S69: 否 | T69: 否 | U69: 否 | V69: 是 | Y69: 是 | AC69: Ζ
A70: 7 | B70: 农林牧渔 | C70: 新平县自然保护地勘界立标建设 | D70: 新建 | E70: 新平县 | F70: 新平县自然保护地勘界立标建设。安装国家级自然保护区200颗界桩、20座界碑、300块警示牌、指示牌。 | G70: 2021 | H70: 900 | J70: 900 | K70: 900 | P70: 新平县林业和草原局 | Q70: 新增 | R70: 农业 | S70: 否 | T70: 否 | U70: 否 | V70: 是 | Y70: 是 | AC70: Ζ
A71: 8 | B71: 农林牧渔 | C71: 新平县哀牢山国家级保护区生态监测站建设 | D71: 新建 | E71: 哀牢山 | F71: 建设2个生态系统定位监测站1000平方米、气象监测站2个100平方米、鸟类监测环志站2个800平方米、野外生态教育点5个1000平方米、公众教育路线步道100公里、栈道50公里 | G71: 2021-2025 | H71: 2000 | J71: 2000 | K71: 400 | L71: 400 | M71: 400 | N71: 400 | O71: 400 | P71: 新平县林业和草原局 | Q71: 新增 | R71: 农业 | S71: 否 | T71: 否 | U71: 否 | V71: 是 | Y71: 是 | AC71: Ζ
A72: 9 | B72: 农林牧渔 | C72: 新平县哀牢山国家级保护区科研宣教中心及配套建设 | D72: 新建 | E72: 新平县 | F72: 建设科研宣教用房500平方米、宣教场馆200平方米，配备相应设备。 | G72: 2022-2024 | H72: 1600 | J72: 1600 | L72: 600 | M72: 600 | N72: 400 | P72: 新平县林业和草原局 | Q72: 新增 | R72: 农业 | S72: 否 | T72: 否 | U72: 否 | V72: 是 | Y72: 是
A73: 10 | B73: 农林牧渔 | C73: 新平县乡村公路绿化美化 | D73: 新建 | E73: 县域乡镇（街道） | F73: 县乡村公路两侧绿化美化2000公里 | G73: 2021-2025 | H73: 10000 | J73: 10000 | K73: 2000 | L73: 2000 | M73: 2000 | N73: 2000 | O73: 2000 | P73: 新平县林业和草原局 | Q73: 新增 | R73: 农业 | S73: 否 | T73: 否 | U73: 否 | V73: 是 | Y73: 是 | AC73: Ζ
A74: 11 | B74: 农林牧渔 | C74: 新平县林产品交易市场（含冷库）建设 | D74: 新建 | E74: 相关乡镇 | F74: 者竜、水塘、戛洒、漠沙、建兴、老厂、桂山各建一个。交易市场具备核桃加工、包装、交易、仓储、信息网络平台于一体的综合功能，创新农村电子商务模式和运营机制，实施“互联网+核桃”营销战略，解决当前我县核桃交易无市场、交易零乱的问题。每个集散地计划1000平米，其中含长20米，宽10米，高6米的冷库，库容1300立方米，100-200吨左右的产品的冷库一个。总投资3500万元. | G74: 2021-2025年 | H74: 3500 | J74: 3500 | K74: 700 | L74: 700 | M74: 700 | N74: 700 | O74: 700 | P74: 新平县林业和草原局 | Q74: 新增 | R74: 仓储冷链物流业 | S74: 是 | T74: 否 | U74: 否 | V74: 是 | AA74: 是 | AB74: 是
A75: 12 | B75: 农林牧渔 | C75: 新平县城及面山绿化美化项目 | D75: 新建 | E75: 桂山、古城 | F75: 县城面山绿化美化项目，投资10000万元 | G75: 2021.07-2025.12 | H75: 10000 | J75: 10000 | K75: 2000 | L75: 2000 | M75: 2000 | N75: 2000 | O75: 2000 | P75: 新平县林业和草原局 | Q75: 新增 | R75: 农业 | S75: 否 | T75: 否 | U75: 否 | V75: 是
A76: 13 | B76: 农林牧渔 | C76: 新平县村庄集镇绿化美化项目 | D76: 新建 | E76: 县域内 | F76: 11个异地搬迁点每个投资100万元，19个集镇每个投资200万元，1459个村庄每个投资40万元的绿化美化 | G76: 2021-2025年 | H76: 63260 | J76: 63260 | K76: 13260 | L76: 13000 | M76: 13000 | N76: 12000 | O76: 12000 | P76: 新平县林业和草原局 | Q76: 新增 | R76: 农业 | S76: 否 | T76: 否 | U76: 否 | V76: 是 | W76: 是 | Y76: 是 | AC76: Ζ
A77: 14 | B77: 农林牧渔 | C77: 新平县长江经济带生态修复治理项目 | D77: 新建 | E77: 戛洒镇、新化乡 | F77: 在戛洒集镇面山造林5000亩，造林树种：凤凰木、小叶榕、攀枝花。新化乡造林5000亩，造林树种：旱冬瓜、青香木、小叶榕等。 | G77: 2021-2024 | H77: 10000 | J77: 10000 | K77: 3000 | L77: 2000 | M77: 3000 | N77: 2000 | P77: 新平县林业和草原局 | Q77: 新增 | R77: 农业 | S77: 是 | T77: 否 | U77: 否 | V77: 是 | W77: 是 | X77: 是 | Y77: 是
A78: 15 | B78: 农林牧渔 | C78: 新平县森林景观道建设项目 | D78: 新建 | E78: 县域内 | F78: 全县新建设森林景观道500公里，投资10000万元。 | G78: 2021.05-2025.12 | H78: 10000 | J78: 10000 | K78: 2000 | L78: 2000 | M78: 2000 | N78: 2000 | O78: 2000 | P78: 新平县林业和草原局 | Q78: 新增 | R78: 农业 | S78: 否 | T78: 否 | U78: 否 | V78: 是 | W78: 是 | Y78: 是 | AC78: Ζ
A79: 16 | B79: 农林牧渔 | C79: 新平县森林康养项目 | D79: 新建 | E79: 相关乡镇、新型林业经营主体基地 | F79: 建设磨盘山森林康养基地、哀牢山森林康养基地、戛洒镇万亩竹林森林康养基地、新平县新化乡古州野林森林康养基地、新平县黄草坝森林湿地康养基地，每个投资6000万元。 | G79: 2021-2025年 | H79: 30000 | J79: 30000 | K79: 6000 | L79: 6000 | M79: 6000 | N79: 6000 | O79: 6000 | P79: 新平县林业和草原局 | R79: 农业 | S79: 否 | T79: 否 | U79: 否 | V79: 是 | Y79: 是 | AA79: 是 | AB79: 是 | AC79: Ζ
A80: 三 | C80: 县扶贫办 | E80: =COUNT(A81) -> 1 | H80: =SUM(H81) -> 6000 | I80: 0 | J80: 6000 | K80: 1000 | L80: 1300 | M80: 1500 | N80: 1200 | O80: 1000
A81: 1 | B81: 农林牧渔 | C81: 新平县巩固脱贫成果配套基础设施建设项目 | D81: 新建 | E81: 平掌乡、建兴乡、老厂乡等10个乡镇 | F81: 平掌乡、建兴乡、老厂乡等10个乡镇机耕路、农田灌溉设施等基础设施建设，巩固拓展脱贫攻坚成果 | G81: 2021.1-2025.11 | H81: 6000 | J81: =SUM(K81:O81) -> 6000 | K81: 1000 | L81: 1300 | M81: 1500 | N81: 1200 | O81: 1000 | P81: 新平县扶贫办 | R81: 农业 | S81: 否 | T81: 否 | U81: 否 | V81: 是 | W81: 是 | Y81: 是 | AC81: Ζ
A82: 四 | C82: 县自然资源局 | E82: =COUNT(A83:A105) -> 23 | H82: =SUM(H83:H105) -> 53119 | I82: 319 | J82: 52799 | K82: 28983 | L82: 11483 | M82: 2709 | N82: 3464 | O82: 6160
A83: 1 | B83: 农林牧渔 | C83: 玉溪市新平县平甸等2个乡（镇）小石缸等2个村土地整治（提质改造）项目 | D83: 新建 | E83: 平甸乡小石缸村委会、漠沙镇坡头村委会 | F83: 建设规模243.6394公顷，其中土地平整232.2154公顷。灌溉与排水工程，新建取水坝1座、4条斗渠4537米、5条农渠总计3903米、3条干管共计10532米、20条支管总计4520米，配建镇墩250座、沉砂池9座，建设6条农沟共计10383米，修建9.8万m3的坝塘1座，2座容量为2000m3水池和14座100m3水池，修建DN600涵洞42座，盖板涵6座。田间道路工程，新建田间路2条总计2728米，改建田间道路4条总计10724米，新建生产路6条7103米，新建过水路面生产路1座，新建错车位8座。新建M7.5浆砌石挡墙13条总计919米，撒施有机肥量1067053.20公斤。 | G83: 2020.9-2021.9 | H83: 3100 | J83: 3100 | K83: 3100 | P83: 新平县自然资源局 | R83: 农业 | S83: 否 | T83: 否 | U83: 否 | Y83: 是 | AC83: Ζ
A84: 2 | B84: 农林牧渔 | C84: 玉溪市新平县平掌乡梭山等3个村土地整治（提质改造）项目 | D84: 新建 | E84: 梭山、平掌、瓦寺村委会 | F84: 建设规模399.2754公顷，其中土地平整393.7352公顷（其中水田292.4121公顷、水浇地101.3231公顷）。灌溉与排水工程，修建取水口3座，取水坝2座，新建管径DN250管道4条共计8167米，新建管径DN200管道2条共计6460米，新建管径DN40管道5条共计3209米，新建沉砂池9座、200立方米水池1座、阀门井1座、50立方米水池20座、15立方米水窖39座、农渠17条共计27826米、农沟3条总计1902米，修建盖板涵11座、DN600涵洞47座。田间道路工程，新建田间路1条2450米，改建田间道路5条总计14929米，新建生产路1条3274米，改建生产路6条总计6766米，新建错车位23座。新建M7.5浆砌石挡墙5条总计315米，撒施有机肥量1715269.75公斤。 | G84: 2020.11-2021.11 | H84: 2383 | J84: 2383 | K84: 2383 | P84: 新平县自然资源局 | R84: 农业 | S84: 否 | T84: 否 | U84: 否 | Y84: 是 | AC84: Ζ
A85: 3 | B85: 农林牧渔 | C85: 玉溪市新平县建兴乡建兴村土地整治（提质改造）项目 | D85: 新建 | E85: 建兴村委会 | F85: 建设规模532.5266公顷，其中土地平整528.2751公顷。灌溉与排水工程，修建取水口5座，新建管径DN250管道4条共计15612米，新建DN140mm支管13条,长1585.00米；新建镇墩66座；新建沉砂池7座；新建100m3水池13座；新建农渠22条，长22522米；农沟10条，总长8563米；修建盖板涵13座；修建DN600涵洞64座。田间道路工程，新建田间路1条2450米，改建田间道路4条总计5558米，改建田间道4条总计7907米；新建生产路9条共7989米；改建生产路6条共计4293米；过水路面1座；新建错车位8座。新建M7.5浆砌石挡墙10条总计2113米，撒施有机肥量2474892.724公斤。 | G85: 2021.3-2022.3 | H85: 3528 | J85: 3528 | K85: 3528 | P85: 新平县自然资源局 | R85: 农业 | S85: 否 | T85: 否 | U85: 否 | Y85: 是 | AC85: Ζ
A86: 4 | B86: 农林牧渔 | C86: 玉溪市新平县漠沙镇曼勒社区、漠沙农场土地整治（提质改造）项目 | D86: 新建 | E86: 漠沙农场、曼勒村委会 | F86: 建设规模339.0333公顷,建设内容包括土地平整、田间道路工程、灌溉设施工程（暂未提交成果）。 | G86: 2022.3-2023.3 | H86: 2034 | J86: 2034 | L86: 2034 | P86: 新平县自然资源局 | R86: 农业 | S86: 否 | T86: 否 | U86: 否 | Y86: 是 | AC86: Ζ
A87: 5 | B87: 农林牧渔 | C87: 玉溪市新平县老厂乡勐炳等3个村土地整治(提质改造）项目 | D87: 新建 | E87: 老厂乡勐炳、哈科底和转马都村民委员会 | F87: 建设规模167.5141公顷，建设内容包括土地平整、田间道路工程、灌溉设施工程（暂未提交成果）。 | G87: 2021.3-2022.3 | H87: 1069 | J87: 1069 | K87: 1069 | P87: 新平县自然资源局 | R87: 农业 | S87: 否 | T87: 否 | U87: 否 | Y87: 是 | AC87: Ζ
A88: 6 | B88: 农林牧渔 | C88: 玉溪市新平县老厂乡太和等2个村土地整治（提质改造）项目 | D88: 新建 | E88: 老厂乡太和、马家坝村委会 | F88: 建设规模137.5590公顷，其中土地平整105.5475公顷（其中水田84.5228公顷、水浇地21.0247公顷）。灌溉与排水工程，建设农渠共计26条总长32.291km；支管4条总长2.038km；新建蓄水池10座（500m³7座，200m³3座）、水窖36座、沉砂池1座、涵洞83座。田间道路工程，改建田间道3条总长7.558km。 | G88: 2020.11-2021.11 | H88: 1180 | J88: 1180 | K88: 1180 | P88: 新平县自然资源局 | R88: 农业 | S88: 否 | T88: 否 | U88: 否 | Y88: 是 | AC88: Ζ
A89: 7 | B89: 农林牧渔 | C89: 玉溪市新平县新化等2个乡老五斗等8个村土地整治（提质改造）项目 | D89: 新建 | E89: 新化乡老五斗、大寨、白达莫、海外、新甸、六竜、甸末和平甸乡白鹤村民委员会 | F89: 建设规模365.2453公顷，其中土地平整278.5245公顷。灌溉与排水工程，共新建农渠28条合计25.943km；干管6条合计22.258km；新建200m3水池1座、15m3水窖65座，建设道路边沟10条总长7.516 km，新建取水坝1座、沉砂池5座、涵洞92座。田间道路工程，建设田间道路工程，改建田间道11条总长16.440km，新建田间道路4条总长3.709km，改建生产路1条总长0.774 km。 | G89: 2020.11-2021.11 | H89: 3004 | J89: 3004 | K89: 3004 | P89: 新平县自然资源局 | R89: 农业 | S89: 否 | T89: 否 | U89: 否 | Y89: 是 | AC89: Ζ
A90: 8 | B90: 农林牧渔 | C90: 新平县老厂乡全域综合土地整治 | D90: 新建 | E90: 老厂乡 | F90: 建设规模2000 公顷,建设内容包括土地平整、田间道路工程、灌溉设施工程（未做可研）。 | G90: 2021.1-2025.12 | H90: 8000 | J90: 8000 | K90: 2000 | L90: 2000 | M90: 2000 | N90: 1000 | O90: 1000 | P90: 新平县自然资源局 | R90: 农业 | S90: 否 | T90: 否 | U90: 否 | Y90: 是 | AC90: Ζ
A91: 9 | B91: 农林牧渔 | C91: 玉溪市新平县建兴乡磨味等3个村土地整治土地整治（提质改造）项目 | D91: 新建 | E91: 建兴乡帽盒、磨味、挖窑村委会 | F91: 建设规模277.3182公顷,建设内容包括土地平整、田间道路工程、灌溉设施工程（未做可研）。 | G91: 2022.1-2023.1 | H91: 1664 | J91: 1664 | L91: 1664 | P91: 新平县自然资源局 | R91: 农业 | S91: 否 | T91: 否 | U91: 否 | Y91: 是 | AC91: Ζ
A92: 10 | B92: 农林牧渔 | C92: 玉溪市新平县漠沙镇胜利村土地整治（提质改造）项目 | D92: 新建 | E92: 漠沙镇胜利村委会 | F92: 建设规模54.4776公顷，建设内容包括土地平整、田间道路工程、灌溉设施工程（未做可研）。 | G92: 2022.1-2025-12 | H92: 327 | J92: 327 | L92: 327 | P92: 新平县自然资源局 | R92: 农业 | S92: 否 | T92: 否 | U92: 否 | Y92: 是 | AC92: Ζ
A93: 11 | B93: 农林牧渔 | C93: 玉溪市新平县水塘镇大口等2个村土地整治（提质改造）项目 | D93: 新建 | E93: 水塘镇波村、大口村委会 | F93: 建设规模171.1073公顷，建设内容包括土地平整、田间道路工程、灌溉设施工程（未做可研）。 | G93: 2023.1-2025-12 | H93: 1027 | J93: 1027 | L93: 1027 | P93: 新平县自然资源局 | R93: 农业 | S93: 否 | T93: 否 | U93: 否 | Y93: 是 | AC93: Ζ
A94: 12 | B94: 农林牧渔 | C94: 玉溪市新平县者竜乡向阳村土地整治土地整治（提质改造）项目 | D94: 新建 | E94: 者竜乡向阳村委会 | F94: 建设规模94.0953公顷，建设内容包括土地平整、田间道路工程、灌溉设施工程（未做可研）。 | G94: 2023.1-2025-12 | H94: 565 | J94: 565 | M94: 565 | P94: 新平县自然资源局 | R94: 农业 | S94: 否 | T94: 否 | U94: 否 | Y94: 是 | AC94: Ζ
A95: 13 | B95: 农林牧渔 | C95: 玉溪市新平县平掌乡曼干等2个村土地整治（提质改造）项目 | D95: 新建 | E95: 平掌乡富库、曼干村委会 | F95: 建设规模346.9622公顷，建设内容包括土地平整、田间道路工程、灌溉设施工程（未做可研）。 | G95: 2023.1-2025-12 | H95: 2082 | J95: 2082 | O95: 2082 | P95: 新平县自然资源局 | R95: 农业 | S95: 否 | T95: 否 | U95: 否 | Y95: 是 | AC95: Ζ
A96: 14 | B96: 农林牧渔 | C96: 玉溪市新平县漠沙等2个乡镇双河等3个村土地整治（提质改造）项目 | D96: 新建 | E96: 漠沙镇双河、西尼村委会、平甸乡弥勒村委会 | F96: 建设规模512.9838公顷，建设内容包括土地平整、田间道路工程、灌溉设施工程（未做可研）。 | G96: 2023.1-2025-12 | H96: 3078 | J96: 3078 | O96: 3078 | P96: 新平县自然资源局 | R96: 农业 | S96: 否 | T96: 否 | U96: 否 | Y96: 是 | AC96: Ζ
A97: 15 | B97: 农林牧渔 | C97: 玉溪市新平县水塘等2个乡镇南达等4个村土地整治（提质改造）项目 | D97: 新建 | E97: 水塘镇南达、旧哈和拉博村委会、戛洒镇新寨村委会 | F97: 建设规模410.7380公顷，建设内容包括土地平整、田间道路工程、灌溉设施工程（未做可研）。 | G97: 2023.1-2025-12 | H97: 2464 | J97: 2464 | N97: 2464 | P97: 新平县自然资源局 | R97: 农业 | S97: 否 | T97: 否 | U97: 否 | Y97: 是 | AC97: Ζ
A98: 16 | B98: 农林牧渔 | C98: 玉溪市新平县戛洒镇土地整治（提质改造）项目 | D98: 新建 | E98: 新平县戛洒镇 | F98: 实施土地平整343.33公顷，修建DN250干管1条、15000米；斗渠6条、9029米；新建农渠15条，长8542米；新建农沟15条，长8942米；新建100立方米水池11座；新建15立方米水窖23座；新建田间道4条，长1240米；改建田间道4条，长1762米；新建生产路12条，长6099米；改建生产路18条，长8902米。增收1442吨有机肥改良土壤。 | G98: 2021.01-2022.12 | H98: 7000 | J98: 7000 | K98: 3000 | L98: 4000 | P98: 新平县自然资源局 | R98: 农业 | S98: 否 | T98: 否 | U98: 否 | Y98: 是 | AC98: Ζ
A99: 17 | B99: 水利环境和公共设施管理业 | C99: 玉溪市新平县老厂镇老厂中学滑坡治理项目 | D99: 新建 | E99: 新平县老厂乡老厂中学 | F99: 危岩清理、主动防护网、锚杆工程、凹腔嵌补、护脚墙、格构锚杆、挡墙、排水沟。 | G99: 2020.7-2021.12 | H99: 369 | I99: 277 | J99: 92 | K99: 92 | P99: 新平县自然资源局 | R99: 公共设施管理业 | S99: 否 | T99: 否 | U99: 否 | V99: 是 | Y99: 是 | AC99: Ζ
A100: 18 | B100: 水利环境和公共设施管理业 | C100: 玉溪市新平县戛洒镇耀南土司府崩塌和不稳定斜坡治理项目 | D100: 新建 | E100: 新平县戛洒镇耀南村委会旁 | F100: 对不稳定斜坡采用锚索、锚索（杆）框格梁辅以一定的截排水工程进行系统加固支护进行治理，属于大型项目。 | G100: 2020.11-2021.12 | H100: 350 | I100: 42 | J100: 308 | K100: 308 | P100: 新平县自然资源局 | R100: 公共设施管理业 | S100: 否 | T100: 否 | U100: 否 | V100: 是 | Y100: 是 | AC100: Ζ
A101: 19 | B101: 水利环境和公共设施管理业 | C101: 云南省新平县城小山头小组滑坡、旧城小组滑坡地质灾害治理项目 | D101: 新建 | E101: 新平县城小山头小组滑坡和旧城小组 | F101: 滑坡前缘设置一排抗滑桩（1.5m×2.0m）,桩心距5m，桩长10m；在滑坡外围修建截排水沟；村内完善排水措施及地面硬化措施和在滑坡中部民房前缘设置三排抗滑桩（1.5m×2.0m）,桩心距5m，桩长20-25m，共20棵，排水沟492m；地面硬化。属于大型项目 | G101: 2021.1-2021.12 | H101: 1050 | I101: 0 | J101: 1050 | K101: 1050 | P101: 新平县自然资源局 | R101: 公共设施管理业 | S101: 否 | T101: 否 | U101: 否 | V101: 是 | Y101: 是 | AC101: Ζ
A102: 20 | B102: 水利环境和公共设施管理业 | C102: 玉溪市绿汁江-红河谷土地综合开发新平段灌区管道工程建设项目 | D102: 新建 | E102: 老厂乡、新化乡 | F102: 3条主管道总长47.045公里，7条支管总长4.755公里，200立方米蓄水池6座，500立方米蓄水池2座，沉沙池2座，取水坝2座 | G102: 2020.9-2021.9 | H102: 5968 | J102: 5968 | K102: 5968 | P102: 新平县自然资源局 | R102: 水利 | S102: 否 | T102: 否 | U102: 是 | Y102: 是 | AC102: Ζ
A103: 21 | B103: 交通运输仓储和邮政业 | C103: 新平县平甸乡小石缸村土地整治漠沙农场大桥 | D103: 新建 | E103: 漠沙镇 | F103: 新建预应力混凝土桥梁1座，长190米。桥台引道改路长300米。 | G103: 2020.9-2023.12 | H103: 1203 | J103: =K103+L103+M103 -> 1202 | K103: 962 | L103: 180 | M103: 60 | P103: 新平县自然资源局 | R103: 综合交通 | S103: 否 | T103: 否 | U103: 是 | Y103: 是 | Z103: 是 | AC103: Ζ
A104: 22 | B104: 交通运输仓储和邮政业 | C104: 新平县老厂乡太和等两个村土地整治老船口大桥工程 | D104: 新建 | E104: 老厂乡 | F104: 新建预应力混凝土桥梁1座，长190米。新建桥头引道70米。 | G104: 2020.9-2023.12 | H104: 954 | J104: 954 | K104: 763 | L104: 143 | M104: 48 | P104: 新平县自然资源局 | R104: 综合交通 | S104: 否 | T104: 否 | U104: 是 | Y104: 是 | Z104: 是 | AC104: Ζ
A105: 23 | B105: 交通运输仓储和邮政业 | C105: 新平县老厂乡勐炳村土地整治勐炳大桥工程 | D105: 新建 | E105: 老厂乡 | F105: 新建预应力混凝土桥梁1座，长130米。新建桥头引道1393米。 | G105: 2020.9-2023.12 | H105: 720 | J105: 720 | K105: 576 | L105: 108 | M105: 36 | P105: 新平县自然资源局 | R105: 综合交通 | S105: 否 | T105: 否 | U105: 是 | Y105: 是 | Z105: 是 | AC105: Ζ
A106: 五 | C106: 县水利局 | E106: =COUNT(A107:A195) -> 89 | H106: =SUM(H107:H195) -> 619144 | I106: 800 | J106: 618344 | K106: 96525 | L106: 129198 | M106: 140604 | N106: 150705 | O106: 101312
A107: 1 | B107: 水利环境和公共设施管理业 | C107: 新平县洋发城水库扩建工程 | D107: 续建 | E107: 漠沙镇 | F107: 中型水库，坝高52.5m,总库容容1145万m3；扩建大坝、新建溢洪道、隧洞、配套渠系工程等。 | G107: 2019.6-2022.6 | H107: 15800 | I107: 800 | J107: 15000 | K107: 10000 | L107: 5000 | P107: 新平县水利局 | R107: 水利 | S107: 是 | T107: 否 | U107: 是 | V107: 是 | W107: 是 | X107: 是 | Y107: 是 | AC107: Ζ
A108: 2 | B108: 水利环境和公共设施管理业 | C108: 新平县十里河水库（西水东调中线）工程 | D108: 新建 | E108: 戛洒镇 | F108: 中型水库，坝高94.4m,总库容容1064万m3；新建大坝、溢洪道、隧洞、配套输水工程等。 | G108: 2021.12-2024.6 | H108: 110256 | J108: =H108 -> 110256 | K108: 25000 | L108: 30000 | M108: 30000 | N108: 25256 | P108: 新平县水利局 | R108: 水利 | S108: 是 | T108: 否 | U108: 是 | V108: 是 | W108: 是 | X108: 是 | Y108: 是 | AC108: Ζ
A109: 3 | B109: 水利环境和公共设施管理业 | C109: 新平县白沙河水库（西水东调南线）工程 | D109: 新建 | E109: 漠沙镇、扬武镇 | F109: 中型水库，坝高81.5m,总库容容1089万m3；新建大坝、溢洪道、隧洞、配套输水工程等。 | G109: 2022.12-2025.6 | H109: 130142 | J109: 130142 | L109: 20000 | M109: 40000 | N109: 50000 | O109: =J109-L109-M109-N109 -> 20142 | P109: 新平县水利局 | R109: 水利 | S109: 是 | T109: 否 | U109: 是 | V109: 是 | W109: 是 | X109: 是 | Y109: 是 | AC109: Ζ
A110: 4 | B110: 水利环境和公共设施管理业 | C110: 新平县亚尼河水库工程 | D110: 新建 | E110: 桂山街道 | F110: 中型水库，坝高60.8m,总库容容1516万m3；新建大坝、溢洪道、隧洞、配套渠系工程等。 | G110: 2023.1-2025.12 | H110: 31800 | J110: 31800 | M110: 10000 | N110: 10800 | O110: 11000 | P110: 新平县水利局 | R110: 水利 | S110: 是 | T110: 否 | U110: 是 | V110: 是 | W110: 是 | X110: 是 | Y110: 是 | AC110: Ζ
A111: 5 | B111: 水利环境和公共设施管理业 | C111: 新平县洋芋山水库工程 | D111: 新建 | E111: 水塘镇 | F111: 小（1）型水库，坝高63.5m,总库容容416万m3；新建大坝、溢洪道、隧洞、配套渠系工程等。 | G111: 2021.1-2024.6 | H111: 13773 | J111: 13773 | K111: 5000 | L111: 5000 | M111: =J111-K111-L111 -> 3773 | P111: 新平县水利局 | R111: 水利 | S111: 否 | T111: 否 | U111: 是 | V111: 是 | Y111: 是 | AC111: Ζ
A112: 6 | B112: 水利环境和公共设施管理业 | C112: 新平县阿者河水库工程 | D112: 新建 | E112: 平甸乡 | F112: 小（1）型水库，坝高50.3m,总库容容190万m3；新建大坝、溢洪道、隧洞、配套渠系工程等。 | G112: 2022.1-2024.1 | H112: 6604 | J112: 6604 | L112: 3000 | M112: 2000 | N112: 1604 | P112: 新平县水利局 | R112: 水利 | S112: 否 | T112: 否 | U112: 是 | V112: 是 | Y112: 是 | AC112: Ζ
A113: 7 | B113: 水利环境和公共设施管理业 | C113: 新平县摆依寨水库工程 | D113: 新建 | E113: 扬武镇 | F113: 小（1）型水库，坝高51m,总库容容196万m3；新建大坝、溢洪道、隧洞、配套渠系工程等。 | G113: 2024.1-2025.12 | H113: 16164 | J113: 16164 | N113: 7000 | O113: 9164 | P113: 新平县水利局 | R113: 水利 | S113: 否 | T113: 否 | U113: 是 | V113: 是 | Y113: 是 | AC113: Ζ
A114: 8 | B114: 水利环境和公共设施管理业 | C114: 新平县平田水库工程 | D114: 新建 | E114: 老厂乡 | F114: 小（1）型水库，坝高58 m,总库容容300万m3；新建大坝、溢洪道、隧洞、配套渠系工程等。 | G114: 2023.6-2025.12 | H114: 12000 | J114: 12000 | M114: 3000 | N114: 5000 | O114: 4000 | P114: 新平县水利局 | R114: 水利 | S114: 否 | T114: 否 | U114: 是 | V114: 是 | Y114: 是 | AC114: Ζ
A115: 9 | B115: 水利环境和公共设施管理业 | C115: 新平县哈科甲水库除险加固工程 | D115: 其他 | E115: 平甸乡 | F115: 拦河坝防渗处理、加固整形，输水涵洞防渗改造处理，改造溢洪道。 | G115: 2025.6-2025.12 | H115: 150 | J115: 150 | O115: 150 | P115: 新平县水利局 | R115: 水利 | S115: 否 | T115: 否 | U115: 是 | V115: 是 | Y115: 是 | AC115: Ζ
A116: 10 | B116: 水利环境和公共设施管理业 | C116: 新平县扬武镇高梁冲水库工程 | D116: 新建 | E116: 扬武镇 | F116: 小（1）型水库，坝高50m,总库容140万m³；新建大坝、溢洪道、隧洞、配套渠系工程等。 | G116: 2022.01-2025.07 | H116: 13000 | J116: 13000 | L116: 3500 | M116: 3500 | N116: 3500 | O116: 2500 | P116: 新平县水利局 | R116: 水利 | S116: 否 | T116: 否 | U116: 是 | V116: 是 | Y116: 是 | AC116: Ζ
A117: 11 | B117: 水利环境和公共设施管理业 | C117: 新平县新化乡双河水库建设项目 | D117: 新建 | E117: 新化乡 | F117: 建设为库容110万m³的水库，受益则若克、瓦房寨、旧寨、营盘、后寨、新寨6个小组，面积1700亩。 | G117: 2024.1-2025.12 | H117: 6000 | J117: 6000 | N117: 3000 | O117: 3000 | P117: 新平县水利局 | R117: 水利 | S117: 否 | T117: 否 | U117: 是 | V117: 是 | Y117: 是 | AC117: Ζ
A118: 12 | B118: 水利环境和公共设施管理业 | C118: 新平县新化乡奋起可水库项目 | D118: 新建 | E118: 新化乡 | F118: 小（1）型水库，坝高52m,库容150万m³。 | G118: 2024.1-2025.12 | H118: 6750 | J118: 6750 | N118: 3000 | O118: 3750 | P118: 新平县水利局 | R118: 水利 | S118: 否 | T118: 否 | U118: 是 | V118: 是 | Y118: 是 | AC118: Ζ
A119: 13 | B119: 水利环境和公共设施管理业 | C119: 新平县新化乡瓦白果二坝水库项目 | D119: 新建 | E119: 新化乡 | F119: 小（1）型水库，坝高48m,库容125万m³。 | G119: 2023.1-2024.12 | H119: 6625 | J119: 6625 | M119: 3625 | N119: 3000 | P119: 新平县水利局 | R119: 水利 | S119: 否 | T119: 否 | U119: 是 | V119: 是 | Y119: 是 | AC119: Ζ
A120: 14 | B120: 水利环境和公共设施管理业 | C120: 新平县白鹤塘水库工程 | D120: 新建 | E120: 平甸乡 | F120: 小（1）型水库，坝高54.9m,总库容容141万m3；新建大坝、溢洪道、隧洞、配套渠系工程等。 | G120: 2024.1-2025.12 | H120: 8000 | J120: 8000 | N120: 4000 | O120: 4000 | P120: 新平县水利局 | R120: 水利 | S120: 否 | T120: 否 | U120: 是 | V120: 是 | Y120: 是 | AC120: Ζ
A121: 15 | B121: 水利环境和公共设施管理业 | C121: 新平县大箐河水库 | D121: 新建 | E121: 古城街道 | F121: 小（二）型水库，总库容容23.1万m3；新建大坝、溢洪道、涵洞、配套渠系工程等。 | G121: 2022.6-2023.12 | H121: 1200 | J121: 1200 | L121: 600 | M121: 600 | P121: 新平县水利局 | R121: 水利 | S121: 否 | T121: 否 | U121: 是 | V121: 是 | Y121: 是 | AC121: Ζ
A122: 16 | B122: 水利环境和公共设施管理业 | C122: 新平县白梅箐坝塘 | D122: 新建 | E122: 古城街道 | F122: 小（二）型水库，总库容容9.6万m4；新建大坝、溢洪道、涵洞、配套渠系工程等。 | G122: 2023.10-2024.4 | H122: 500 | J122: 500 | M122: 200 | N122: 300 | P122: 新平县水利局 | R122: 水利 | S122: 否 | T122: 否 | U122: 是 | V122: 是 | Y122: 是 | AC122: Ζ
A123: 17 | B123: 水利环境和公共设施管理业 | C123: 新平县戛洒江戛洒段大沐浴段治理工程 | D123: 新建 | E123: 漠沙镇 | F123: 新建堤防、防护岸加固(河道治理长度5.1km,保护耕地0.2万亩,保护人口5万人) | G123: 2021.10-2022.10 | H123: 6200 | J123: 6200 | K123: 3000 | L123: =H123-K123 -> 3200 | P123: 新平县水利局 | R123: 水利 | S123: 否 | T123: 否 | U123: 是 | V123: 是 | W123: 是 | Y123: 是 | AC123: Ζ
A124: 18 | B124: 水利环境和公共设施管理业 | C124: 绿汁江新平县段二期治理工程 | D124: 新建 | E124: 老厂乡 | F124: 新建堤防、防护岸加固(河道治理长度15km,保护耕地1万亩,保护人口0.2万人) | G124: 2021.10-2022.11 | H124: 9000 | J124: 9000 | K124: 5500 | L124: =J124-K124 -> 3500 | P124: 新平县水利局 | R124: 水利 | S124: 是 | T124: 否 | U124: 是 | V124: 是 | W124: 是 | Y124: 是 | AC124: Ζ
A125: 19 | B125: 水利环境和公共设施管理业 | C125: 新平县挖窖河治理工程 | D125: 新建 | E125: 漠沙镇、建兴乡 | F125: 新建河堤、河道清淤、崩岸治理(河道治理长度2.3km,保护耕地0.26万亩,保护人口0.44万人) | G125: 2020.12-2021.6 | H125: 2200 | J125: 2200 | K125: 2200 | P125: 新平县水利局 | R125: 水利 | S125: 是 | T125: 否 | U125: 是 | V125: 是 | W125: 是 | Y125: 是 | AC125: Ζ
A126: 20 | B126: 水利环境和公共设施管理业 | C126: 新平县大春河二期治理工程 | D126: 续建 | E126: 水塘镇 | F126: 新建河堤、河道清淤、崩岸治理(河道治理长度5.2km,保护耕地0.08万亩,保护人口0.2万人) | G126: 2022.1-2022.12 | H126: 3000 | J126: 3000 | L126: 3000 | P126: 新平县水利局 | R126: 水利 | S126: 是 | T126: 否 | U126: 是 | V126: 是 | W126: 是 | Y126: 是 | AC126: Ζ
A127: 21 | B127: 水利环境和公共设施管理业 | C127: 新平县新平河治理工程 | D127: 新建 | E127: 桂山街道、古城街道、平甸乡 | F127: 新建河堤、河道清淤、崩岸治理(河道治理长度4km,保护耕地0.19万亩,保护人口0.26万人) | G127: 2022.03-2022.12 | H127: 2400 | J127: 2400 | L127: 2400 | P127: 新平县水利局 | R127: 水利 | S127: 是 | T127: 否 | U127: 是 | V127: 是 | W127: 是 | Y127: 是 | AC127: Ζ
A128: 22 | B128: 水利环境和公共设施管理业 | C128: 新平县困龙河治理工程 | D128: 新建 | E128: 戛洒镇 | F128: 新建河堤、河道清淤、崩岸治理(河道治理长度5.2km,保护耕地0.06万亩,保护人口0.11万人) | G128: 2023.3-2024.6 | H128: 3500 | J128: 3500 | M128: 2500 | N128: 1000 | P128: 新平县水利局 | R128: 水利 | S128: 是 | T128: 否 | U128: 是 | V128: 是 | W128: 是 | Y128: 是 | AC128: Ζ
A129: 23 | B129: 水利环境和公共设施管理业 | C129: 新平县南恩河治理工程 | D129: 新建 | E129: 戛洒镇 | F129: 新建河堤、河道清淤、崩岸治理(河道治理长度2.3km,保护耕地0.1万亩,保护集镇人口0.33万人) | G129: 2023.10-2024.6 | H129: 2000 | J129: 2000 | M129: 800 | N129: 1200 | P129: 新平县水利局 | R129: 水利 | S129: 是 | T129: 否 | U129: 是 | V129: 是 | W129: 是 | Y129: 是 | AC129: Ζ
A130: 24 | B130: 水利环境和公共设施管理业 | C130: 新平县蚌岗河治理工程 | D130: 新建 | E130: 漠沙镇 | F130: 新建河堤、河道清淤、崩岸治理(河道治理长度4.38km,保护耕地0.1万亩,保护人口0.129万人) | G130: 2024.10-2025.10 | H130: 3000 | J130: 3000 | N130: 600 | O130: 2400 | P130: 新平县水利局 | R130: 水利 | S130: 否 | T130: 否 | U130: 是 | V130: 是 | W130: 是 | Y130: 是 | AC130: Ζ
A131: 25 | B131: 水利环境和公共设施管理业 | C131: 新平县丫味河治理工程 | D131: 新建 | E131: 漠沙镇 | F131: 新建河堤、河道清淤、崩岸治理(河道治理长度1.5km,保护耕地0.03万亩,保护人口0.08万人) | G131: 2024.12-2025.6 | H131: 1650 | J131: 1650 | N131: 200 | O131: 1450 | P131: 新平县水利局 | R131: 水利 | S131: 是 | T131: 否 | U131: 是 | V131: 是 | W131: 是 | Y131: 是 | AC131: Ζ
A132: 26 | B132: 水利环境和公共设施管理业 | C132: 新平县棉花河治理工程 | D132: 新建 | E132: 水塘镇 | F132: 新建河堤、河道清淤、崩岸治理(河道治理长度3km,保护耕地0.06万亩,保护人口0.12万人) | G132: 2024.10-2025.10 | H132: 3000 | J132: 3000 | N132: 300 | O132: 2700 | P132: 新平县水利局 | R132: 水利 | S132: 是 | T132: 否 | U132: 是 | V132: 是 | W132: 是 | Y132: 是 | AC132: Ζ
A133: 27 | B133: 水利环境和公共设施管理业 | C133: 新平县康之康河治理工程 | D133: 新建 | E133: 平甸乡 | F133: 新建河堤、河道清淤、崩岸治理(河道治理长度4.4km,保护耕地0.05万亩,保护人口0.15万人) | G133: 2024.10-2025.11 | H133: 1900 | J133: 1900 | N133: 200 | O133: 1700 | P133: 新平县水利局 | R133: 水利 | S133: 是 | T133: 否 | U133: 是 | V133: 是 | W133: 是 | Y133: 是 | AC133: Ζ
A134: 28 | B134: 水利环境和公共设施管理业 | C134: 新平县南渡河治理工程 | D134: 新建 | E134: 漠沙镇 | F134: 新建河堤、河道清淤、崩岸治理(河道治理长度7km,保护耕地0.06万亩,保护人口0.12万人) | G134: 2024.12-2025.10 | H134: 3000 | J134: 3000 | O134: 3000 | P134: 新平县水利局 | R134: 水利 | S134: 是 | T134: 否 | U134: 是 | V134: 是 | W134: 是 | Y134: 是 | AC134: Ζ
A135: 29 | B135: 水利环境和公共设施管理业 | C135: 新平县班东河治理工程 | D135: 新建 | E135: 平掌乡 | F135: 新建河堤、河道清淤、崩岸治理(河道治理长度3.1km,保护耕地0.05万亩,保护人口0.1万人) | G135: 2025.3-2025.12 | H135: 1700 | J135: 1700 | O135: 1700 | P135: 新平县水利局 | R135: 水利 | S135: 是 | T135: 否 | U135: 是 | V135: 是 | W135: 是 | Y135: 是 | AC135: Ζ
A136: 30 | B136: 水利环境和公共设施管理业 | C136: 新平县西尼河治理工程 | D136: 新建 | E136: 漠沙镇 | F136: 新建河堤、河道清淤、崩岸治理(河道治理长度7km,保护耕地0.11万亩,保护人口0.3万人) | G136: 2025.01-2025.12 | H136: 3000 | J136: 3000 | O136: 3000 | P136: 新平县水利局 | R136: 水利 | S136: 是 | T136: 否 | U136: 是 | V136: 是 | W136: 是 | Y136: 是 | AC136: Ζ
A137: 31 | B137: 水利环境和公共设施管理业 | C137: 新平县十里牌河治理工程 | D137: 新建 | E137: 扬武镇 | F137: 新建河堤、河道清淤、崩岸治理(河道治理长度6.2km,保护耕地0.07万亩,保护人口0.13万人) | G137: 2023.03-2024.6 | H137: 3000 | J137: 3000 | M137: 1500 | N137: 1500 | P137: 新平县水利局 | R137: 水利 | S137: 是 | T137: 否 | U137: 是 | V137: 是 | W137: 是 | Y137: 是 | AC137: Ζ
A138: 32 | B138: 水利环境和公共设施管理业 | C138: 新平县依施河治理工程 | D138: 新建 | E138: 新化乡 | F138: 新建河堤、河道清淤、崩岸治理(河道治理长度5km,保护耕地0.5万亩,保护人口0.25万人) | G138: 2023.1-2024.10 | H138: 3000 | J138: 3000 | M138: 2000 | N138: 1000 | P138: 新平县水利局 | R138: 水利 | S138: 是 | T138: 否 | U138: 是 | V138: 是 | W138: 是 | Y138: 是 | AC138: Ζ
A139: 33 | B139: 水利环境和公共设施管理业 | C139: 新平县者竜乡竹箐河治理工程 | D139: 新建 | E139: 新平县者竜乡 | F139: 河道清障、清淤、新建防洪堤、河道消能设施、护岸护坡、绿化及水生态工程。 | G139: 2022.1-2022.12 | H139: 2128 | J139: 2128 | L139: 2128 | P139: 新平县水利局 | R139: 水利 | S139: 是 | T139: 否 | U139: 是 | V139: 是 | W139: 是 | Y139: 是 | AC139: Ζ
A140: 34 | B140: 水利环境和公共设施管理业 | C140: 新平县老鸹箐山洪沟治理工程 | D140: 新建 | E140: 水塘镇 | F140: 新建河堤、河道清淤、崩岸治理(新建护岸及堤防长度6.92km,保护农田0.35万亩,保护人口0.25万人） | G140: 2021.3-2021.12 | H140: 1500 | J140: 1500 | K140: 1500 | P140: 新平县水利局 | R140: 水利 | S140: 是 | T140: 否 | U140: 是 | V140: 是 | W140: 是 | Y140: 是 | AC140: Ζ
A141: 35 | B141: 水利环境和公共设施管理业 | C141: 新平县纳溪新寨河山洪沟治理工程 | D141: 新建 | E141: 古城街道 | F141: 新建河堤、河道清淤、崩岸治理(新建护岸及堤防长度3.2km,保护农田0.07万亩,保护人口0.21万人） | G141: 2021.3-2021.12 | H141: 1300 | J141: 1300 | K141: 1300 | P141: 新平县水利局 | R141: 水利 | S141: 是 | T141: 否 | U141: 是 | V141: 是 | W141: 是 | Y141: 是 | AC141: Ζ
A142: 36 | B142: 水利环境和公共设施管理业 | C142: 新平县米达起箐山洪沟治理工程 | D142: 新建 | E142: 新化乡 | F142: 新建河堤、河道清淤、崩岸治理(新建护岸及堤防长度4km,保护农田0.15万亩,保护人口0.03万人） | G142: 2022.3-2022.12 | H142: 1300 | J142: 1300 | L142: 1300 | P142: 新平县水利局 | R142: 水利 | S142: 是 | T142: 否 | U142: 是 | V142: 是 | W142: 是 | Y142: 是 | AC142: Ζ
A143: 37 | B143: 水利环境和公共设施管理业 | C143: 新平县豹子母河山洪沟治理工程 | D143: 新建 | E143: 漠沙镇 | F143: 新建河堤、河道清淤、崩岸治理(新建护岸及堤防长度9.16km,保护农田0.74万亩,保护人口0.06万人） | G143: 2022.3-2022.12 | H143: 1300 | J143: 1300 | L143: 1300 | P143: 新平县水利局 | R143: 水利 | S143: 是 | T143: 否 | U143: 是 | V143: 是 | W143: 是 | Y143: 是 | AC143: Ζ
A144: 38 | B144: 水利环境和公共设施管理业 | C144: 新平县沙河山洪沟治理工程 | D144: 新建 | E144: 古城街道 | F144: 新建河堤、河道清淤、崩岸治理(新建护岸及堤防长度2km,保护农田0.02万亩,保护人口0.15万人） | G144: 2023.3-2023.10 | H144: 1300 | J144: 1300 | M144: 1300 | P144: 新平县水利局 | R144: 水利 | S144: 是 | T144: 否 | U144: 是 | V144: 是 | W144: 是 | Y144: 是 | AC144: Ζ
A145: 39 | B145: 水利环境和公共设施管理业 | C145: 新平县小马命山洪沟山洪沟治理工程 | D145: 新建 | E145: 桂山街道 | F145: 新建河堤、河道清淤、崩岸治理(新建护岸及堤防长度1.64km,保护农田0.02万亩,保护人口0.03万人） | G145: 2024.3-2024.12 | H145: 1300 | J145: 1300 | N145: 1300 | P145: 新平县水利局 | R145: 水利 | S145: 是 | T145: 否 | U145: 是 | V145: 是 | W145: 是 | Y145: 是 | AC145: Ζ
A146: 40 | B146: 水利环境和公共设施管理业 | C146: 新平县革棚山洪沟山洪沟治理工程 | D146: 新建 | E146: 桂山街道 | F146: 新建河堤、河道清淤、崩岸治理(新建护岸及堤防长度2.6km,保护农田0.05万亩,保护人口0.11万人） | G146: 2025.3-2025.12 | H146: 1300 | J146: 1300 | O146: 1300 | P146: 新平县水利局 | R146: 水利 | S146: 是 | T146: 否 | U146: 是 | V146: 是 | W146: 是 | Y146: 是 | AC146: Ζ
A147: 41 | B147: 水利环境和公共设施管理业 | C147: 新平县平掌乡山洪沟治理工程 | D147: 新建 | E147: 平掌乡 | F147: 治理老缪寨河道、白腊度河道、大沙坝河道4公里，新建河道拦河坝挡墙20处长3000米 | G147: 2024.1-2024.12 | H147: 1200 | J147: 1200 | N147: 1200 | P147: 新平县水利局 | R147: 水利 | S147: 是 | T147: 否 | U147: 是 | V147: 是 | W147: 是 | Y147: 是 | AC147: Ζ
A148: 42 | B148: 水利环境和公共设施管理业 | C148: 新平县乙本甲山洪沟治理工程 | D148: 新建 | E148: 古城街道 | F148: 新建河堤、河道清淤、崩岸治理(新建护岸及堤防长度2.6km,保护农田0.05万亩,保护人口0.12万人） | G148: 2024.3-2025.6 | H148: 1300 | J148: 1300 | N148: 650 | O148: 650 | P148: 新平县水利局 | R148: 水利 | S148: 是 | T148: 否 | U148: 是 | V148: 是 | W148: 是 | Y148: 是 | AC148: Ζ
A149: 43 | B149: 水利环境和公共设施管理业 | C149: 新平县平甸河水库除险加固工程 | D149: 其他 | E149: 桂山街道 | F149: 大坝加固，输水、导流洞加固及其金属、机电设备改造。 | G149: 2022.1-2022.12 | H149: 1728 | J149: =H149 -> 1728 | L149: 1728 | P149: 新平县水利局 | R149: 水利 | S149: 是 | T149: 否 | U149: 是 | V149: 是 | Y149: 是 | AC149: Ζ
A150: 44 | B150: 水利环境和公共设施管理业 | C150: 新平县他克冲水库除险加固工程 | D150: 其他 | E150: 杨武镇 | F150: 库区防渗处理 | G150: 2021.3-2021.12 | H150: 1300 | J150: 1300 | K150: 1300 | P150: 新平县水利局 | R150: 水利 | S150: 否 | T150: 否 | U150: 是 | V150: 是 | Y150: 是 | AC150: Ζ
A151: 45 | B151: 水利环境和公共设施管理业 | C151: 新平县维白拉水库除险加固工程 | D151: 其他 | E151: 老厂乡 | F151: 大坝防渗处理，坝体整形；输水隧洞改造。 | G151: 2021.8-2021.12 | H151: 150 | J151: 150 | K151: 150 | P151: 新平县水利局 | R151: 水利 | S151: 否 | T151: 否 | U151: 是 | V151: 是 | Y151: 是 | AC151: Ζ
A152: 46 | B152: 水利环境和公共设施管理业 | C152: 新平县尼鲊水库除险加固工程 | D152: 其他 | E152: 杨武镇 | F152: 扩建溢洪道，大坝加固、整形处理，输水涵洞改造。 | G152: 2021.1-2021.12 | H152: 1200 | J152: 1200 | K152: 1200 | P152: 新平县水利局 | R152: 水利 | S152: 否 | T152: 否 | U152: 是 | V152: 是 | Y152: 是 | AC152: Ζ
A153: 47 | B153: 水利环境和公共设施管理业 | C153: 新平县老厂河水库除险加固工程 | D153: 其他 | E153: 老厂乡 | F153: 坝体防渗、整形加固处理，改建溢洪道；改造输水洞。 | G153: 2022.3-2022.12 | H153: 800 | J153: 800 | L153: 800 | P153: 新平县水利局 | R153: 水利 | S153: 否 | T153: 否 | U153: 是 | V153: 是 | Y153: 是 | AC153: Ζ
A154: 48 | B154: 水利环境和公共设施管理业 | C154: 新平且县黑马箐水库除险加固工程 | D154: 其他 | E154: 建兴乡 | F154: 大坝防渗处理，改造输水涵洞。 | G154: 2022.6-2022.12 | H154: 120 | J154: 120 | L154: 120 | P154: 新平县水利局 | R154: 水利 | S154: 否 | T154: 否 | U154: 是 | V154: 是 | Y154: 是 | AC154: Ζ
A155: 49 | B155: 水利环境和公共设施管理业 | C155: 新平县团结水库除险加固工程 | D155: 其他 | E155: 古城街道 | F155: 拦河坝加固整形，改造输水涵洞，改造溢洪道。 | G155: 2021.1-2021.12 | H155: 1180 | J155: 1180 | K155: 1180 | P155: 新平县水利局 | R155: 水利 | S155: 否 | T155: 否 | U155: 是 | V155: 是 | Y155: 是 | AC155: Ζ
A156: 50 | B156: 水利环境和公共设施管理业 | C156: 新平县峨德河水库除险加固工程 | D156: 其他 | E156: 漠沙镇 | F156: 拦河坝加固整形，改造输水隧洞，改造溢洪道。 | G156: 2023.3-2023.12 | H156: 1232 | J156: 1232 | M156: 1232 | P156: 新平县水利局 | R156: 水利 | S156: 否 | T156: 否 | U156: 是 | V156: 是 | Y156: 是 | AC156: Ζ
A157: 51 | B157: 水利环境和公共设施管理业 | C157: 新平县滑石板水库除险加固工程 | D157: 其他 | E157: 老厂乡 | F157: 大坝防渗处理，溢洪道和输水涵洞改建。 | G157: 2023.6-2023.12 | H157: 160 | J157: 160 | M157: 160 | P157: 新平县水利局 | R157: 水利 | S157: 否 | T157: 否 | U157: 是 | V157: 是 | Y157: 是 | AC157: Ζ
A158: 52 | B158: 水利环境和公共设施管理业 | C158: 新平县小弯子水库除险加固工程 | D158: 其他 | E158: 老厂乡 | F158: 大坝整形加固，溢洪道和输水涵洞改建。 | G158: 2024.1-2024.12 | H158: 710 | J158: 710 | N158: 710 | P158: 新平县水利局 | R158: 水利 | S158: 否 | T158: 否 | U158: 是 | V158: 是 | Y158: 是 | AC158: Ζ
A159: 53 | B159: 水利环境和公共设施管理业 | C159: 新平县水底汞水库除险加固工程 | D159: 其他 | E159: 老厂乡 | F159: 大坝整形加固，溢洪道和输水涵洞改建。 | G159: 2024.5-2024.12 | H159: 650 | J159: 650 | N159: 650 | P159: 新平县水利局 | R159: 水利 | S159: 否 | T159: 否 | U159: 是 | V159: 是 | Y159: 是 | AC159: Ζ
A160: 54 | B160: 水利环境和公共设施管理业 | C160: 新平县小竹箐水库除险加固工程 | D160: 其他 | E160: 平甸乡 | F160: 拦河坝加固整形，输水涵洞防渗、溢洪道改造处理。 | G160: 2024.1-2024.6 | H160: 140 | J160: 140 | N160: 140 | P160: 新平县水利局 | R160: 水利 | S160: 否 | T160: 否 | U160: 是 | V160: 是 | Y160: 是 | AC160: Ζ
A161: 55 | B161: 水利环境和公共设施管理业 | C161: 新平县老五斗水库除险加固工程 | D161: 其他 | E161: 新化乡 | F161: 拦河坝加固整形，输水涵洞防渗改造处理，改造溢洪道。 | G161: 2024.6-2024.12 | H161: 202 | J161: 202 | N161: 202 | P161: 新平县水利局 | R161: 水利 | S161: 否 | T161: 否 | U161: 是 | V161: 是 | Y161: 是 | AC161: Ζ
A162: 56 | B162: 水利环境和公共设施管理业 | C162: 新平县孙家寨（罗锅斗）水库除险加固工程 | D162: 其他 | E162: 古城街道 | F162: 拦河坝加固整形，输水涵洞改造处理，改扩建溢洪道。 | G162: 2023.1-2023.6 | H162: 76 | J162: 76 | M162: 76 | P162: 新平县水利局 | R162: 水利 | S162: 否 | T162: 否 | U162: 是 | V162: 是 | Y162: 是 | AC162: Ζ
A163: 57 | B163: 水利环境和公共设施管理业 | C163: 新平县新马厩水库除险加固工程 | D163: 其他 | E163: 平甸乡 | F163: 拦河坝防渗处理等。 | G163: 2025.1-2025.6 | H163: 110 | J163: 110 | O163: 110 | P163: 新平县水利局 | R163: 水利 | S163: 否 | T163: 否 | U163: 是 | V163: 是 | Y163: 是 | AC163: Ζ
A164: 58 | B164: 水利环境和公共设施管理业 | C164: 新平县革棚水库除险加固工程 | D164: 其他 | E164: 古城街道 | F164: 拦河坝加固整形，输水涵洞改造处理，改扩建溢洪道。 | G164: 2025.6-2025.12 | H164: 100 | J164: 100 | O164: 100 | P164: 新平县水利局 | R164: 水利 | S164: 否 | T164: 否 | U164: 是 | V164: 是 | Y164: 是 | AC164: Ζ
A165: 59 | B165: 水利环境和公共设施管理业 | C165: 新平县10万m3以下库塘除险加固工程 | D165: 其他 | E165: 县域各乡镇 | F165: 大坝防渗处理，坝坡整形；溢洪道改扩建，输水涵洞改造等。 | G165: 2021.1-2025.12 | H165: 20489 | J165: 20489 | K165: 4000 | L165: 4000 | M165: 4000 | N165: 4000 | O165: 4489 | P165: 新平县水利局 | R165: 水利 | S165: 否 | T165: 否 | U165: 是 | V165: 是 | Y165: 是 | AC165: Ζ
A166: 60 | B166: 水利环境和公共设施管理业 | C166: 新平县马鞍山水库渠系工程 | D166: 新建 | E166: 戛洒镇 | F166: 渠道工程等 | G166: 2021.1-2021.12 | H166: 3000 | J166: 3000 | K166: 3000 | P166: 新平县水利局 | R166: 水利 | S166: 否 | T166: 否 | U166: 是 | V166: 是 | Y166: 是 | AC166: Ζ
A167: 61 | B167: 水利环境和公共设施管理业 | C167: 新平县工业园区大开门综合开发平甸河管道供水工程 | D167: 新建 | E167: 桂山街道、扬武镇 | F167: 供水管道工程等 | G167: 2021.1-2023.12 | H167: 13500 | J167: 13500 | K167: 4500 | L167: 4000 | M167: 5000 | P167: 新平县水利局 | R167: 水利 | S167: 是 | T167: 否 | U167: 是 | Y167: 是 | AA167: 是 | AC167: Ζ
A168: 62 | B168: 水利环境和公共设施管理业 | C168: 新平县团结水库备用水源保护工程 | D168: 新建 | E168: 古城街道 | F168: 水源地保护工程、拦排污、围栏工程建设等 | G168: 2021-1-2021.6 | H168: 400 | J168: 400 | K168: 400 | P168: 新平县水利局 | R168: 水利 | S168: 否 | T168: 否 | U168: 是 | V168: 是 | W168: 是 | Y168: 是 | AC168: Ζ
A169: 63 | B169: 水利环境和公共设施管理业 | C169: 新平县红河谷中型供水灌区配套改造工程 | D169: 新建 | E169: 新平县戛洒镇 | F169: 设计灌区面积12.15万亩，工程水源主要为达哈河、南恩河、丫味河、马龙河、白沙河，灌区种植作物主要有柑桔、荔枝、香蕉、芒果等热带经济作物。建设内容主要为新建取水坝56处、渠道防渗加固120公里，灌区内调节水池400座，新建配水干、支管900公里，计量设施800套，工程估算投资24000万元。灌区年设计供水量3045万立方米。 | G169: 2021.01-2022.12 | H169: 22000 | J169: 22000 | K169: 11000 | L169: 11000 | P169: 新平县水利局 | R169: 水利 | S169: 否 | T169: 否 | U169: 是 | V169: 是 | X169: 是 | Y169: 是 | AC169: Ζ
A170: 64 | B170: 水利环境和公共设施管理业 | C170: 新平县戛洒灌区节水改造工程 | D170: 新建 | E170: 戛洒镇 | F170: 渠系工程管渠结合节水配套提升改造，计量设施配置、机制建设等 | G170: 2025.1-2025.12 | H170: 3960 | J170: 3960 | O170: 3960 | P170: 新平县水利局 | R170: 水利 | S170: 是 | T170: 否 | U170: 是 | V170: 是 | Y170: 是 | AC170: Ζ
A171: 65 | B171: 水利环境和公共设施管理业 | C171: 新平县者竜灌区节水改造工程 | D171: 新建 | E171: 者竜乡 | F171: 渠系工程管渠结合节水配套提升改造，计量设施配置、机制建设等 | G171: 2021.1-2021.12 | H171: 3780 | J171: 3780 | K171: 3780 | P171: 新平县水利局 | R171: 水利 | S171: 是 | T171: 否 | U171: 是 | V171: 是 | Y171: 是 | AC171: Ζ
A172: 66 | B172: 水利环境和公共设施管理业 | C172: 新平县新化依施河灌区节水改造工程 | D172: 新建 | E172: 新化乡 | F172: 渠系工程管渠结合节水配套提升改造，计量设施配置、机制建设等 | G172: 2023.1-2023.12 | H172: 2500 | J172: 2500 | M172: 2500 | P172: 新平县水利局 | R172: 水利 | S172: 是 | T172: 否 | U172: 是 | V172: 是 | Y172: 是 | AC172: Ζ
A173: 67 | B173: 水利环境和公共设施管理业 | C173: 新平县扬武顺水灌区节水改造工程 | D173: 新建 | E173: 扬武镇 | F173: 渠系工程管渠结合节水配套提升改造，计量设施配置、机制建设等 | G173: 2022.03-2022.12 | H173: 1450 | J173: 1450 | L173: 1450 | P173: 新平县水利局 | R173: 水利 | S173: 是 | T173: 否 | U173: 是 | V173: 是 | Y173: 是 | AC173: Ζ
A174: 68 | B174: 水利环境和公共设施管理业 | C174: 新平县平掌曼干灌区节水改造工程 | D174: 新建 | E174: 平掌乡 | F174: 渠系工程管渠结合节水配套提升改造，计量设施配置、机制建设等 | G174: 2024.1-2024.12 | H174: 1050 | J174: 1050 | N174: 1050 | P174: 新平县水利局 | R174: 水利 | S174: 是 | T174: 否 | U174: 是 | V174: 是 | Y174: 是 | AC174: Ζ
A175: 69 | B175: 水利环境和公共设施管理业 | C175: 新平县峨德河水库灌区节水改造工程 | D175: 其他 | E175: 漠沙镇 | F175: 渠系工程管渠结合节水配套提升改造，计量设施配置、机制建设等 | G175: 2023.3-2025.12 | H175: 2800 | J175: 2800 | L175: 800 | M175: 1000 | N175: 1000 | P175: 新平县水利局 | R175: 水利 | S175: 是 | T175: 否 | U175: 是 | V175: 是 | Y175: 是 | AC175: Ζ
A176: 70 | B176: 水利环境和公共设施管理业 | C176: 新平县漠沙镇西尼河小流域水土流失综合治理工程 | D176: 新建 | E176: 新化乡 | F176: 拟对 25 度以下坡地实施梯田工程；配套措施主要包括蓄水池、管网工程、机耕道路工程等 | G176: 2024.1-2025.12 | H176: 1250 | J176: 1250 | N176: 750 | O176: 500 | P176: 新平县水利局 | R176: 水利 | S176: 是 | T176: 否 | U176: 是 | V176: 是 | W176: 是 | Y176: 是 | AC176: Ζ
A177: 71 | B177: 水利环境和公共设施管理业 | C177: 新平县新化乡鲁一尼小流域水土流失综合治理工程 | D177: 新建 | E177: 漠沙镇 | F177: 拟对 26 度以下坡地实施梯田工程；配套措施主要包括蓄水池、管网工程、机耕道路工程等 | G177: 2024.1-2024.12 | H177: 625 | J177: 625 | N177: 625 | P177: 新平县水利局 | R177: 水利 | S177: 是 | T177: 否 | U177: 是 | V177: 是 | W177: 是 | Y177: 是 | AC177: Ζ
A178: 72 | B178: 水利环境和公共设施管理业 | C178: 新平县漠沙镇白沙河小流域水土流失综合治理工程 | D178: 新建 | E178: 漠沙镇 | F178: 拟对 27 度以下坡地实施梯田工程；配套措施主要包括蓄水池、管网工程、机耕道路工程等 | G178: 2022.6-2023.12 | H178: 1250 | J178: 1250 | L178: 500 | M178: 750 | P178: 新平县水利局 | R178: 水利 | S178: 是 | T178: 否 | U178: 是 | V178: 是 | W178: 是 | Y178: 是 | AC178: Ζ
A179: 73 | B179: 水利环境和公共设施管理业 | C179: 新平县新化乡依施河小流域水土流失综合治理工程 | D179: 新建 | E179: 新化乡 | F179: 拟对 28 度以下坡地实施梯田工程；配套措施主要包括蓄水池、管网工程、机耕道路工程等 | G179: 2022.1-2022.2 | H179: 750 | J179: 750 | L179: 750 | P179: 新平县水利局 | R179: 水利 | S179: 是 | T179: 否 | U179: 是 | V179: 是 | W179: 是 | Y179: 是 | AC179: Ζ
A180: 74 | B180: 水利环境和公共设施管理业 | C180: 新平县扬武镇玉租河小流域水土流失综合治理工程 | D180: 新建 | E180: 扬武镇 | F180: 拟对 28 度以下坡地实施梯田工程；配套措施主要包括蓄水池、管网工程、机耕道路工程等 | G180: 2021.1-2021.12 | H180: 560 | J180: 560 | K180: 560 | P180: 新平县水利局 | R180: 水利 | S180: 是 | T180: 否 | U180: 是 | V180: 是 | W180: 是 | Y180: 是 | AC180: Ζ
A181: 75 | B181: 水利环境和公共设施管理业 | C181: 新平县狗头坡小流域水土流失综合治理工程 | D181: 新建 | E181: 建兴乡 | F181: 拟对 28度以下坡地实施梯田工程；配套措施主要包括蓄水池、管网工程、机耕道路工程等 | G181: 2025.1-2025.12 | H181: 1250 | J181: 1250 | O181: 1250 | P181: 新平县水利局 | R181: 水利 | S181: 是 | T181: 否 | U181: 是 | V181: 是 | W181: 是 | Y181: 是 | AC181: Ζ
A182: 76 | B182: 水利环境和公共设施管理业 | C182: 新平县平甸河流域综合治理项目 | D182: 新建 | E182: 古城街道 | F182: 挡墙、清淤、跌坎、机耕道路工程等 | G182: 2022.3-2025.12 | H182: 37962 | J182: 37962 | L182: 7500 | M182: 10154 | N182: 10154 | O182: 10154 | P182: 新平县水利局 | R182: 水利 | S182: 是 | T182: 否 | U182: 是 | V182: 是 | W182: 是 | Y182: 是 | AC182: Ζ
A183: 77 | B183: 信息传输软件和信息技术服务业 | C183: 新平县中小河流智慧水利建设项目 | D183: 新建 | E183: 新平县 | F183: 对4条1000平方公里以上河流、34条50至1000平方公里和7条50平方公里以下河流进行视频、水位、雨量和水质实时监控。分别建设52个视频、水位、雨量和水质自动监测站，其中每条1000平方公里以上的河流分别设置3个监控点，其余河河分别设置1个监控点。 | G183: 2021.3-2023.3 | H183: 2000 | J183: 2000 | K183: 1000 | L183: 500 | M183: 500 | P183: 新平县水利局 | R183: 水利 | S183: 是 | T183: 是 | U183: 是 | V183: 是 | W183: 是 | Y183: 是 | AC183: Ζ
A184: 78 | B184: 信息传输软件和信息技术服务业 | C184: 新平县中、小型水库数字水利设施体系建设工程 | D184: 新建 | E184: 新平县 | F184: 新平县黄草坝、平甸河2座中型水库蓄水状态在线监测，输、泄水闸门及启闭设施网络监控，流量监测，水情测报设施配置在线监测等；新平县22座小（一）型水库、98座小（二）型通信线路架设、蓄水状态在线监测，输、泄水闸门及启闭设施网络监控，流量监测，水情测报设施配置及在线监测等。 | G184: 2021.3-2023.3 | H184: 6900 | J184: 6900 | K184: 3000 | L184: 2000 | M184: 1900 | P184: 新平县水利局 | R184: 水利 | S184: 是 | T184: 否 | U184: 是 | V184: 是 | W184: 是 | Y184: 是 | AC184: Ζ
A185: 79 | B185: 信息传输软件和信息技术服务业 | C185: 新平县水资源管理信息系统建设方案 | D185: 新建 | E185: 新平县 | F185: 新平县水资源管理信息系统主要建设内容涉及工业取水项目9个、农业取水项目18个、集镇供水项目4个共计31个监测点，县级信息平台1个。 | G185: 2021.3-2022.03 | H185: 620 | J185: 620 | K185: 500 | L185: 120 | P185: 新平县水利局 | R185: 水利 | S185: 是 | T185: 否 | U185: 是 | V185: 是 | W185: 是 | Y185: 是 | AC185: Ζ
A186: 80 | B186: 信息传输软件和信息技术服务业 | C186: 新平县河道采砂在线监控系统建设方案 | D186: 新建 | E186: 新平县 | F186: 新平县河道采砂规划（2020-2025年）共规划可采区砂场共38个.建设内容涉及38个采砂场在线监控采砂界线及安装运输车辆过板称系统，县级监控信息平台1个。 | G186: 2021.3-2022.03 | H186: 1368 | J186: 1368 | K186: 368 | L186: 1000 | P186: 新平县水利局 | R186: 水利 | S186: 是 | T186: 否 | U186: 是 | V186: 是 | W186: 是 | Y186: 是 | AC186: Ζ
A187: 81 | B187: 信息传输软件和信息技术服务业 | C187: 新平县小水电在线监测项目 | D187: 新建 | E187: 新平县 | F187: 新平县大春河流域3个梯级水电站、挖窖河流域8个梯级水电站、丫味河3个梯级水电站、花桥河1个梯级水电站、那板箐水电站、麻洋河二级水电站、者竜电站等18座小水电站生态流量进行监测，及对电站厂区、取水坝进行河道水位、流量、降雨量进行在线监测。 | G187: 2021.3-2022.03 | H187: 900 | J187: 900 | K187: 500 | L187: 400 | P187: 新平县水利局 | R187: 水利 | S187: 是 | T187: 否 | U187: 是 | V187: 是 | W187: 是 | Y187: 是 | AC187: Ζ
A188: 82 | B188: 水利环境和公共设施管理业 | C188: 新平县马龙河整治工程 | D188: 新建 | E188: 漠沙镇 | F188: 河道清障、清淤、新建防洪堤、河道消能设施、护岸护坡、绿化及水生态工程。 | G188: 2021.3-2021.12 | H188: 1222 | J188: 1222 | K188: 1222 | P188: 新平县水利局 | R188: 水利 | S188: 是 | T188: 否 | U188: 是 | V188: 是 | W188: 是 | Y188: 是 | AC188: Ζ
A189: 83 | B189: 水利环境和公共设施管理业 | C189: 新平县金厂河整治工程 | D189: 新建 | E189: 水塘镇 | F189: 河道清障、清淤、新建防洪堤、河道消能设施、护岸护坡、绿化及水生态工程。 | G189: 2021.1-2021.12 | H189: 2080 | J189: 2080 | K189: 2080 | P189: 新平县水利局 | R189: 水利 | S189: 是 | T189: 否 | U189: 是 | V189: 是 | W189: 是 | Y189: 是 | AC189: Ζ
A190: 84 | B190: 水利环境和公共设施管理业 | C190: 新平县达哈河整治工程 | D190: 新建 | E190: 戛洒镇 | F190: 河道清障、清淤、新建防洪堤、河道消能设施、护岸护坡、绿化及水生态工程。 | G190: 2022.1-2022.12 | H190: 2320 | J190: 2320 | L190: 2320 | P190: 新平县水利局 | R190: 水利 | S190: 是 | T190: 否 | U190: 是 | V190: 是 | W190: 是 | Y190: 是 | AC190: Ζ
A191: 85 | B191: 水利环境和公共设施管理业 | C191: 新平县竹箐河整治工程 | D191: 新建 | E191: 者竜乡 | F191: 河道清障、清淤、新建防洪堤、河道消能设施、护岸护坡、绿化及水生态工程。 | G191: 2022.1-2022.12 | H191: 2128 | J191: 2128 | L191: 2128 | P191: 新平县水利局 | R191: 水利 | S191: 是 | T191: 否 | U191: 是 | V191: 是 | W191: 是 | Y191: 是 | AC191: Ζ
A192: 86 | B192: 水利环境和公共设施管理业 | C192: 新平县棉花河整治工程 | D192: 新建 | E192: 水塘镇 | F192: 河道清障、清淤、新建防洪堤、河道消能设施、护岸护坡、绿化及水生态工程。 | G192: 2023.1-2023.12 | H192: 3040 | J192: 3040 | M192: 3040 | P192: 新平县水利局 | R192: 水利 | S192: 是 | T192: 否 | U192: 是 | V192: 是 | W192: 是 | Y192: 是 | AC192: Ζ
A193: 87 | B193: 水利环境和公共设施管理业 | C193: 新平县农村供水保障工程 | D193: 改建 | E193: 县域各乡镇 | F193: 共新建、改造配套各类农村供水工程116处，工程覆盖人口16余万人，其中新增覆盖人口15余万人，新增供水规模19569 m3/d。安装水质净化设备136套，消毒设备136套；管网配套1638km；进、出水厂水计量装置228块；规模化水厂水质化验室建设1处，规模化水厂自动化监控系统建设48处。 | G193: 2021.3-2025.12 | H193: 17422 | J193: 17422 | K193: 3285 | L193: 3266 | M193: 3564 | N193: 3414 | O193: 3893 | P193: 新平县水利局 | R193: 水利 | S193: 否 | T193: 否 | U193: 是 | V193: 是 | W193: 是 | Y193: 是 | AC193: Ζ
A194: 88 | B194: 水利环境和公共设施管理业 | C194: 新平县库塘清淤扩容 | D194: 其他 | E194: 县域各乡镇 | F194: 需清淤的库塘共111座，总清淤量170万立方米，估算投资2688万元。其中包括小（一）型水库2座、小（二）型水库1座、小坝塘108座。 | G194: 2022.12-2024.12 | H194: 2688 | J194: 2688 | L194: 388 | M194: 1150 | N194: 1150 | P194: 新平县水利局 | R194: 水利 | S194: 否 | T194: 否 | U194: 是 | V194: 是 | Y194: 是 | AC194: Ζ
A195: 89 | B195: 水利环境和公共设施管理业 | C195: 新平县干支渠及库坝引蓄水沟防渗加固 | D195: 其他 | E195: 县域各乡镇 | F195: 全县范围内需对老旧干支渠进行防渗处理，共计27条沟渠，总长63km，估算投资3780万元。 | G195: 2022.12-2025.1 | H195: 3780 | J195: 3780 | L195: 500 | M195: 780 | N195: 1250 | O195: 1250 | P195: 新平县水利局 | R195: 水利 | S195: 否 | T195: 否 | U195: 是 | V195: 是 | W195: 是 | Y195: 是 | AC195: Ζ
A196: 六 | C196: 市生态环境局新平分局 | E196: =COUNT(A197:A207) -> 11 | H196: =SUM(H197:H207) -> 73579 | I196: 15000 | J196: 58579 | K196: 5100 | L196: 4479 | M196: 11600 | N196: 16900 | O196: 20500
A197: 1 | B197: 水利环境和公共设施管理业 | C197: 新平县乡镇集中式饮用水水源地环境保护项目 | D197: 新建 | E197: 新平县戛洒镇、漠沙镇、扬武镇、水塘镇、建兴乡、者竜乡、新化乡、老厂乡、平掌乡 | F197: 规范化建设标志与隔离防护工程：界标122个，交通警示牌40个，宣传牌86个，禁止标示牌21个；涂塑围网28840m，植物篱（青刺果）17755m；重要水源地监控能力建设工程。 | G197: 2022.05-2023.12 | H197: 2679 | I197: 0 | J197: 2679 | K197: 0 | L197: 1679 | M197: 1000 | N197: 0 | O197: 0 | P197: 玉溪市生态环境局新平分局 | R197: 水利 | S197: 否 | T197: 否 | U197: 是 | V197: 是 | W197: 是 | Y197: 是
A198: 2 | B198: 水利环境和公共设施管理业 | C198: 新平县农村污水综合整治工程（一期） | D198: 新建 | E198: 新平县12个乡镇（街道） | F198: 组织实施新平县人居环境提升三年行动计划（旅游特色型、生态宜居型、提升改善型）6 个自然村、新平县农村人居环境村庄治理73个自然村、千吨万人饮用水源地二级保护区范围内 2 个自然村生活污水收集、治理设施建设；县城（集镇）周边分散村庄 28 个自然村农村生活污水得到有效管控。 | G198: 2022.06-2023.12 | H198: 5000 | I198: 0 | J198: 5000 | K198: 0 | L198: 2500 | M198: 2500 | N198: 0 | O198: 0 | P198: 玉溪市生态环境局新平分局 | R198: 公共设施管理业 | S198: 否 | T198: 否 | U198: 否 | V198: 是 | Y198: 是 | AC198: Ζ
A199: 3 | B199: 水利环境和公共设施管理业 | C199: 新平县农村污水综合整治工程（二期） | D199: 新建 | E199: 新平县12个乡镇（街道） | F199: 治理集中式饮用水源地二级保护区内（除千吨万人饮用水源地）村庄 16 个、美丽乡村、特色村等重点建设的村庄 52 个；治理县城及乡镇周边纳管村庄 15 个、已建污水处理设施改扩建村庄 8 个；治理行政村中心村 49 个。 | G199: 2023.06-2023.12 | H199: 5000 | I199: 0 | J199: 5000 | K199: 0 | L199: 0 | M199: 5000 | N199: 0 | O199: 0 | P199: 玉溪市生态环境局新平分局 | R199: 公共设施管理业 | S199: 否 | T199: 否 | U199: 否 | V199: 是 | Y199: 是 | AC199: Ζ
A200: 4 | B200: 水利环境和公共设施管理业 | C200: 新平县农村污水综合整治工程（三期） | D200: 新建 | E200: 新平县12个乡镇（街道） | F200: 组织实施水功能区划敏感区沿线现状直排村庄 37 个治理，治理交通便利、户数在 50户以下的居住分散型村庄 102 个，农村生活污水治理率≥80%、生活污水有效管控率≥80%。农村已建生活污水处理设施20m3/d 及以上规模）实现专职专人、定期运维。 | G200: 2024.06-2025.12 | H200: 5000 | I200: 0 | J200: 5000 | K200: 0 | L200: 0 | M200: 0 | N200: 2500 | O200: 2500 | P200: 玉溪市生态环境局新平分局 | R200: 公共设施管理业 | S200: 否 | T200: 否 | U200: 否 | V200: 是 | Y200: 是 | AC200: Ζ
... 583 more rows

Sheet 1.一级项目储备库按县单位汇总 (hidden)
A1: 新平彝族傣族自治县“十四五”规划建设项目表（按行业主管部门分类）
A2: 编制单位：新平县发展和改革局 | D2: 填表联系人及电话：方涛 7011150 | I2: 联系领导：李睿 | K2: 单位：万元
A3: 序号 | B3: 行业分类 | C3: 项目数 | D3: 项目总投资 | E3: 其中：投资情况 | L3: 备注
E4: 到2020年累计完成投资 | F4: “十四五”期间规划投资 | G4: “十四五”年度投资建设规划
G5: 2021年 | H5: 2022年 | I5: 2023年 | J5: 2024年 | K5: 2025年
A6: 合计 | C6: =SUM(C7:C39) -> 742 | D6: =SUM(D7:D39) -> 18272898 | E6: 802390 | F6: 16040448 | G6: 2534876 | H6: 3468673 | I6: 4313124 | J6: 3052260 | K6: 2671515
A7: 一 | B7: 县农业农村局 | C7: 54 | D7: 1035924 | E7: 63964 | F7: 971960 | G7: 241176 | H7: 268054 | I7: 168326 | J7: 155398 | K7: 139006
A8: 二 | B8: 县林业和草原局 | C8: 16 | D8: 165855 | E8: 0 | F8: 165855 | G8: 35135 | H8: 33600 | I8: 34600 | J8: 32560 | K8: 29960
A9: 三 | B9: 县扶贫办 | C9: 1 | D9: 6000 | E9: 0 | F9: 6000 | G9: 1000 | H9: 1300 | I9: 1500 | J9: 1200 | K9: 1000
A10: 四 | B10: 县自然资源局 | C10: 23 | D10: 53119 | E10: 319 | F10: 52799 | G10: 28983 | H10: 11483 | I10: 2709 | J10: 3464 | K10: 6160
A11: 五 | B11: 县水利局 | C11: 89 | D11: 619144 | E11: 800 | F11: 618344 | G11: 96525 | H11: 129198 | I11: 140604 | J11: 150705 | K11: 101312
A12: 六 | B12: 市生态环境局新平分局 | C12: 11 | D12: 73579 | E12: 15000 | F12: 58579 | G12: 5100 | H12: 4479 | I12: 11600 | J12: 16900 | K12: 20500
A13: 六 | B13: 县工信局 | C13: 36 | D13: 1701566 | E13: 460112 | F13: 1217373 | G13: 310769 | H13: 360064 | I13: 418850 | J13: 51750 | K13: 75940
A14: 七 | B14: 县工业园区管委会 | C14: 26 | D14: 941391 | E14: 68100 | F14: 770991 | G14: 114300 | H14: 129491 | I14: 154500 | J14: 214100 | K14: 158600
A15: 八 | B15: 县发改局 | C15: 12 | D15: 225587 | E15: 0 | F15: 189587 | G15: 2350 | H15: 13100 | I15: 46237 | J15: 52100 | K15: 75800
A16: 九 | B16: 县住建局 | C16: 164 | D16: 1830210 | E16: 56074 | F16: 1728436 | G16: 390939 | H16: 433450 | I16: 360921 | J16: 298751 | K16: 244375
A17: 十 | B17: 县城市管理局 | C17: 15 | D17: 35122 | E17: 2000 | F17: 33321 | G17: 17382 | H17: 14339 | I17: 200 | J17: 600 | K17: 800
A18: 十一 | B18: 县交通运输局 | C18: 48 | D18: 7838796 | E18: 6700 | F18: 6632796 | G18: 722800 | H18: 1266389 | I18: 2009659 | J18: 1298000 | K18: 1335948
A19: 十二 | B19: 县教育体育局 | C19: 35 | D19: 122352 | E19: 15536 | F19: 107018 | G19: 31439 | H19: 40457 | I19: 15023 | J19: 12490 | K19: 7609
A20: 十三 | B20: 县卫生健康局 | C20: 28 | D20: 177835 | E20: 12650 | F20: 166302 | G20: 46325 | H20: 46289 | I20: 30284 | J20: 21814 | K20: 21590
A21: 十四 | B21: 县文化和旅游局 | C21: 46 | D21: 944552 | E21: 92552 | F21: 852000 | G21: 137000 | H21: 241350 | I21: 249650 | J21: 142300 | K21: 81700
A22: 十五 | B22: 县商务局 | C22: 23 | D22: 781442 | E22: 2700 | F22: 756742 | G22: 240900 | H22: 219942 | I22: 89900 | J22: 97550 | K22: 108450
A23: 十六 | B23: 县民政局 | C23: 10 | D23: 53895 | E23: 1309 | F23: 52586 | G23: 11091 | H23: 13220 | I23: 11265 | J23: 8810 | K23: 8200
A24: 十七 | B24: 县公安局 | C24: 17 | D24: 17634 | E24: 1093 | F24: 16541 | G24: 4641 | H24: 5039 | I24: 2845 | J24: 2349 | K24: 1667
A25: 十八 | B25: 县应急管理局 | C25: 2 | D25: 1928 | E25: 846 | F25: 1082 | G25: 600 | H25: 482 | I25: 0 | J25: 0 | K25: 0
A26: 十九 | B26: 县防震减灾局 | C26: 1 | D26: 200 | E26: 0 | F26: 200 | G26: 0 | H26: 0 | I26: 100 | J26: 100 | K26: 0
A27: 二十 | B27: 县投资促进局 | C27: 50 | D27: 1543556 | E27: 0 | F27: 1543556 | G27: 77214 | H27: 211602 | I27: 540880 | J27: 474100 | K27: 239760
A28: 二十一 | B28: 县人民法院 | C28: 3 | D28: 639 | E28: 0 | F28: 639 | G28: 639 | H28: 0 | I28: 0 | J28: 0 | K28: 0
A29: 二十二 | B29: 县残联 | C29: 1 | D29: 3000 | E29: 0 | F29: 3000 | G29: 0 | H29: 0 | I29: 1000 | J29: 1000 | K29: 1000
A30: 二十三 | B30: 县妇联 | C30: 1 | D30: 200 | E30: 0 | F30: 200 | G30: 0 | H30: 0 | I30: 0 | J30: 200 | K30: 0
A31: 二十四 | B31: 县科协 | C31: 1 | D31: 1000 | E31: 0 | F31: 1000 | G31: 0 | H31: 0 | I31: 500 | J31: 500 | K31: 0
A32: 二十五 | B32: 县广播电视局 | C32: 3 | D32: 440 | E32: 0 | F32: 440 | G32: 45 | H32: 65 | I32: 45 | J32: 240 | K32: 45
A33: 二十六 | B33: 县供电局 | C33: 9 | D33: 69043 | E33: 2599 | F33: 64246 | G33: 15378 | H33: 15360 | I33: 16676 | J33: 9479 | K33: 7353
A34: 二十七 | B34: 县市场监督管理 | C34: 6 | D34: 5500 | E34: 0 | F34: 5500 | G34: 2200 | H34: 3300 | I34: 0 | J34: 0 | K34: 0
A35: 二十八 | B35: 县医疗保障局 | C35: 1 | D35: 300 | E35: 0 | F35: 300 | G35: 200 | H35: 100 | I35: 0 | J35: 0 | K35: 0
A36: 二十九 | B36: 县政务服务管理局 | C36: 3 | D36: 19940 | E36: 0 | F36: 19940 | G36: 0 | H36: 5400 | I36: 4600 | J36: 5500 | K36: 4440
A37: 三十 | B37: 县老年人干部管理局 | C37: 1 | D37: 400 | E37: 0 | F37: 400 | G37: 200 | H37: 200 | I37: 0 | J37: 0 | K37: 0
A38: 三十一 | B38: 县民族宗教事务局 | C38: 4 | D38: 1850 | E38: 0 | F38: 1850 | G38: 200 | H38: 700 | I38: 550 | J38: 200 | K38: 200
A39: 三十二 | B39: 县司法局 | C39: 2 | D39: 900 | E39: 35 | F39: 865 | G39: 345 | H39: 220 | I39: 100 | J39: 100 | K39: 100

Sheet 2.一级项目储备库按十大行业分类汇总 (hidden)
A1: 新平彝族傣族自治县“十四五”规划建设项目表（按十大行业分类）
A2: 编制单位：新平县发展和改革局 | D2: 填表联系人及电话：方涛 7011150 | I2: 联系领导：李睿 | K2: 单位：万元
A3: 序号 | B3: 行业分类 | C3: 项目数 | D3: 项目总投资 | E3: 其中：投资情况 | L3: 备注
E4: 到2020年累计完成投资 | F4: “十四五”期间规划投资 | G4: “十四五”年度投资建设规划
G5: 2021年 | H5: 2022年 | I5: 2023年 | J5: 2024年 | K5: 2025年
A6: 合计 | C6: =SUM(C7:C16) -> 742 | D6: =SUM(D7:D16) -> 18272898 | E6: =SUM(E7:E16) -> 802390 | F6: 16040448 | G6: 2534876 | H6: 3468673 | I6: 4313124 | J6: 3052260 | K6: 2671515
A7: 1 | B7: 农业 | C7: 85 | D7: 1250784 | E7: 63964 | F7: 1186820 | G7: 288875 | H7: 309306 | I7: 211291 | J7: 196922 | K7: 180426
A8: 2 | B8: 工业 | C8: 101 | D8: 3900311 | E8: 543212 | F8: 3194718 | G8: 465169 | H8: 550955 | I8: 984750 | J8: 695244 | K8: 498600
A9: 3 | B9: 房地产业 | C9: 39 | D9: 849495 | E9: 42897 | F9: 806598 | G9: 202227 | H9: 212640 | I9: 184082 | J9: 125080 | K9: 82569
A10: 4 | B10: 水利业 | C10: 91 | D10: 627791 | E10: 800 | F10: 626991 | G10: 102493 | H10: 130877 | I10: 141604 | J10: 150705 | K10: 101312
A11: 5 | B11: 综合交通 | C11: 45 | D11: 7831272 | E11: 6700 | F11: 6625272 | G11: 724701 | H11: 1265020 | I11: 2007903 | J11: 1294550 | K11: 1333098
A12: 6 | B12: 教育业 | C12: 36 | D12: 122752 | E12: 15536 | F12: 107418 | G12: 31639 | H12: 40657 | I12: 15023 | J12: 12490 | K12: 7609
A13: 7 | B13: 卫生计生 | C13: 30 | D13: 193710 | E13: 12650 | F13: 182177 | G13: 49500 | H13: 49464 | I13: 33459 | J13: 24989 | K13: 24765
A14: 8 | B14: 公共设施管理业 | C14: 214 | D14: 947391 | E14: 22378 | F14: 877315 | G14: 197270 | H14: 232922 | I14: 172194 | J14: 145786 | K14: 129143
A15: 9 | B15: 旅游业 | C15: 64 | D15: 1648024 | E15: 92552 | F15: 1555472 | G15: 219007 | H15: 425173 | I15: 446423 | J15: 277773 | K15: 187096
A16: 10 | B16: 仓储冷链物流 | C16: 37 | D16: 901367 | E16: 1700 | F16: 877667 | G16: 253995 | H16: 251659 | I16: 116395 | J16: 128721 | K16: 126897

Sheet 3.两新一重项目表 (hidden)
A1: 新平彝族傣族自治县“十四五”规划建设项目表（按“两新一重”项目分类）
A2: 编制单位：新平县发展和改革局 | D2: 填表联系人及电话：方涛 7011150 | I2: 联系领导：李睿 | K2: 单位：万元
A3: 序号 | B3: 行业分类 | C3: 项目数 | D3: 项目总投资 | E3: 其中：投资情况 | L3: 备注
E4: 到2020年累计完成投资 | F4: “十四五”期间规划投资 | G4: “十四五”年度投资建设规划
G5: 2021年 | H5: 2022年 | I5: 2023年 | J5: 2024年 | K5: 2025年
A6: 合计 | C6: =SUM(C7:C9) -> 626 | D6: 19500155 | E6: 212048 | F6: 17068031 | G6: 2607555 | H6: 3633416 | I6: 4564945 | J6: 3137887 | K6: 3124228
A7: 1 | B7: 新型城镇化建设项目 | C7: 420 | D7: 10479223 | E7: 176102 | F7: 9292943 | G7: 1534632 | H7: 2037199 | I7: 2392550 | J7: 1665830 | K7: 1662732
A8: 2 | B8: 新型基础设施建设项目 | C8: 64 | D8: 551469 | E8: 28446 | F8: 512425 | G8: 245329 | H8: 198520 | I8: 20988 | J8: 23352 | K8: 24236
A9: 3 | B9: 交通水利为主重大建设项目 | C9: 142 | D9: 8469463 | E9: 7500 | F9: 7262663 | G9: 827594 | H9: 1397697 | I9: 2151407 | J9: 1448705 | K9: 1437260
B10: 注：两新一重项目之间有重复，存在即是新型城镇化，又是新基建，个别项目具有三重身份。

Sheet 4.一级项目储备库 (hidden)
A1: 新平彝族傣族自治县“十四五”规划建设项目表（县直单位）
A2: 编制单位：新平县发展和改革局 | F2: 编制时间：2020年7月28日 | H2: 填表联系人及电话：方涛 7011150 | M2: 联系领导：李睿 | P2: 单位：万元
A3: 序号 | B3: 行业分类 | C3: 项目名称 | D3: 建设性质 | E3: 建设地点 | F3: 建设内容及规模 | G3: 建设时间 | H3: 项目总投资 | I3: 其中：投资情况 | P3: 项目业主 | Q3: 备注 | R3: 十大行业 | S3: 新型城镇化 | T3: 新型基础设施 | U3: 一重
I4: 到2020年累计完成投资 | J4: “十四五”期间规划投资 | K4: “十四五”年度投资建设规划
K5: 2021年 | L5: 2022年 | M5: 2023年 | N5: 2024年 | O5: 2025年
A6: ① | B6: ② | C6: ③ | D6: ④ | E6: ⑤ | F6: ⑥ | G6: ⑦ | H6: ⑧ | I6: ⑨ | J6: ⑩ | K6: ⑪ | L6: ⑫ | M6: ⑬ | N6: ⑭ | O6: ⑮ | P6: ⑯ | Q6: ⑰
A7: 合计 | E7: =E8+E63+E80+E82+E106+E196+E208+E245+E272+E285+E450+E466+E515+E551+E580+E627+E651+E662+E680+E683+E685+E736+E740+E742+E744+E746+E750+E760+E767+E769+E773+E775+E780 -> 742 | H7: =H8+H63+H80+H82+H106+H196+H208+H245+H272+H285+H450+H466+H515+H551+H580+H627+H651+H662+H680+H683+H685+H736+H740+H742+H744+H746+H750+H760+H767+H769+H773+H775+H780 -> 18272898 | I7: 802390 | J7: 16040448 | K7: 2534876 | L7: 3468673 | M7: 4313124 | N7: 3052260 | O7: 2671515
A8: 一 | C8: 县农业农村局 | E8: =COUNT(A9:A62) -> 54 | H8: =SUM(H9:H62) -> 1035924 | I8: =SUM(I9:I62) -> 63964 | J8: 971960 | K8: 241176 | L8: 268054 | M8: 168326 | N8: 155398 | O8: 139006
A9: 1 | B9: 农林牧渔 | C9: 新平县柑桔绿色生产技术应用基地建设 | D9: 改建 | E9: 新平县 | F9: 在现有连片100亩以上桔园内改造提升灌水、施肥、施药设施，建设5万亩以上水肥一体化、药肥一体化管网设施。 选择连片100亩以上的山地桔园，建设覆盖3万亩山地果园的双轨运输轨道。 | G9: 2021.3-2025.12 | H9: =I9+J9 -> 22000 | I9: 0 | J9: =K9+L9+M9+N9+O9 -> 22000 | K9: 4400 | L9: 4400 | M9: 4400 | N9: 4400 | O9: 4400 | P9: 新平县农业农村局 | R9: 农业 | S9: 否 | T9: 否 | U9: 否
A10: 2 | B10: 农林牧渔 | C10: 新平县芒果高标准基地示范园建设项目 | D10: 新建 | E10: 新平县 | F10: 规划面积2万亩，配套建设节水管网、机耕路、交易市场。 | G10: 2020.6-2025.12 | H10: 9200 | I10: 200 | J10: 9000 | K10: 1800 | L10: 1800 | M10: 1800 | N10: 1800 | O10: 1800 | P10: 新平县农业农村局 | R10: 农业 | S10: 否 | T10: 否 | U10: 否
A11: 3 | B11: 农林牧渔 | C11: 新平县特色水果产业基地建设项目 | D11: 新建 | E11: 新平县 | F11: 实施香蕉、软籽石榴、牛油果、蓝莓、西番莲、人参果、火龙果、五丫梨、桃等特色水果产业基地建设。规划总面积3万亩。配套建设育苗基地600亩，果园道路86千米，引水管道120千米，田间灌溉管网7000千米，配套建设蓄水设施。 | G11: 2020.1-2025.12 | H11: 27900 | I11: 2900 | J11: 25000 | K11: 5000 | L11: 5000 | M11: 5000 | N11: 5000 | O11: 5000 | P11: 新平县农业农村局 | R11: 农业 | S11: 否 | T11: 否 | U11: 否
A12: 4 | B12: 农林牧渔 | C12: 新平县德康生猪养殖建设项目 | D12: 其他 | E12: 各乡镇 | F12: 建设年出栏肉猪1000头以上的家庭农场500个单元，建设15000头父母代种猪场1个，配套建设存栏200头公猪站1个；建设年出栏肉猪20000头以上的规模化育肥场10个，建设为德康生猪养殖家庭农场、父母代种猪场提供人工授精精液的种公猪站1个。 | G12: 2018.3-2025.12 | H12: 160504 | I12: 52114 | J12: 108390 | K12: 25000 | L12: 28200 | M12: 28190 | N12: 13000 | O12: 14000 | P12: 新平县农业农村局 | R12: 农业 | S12: 否 | T12: 否 | U12: 否
A13: 5 | B13: 农林牧渔 | C13: 新平县肉牛养殖基地建设项目 | D13: 其他 | E13: 新平县 | F13: 引入良种，配套饲料基地建设，集约化育肥，年出栏肉牛10000头以上。 | G13: 2021.1-2025.12 | H13: 2500 | J13: 2500 | K13: 500 | L13: 500 | M13: 500 | N13: 500 | O13: 500 | P13: 新平县农业农村局 | R13: 农业 | S13: 否 | T13: 否 | U13: 否
A14: 6 | B14: 农林牧渔 | C14: 新平县山羊养殖基地建设项目 | D14: 其他 | E14: 新平县 | F14: 引入良种，配套饲料基地建设，集约化育肥，年出栏山羊15000只以上。 | G14: 2021.1-2025.12 | H14: 2500 | J14: 2500 | K14: 500 | L14: 500 | M14: 500 | N14: 500 | O14: 500 | P14: 新平县农业农村局 | R14: 农业 | S14: 否 | T14: 否 | U14: 否
A15: 7 | B15: 农林牧渔 | C15: 新平县禽类养殖基地建设项目 | D15: 其他 | E15: 新平县 | F15: 建立本土良种繁育场，发展林下土禽养殖，设计规模100万羽； 发展规模化特色养殖，建设规模10万羽。 | G15: 2020.4-2025.12 | H15: 3080 | I15: 80 | J15: 3000 | K15: 600 | L15: 600 | M15: 600 | N15: 600 | O15: 600 | P15: 新平县农业农村局 | R15: 农业 | S15: 否 | T15: 否 | U15: 否
A16: 8 | B16: 农林牧渔 | C16: 新平县生态蔬菜生产基地建设项目 | D16: 其他 | E16: 新平县 | F16: 建设蔬菜生产基地6万亩。重点以节水灌溉水池、喷滴灌系统、沟渠、田间道路等配套建设。 发展刺脑包、香椿、茶叶菜、野花等林下野菜，规划建设2万亩。 | G16: 2020.1-2025.12 | H16: 12000 | I16: 2000 | J16: 10000 | K16: 2000 | L16: 2000 | M16: 2000 | N16: 2000 | O16: 2000 | P16: 新平县农业农村局 | R16: 农业 | S16: 否 | T16: 否 | U16: 否
A17: 9 | B17: 农林牧渔 | C17: 新平县林下魔芋种植基地建设项目 | D17: 新建 | E17: 新平县 | F17: 利用核桃林地发展林下魔芋种植，规划种植2.5万亩。 | G17: 2021.1-2025.12 | H17: 11000 | J17: 11000 | K17: 2200 | L17: 2200 | M17: 2200 | N17: 2200 | O17: 2200 | P17: 新平县农业农村局 | R17: 农业 | S17: 否 | T17: 否 | U17: 否
A18: 10 | B18: 农林牧渔 | C18: 新平县哀牢中草药基地建设项目 | D18: 其他 | E18: 新平县 | F18: 建成滇黄精、滇重楼、滇龙胆等药用植物种质资源圃，保育民族药用植物300种、种质资源3000份，繁育区域重要中药材良种。 建设3.7万亩以上良种良法配套应用的中药材规范化种植基地。 | G18: 2021.1-2025.12 | H18: 26200 | I18: 400 | J18: 25800 | K18: 1800 | L18: 6000 | M18: 6000 | N18: 6000 | O18: 6000 | P18: 新平县农业农村局 | R18: 农业 | S18: 否 | T18: 否 | U18: 否
A19: 11 | B19: 农林牧渔 | C19: 新平县甘蔗高产高效高标准农田建设项目 | D19: 新建 | E19: 新平县 | F19: 建设新品种引进试验示范基地250亩。建设新品种筛选、繁育基地建设1000亩。品种改良3000亩。 推广甘蔗全膜覆盖轻简栽培技术50000亩。推广蔗地整地、开沟、理墒机械化应用50000亩。 | G19: 2021.1-2025.12 | H19: 4200 | I19: 0 | J19: 4200 | K19: 835 | L19: 800 | M19: 830 | N19: 845 | O19: 890 | P19: 新平县农业农村局 | R19: 农业 | S19: 否 | T19: 否 | U19: 否
A20: 12 | B20: 农林牧渔 | C20: 新平县万亩生态有机茶园改造工程项目 | D20: 改建 | E20: 者竜乡、平掌乡、水塘镇 | F20: 对万亩茶叶进行有机标准化改造，嫁接优质茶叶10000亩，铺设1.6米宽的8000米道路，发展有机茶园2.4万亩。 | G20: 2021.1-2025.12 | H20: 12500 | J20: 12500 | K20: 2500 | L20: 2500 | M20: 2500 | N20: 2500 | O20: 2500 | P20: 新平县农业农村局 | R20: 农业 | S20: 否 | T20: 否 | U20: 否
A21: 13 | B21: 农林牧渔 | C21: 新平县有机香料基地建设项目 | D21: 新建 | E21: 者竜乡、老厂乡、水塘镇 | F21: 在哀牢山区发展种植以草果、八角、花椒、香茅草等为主的香料，规划建设面积25000亩，建设管网30千米，农耕道路100千米。 | G21: 2021.1-2025.12 | H21: 17500 | J21: 17500 | K21: 3500 | L21: 3500 | M21: 3500 | N21: 3500 | O21: 3500 | P21: 新平县农业农村局 | R21: 农业 | S21: 否 | T21: 否 | U21: 否
A22: 14 | B22: 农林牧渔 | C22: 新平县食用菌类生产基地建设项目 | D22: 新建 | E22: 新平县 | F22: 规划种植人工菌2.3万亩， | G22: 2021.1-2025.12 | H22: 8000 | J22: 8000 | K22: 1400 | L22: 1400 | M22: 1400 | N22: 1400 | O22: 2400 | P22: 新平县农业农村局 | R22: 农业 | S22: 否 | T22: 否 | U22: 否
A23: 15 | B23: 农林牧渔 | C23: 新平县生态红米生产基地建设项目 | D23: 新建 | E23: 建兴乡、新化乡 | F23: 规划种植生态红米12000亩， | G23: 2021.1-2025.12 | H23: 6000 | J23: 6000 | K23: 1200 | L23: 1200 | M23: 1200 | N23: 1200 | O23: 1200 | P23: 新平县农业农村局 | R23: 农业 | S23: 否 | T23: 否 | U23: 否
A24: 16 | B24: 农林牧渔 | C24: 新平县高粱种植示范区建设项目 | D24: 新建 | E24: 新平县 | F24: 建设糯高粱标准化示范基地10000亩（每年2000亩）。 | G24: 2022.1-2023.12 | H24: 1500 | J24: 1500 | K24: 300 | L24: 300 | M24: 300 | N24: 300 | O24: 300 | P24: 新平县农业农村局 | R24: 农业 | S24: 否 | T24: 否 | U24: 否
A25: 17 | B25: 农林牧渔 | C25: 新平县观赏鱼－锦鲤规模化养殖项目 | D25: 新建 | E25: 漠沙镇 | F25: 租地500亩，建鱼池400亩，引进种鱼，建孵化育苗车间 | G25: 2021.2-2025.6 | H25: 5000 | J25: 5000 | K25: 3500 | L25: 800 | M25: 500 | N25: 100 | O25: 100 | P25: 新平县农业农村局 | R25: 农业 | S25: 否 | T25: 否 | U25: 否
A26: 18 | B26: 农林牧渔 | C26: 新平县稻田高效生态养殖项目 | D26: 新建 | E26: 新平县 | F26: 鱼凼养殖1250亩，每年250亩，沟溜养殖3750亩，每年750亩。 | G26: 2021.2-2025.9 | H26: 250 | J26: 250 | K26: 50 | L26: 50 | M26: 50 | N26: 50 | O26: 50 | P26: 新平县农业农村局 | R26: 农业 | S26: 否 | T26: 否 | U26: 否
A27: 19 | B27: 农林牧渔 | C27: 新平县畜禽屠宰场建设项目 | D27: 新建 | E27: 新平县 | F27: 建设年屠宰100万头的生猪屠宰场1座，建设年屠宰500万只的家禽屠宰场1座。 | G27: 2021.3-2025.12 | H27: 32500 | I27: 0 | J27: 32500 | K27: 1000 | L27: 1500 | M27: 0 | N27: 5000 | O27: 25000 | P27: 新平县农业农村局 | R27: 农业 | S27: 否 | T27: 否 | U27: 否
A28: 20 | B28: 农林牧渔 | C28: 亚洲·新平柑桔产业孵化园建设项目 | D28: 新建 | E28: 新平县戛洒镇 | F28: 项目占地550亩。项目建设内容为： 1.亚洲·新平柑桔技术研发中心； 2.亚洲·新平柑桔技术推广中心； 3.亚洲·新平柑桔种苗繁育中心； 4.亚洲·新平产品营销中心； 5.亚洲·新平柑桔产品质检中心； 6.亚洲·新平柑桔智慧云中心； 7.建设10万平方米标准化厂房、5万立方米冷库等园区基础设施配套项目。 | G28: 2021.01-2022.12 | H28: 50000 | J28: 50000 | K28: 37000 | L28: 13000 | P28: 新平县农业农村局 | R28: 农业 | S28: 否 | T28: 否 | U28: 否
A29: 21 | B29: 农林牧渔 | C29: 新平县柑桔“三品一标”生产基地和区域公共品牌建设工程 | D29: 新建 | E29: 新平县戛洒镇 | F29: 全面推进新平柑桔品种、品质、品牌和标志性产业提档升级，果园道路硬化工程80公里，搭建新平柑桔区域公共品牌全媒体推介平台 | G29: 2021.01-2022.12 | H29: 11500 | J29: 11500 | K29: 2000 | L29: 9500 | P29: 新平县农业农村局 | R29: 农业 | S29: 否 | T29: 否 | U29: 否
A30: 22 | B30: 农林牧渔 | C30: 新平县柑桔初加工能力提升项目 | D30: 新建 | E30: 新平县戛洒镇 | F30: 建设（含改造提升）选果生产线23条 | G30: 2021.01- 2022.12 | H30: 18400 | J30: 18400 | K30: 4000 | L30: 14400 | P30: 新平县农业农村局 | R30: 农业 | S30: 否 | T30: 否 | U30: 否
A31: 23 | B31: 农林牧渔 | C31: 新平县普柑茶生产线建设项目 | D31: 新建 | E31: 新平县戛洒镇 | F31: 目占地10亩，主体厂房2000平方米，购置普柑挖肉机、普柑茶烘干机、环保水处理等设备62台（套）。年产普柑茶10000吨。 | G31: 2021.01- 2022.12 | H31: 10000 | J31: 10000 | K31: 2000 | L31: 8000 | P31: 新平县农业农村局 | R31: 农业 | S31: 否 | T31: 否 | U31: 否
A32: 24 | B32: 农林牧渔 | C32: 新平县柑桔精深加工项目建设项目 | D32: 新建 | E32: 新平县戛洒镇 | F32: 年处理鲜果6万吨的桔皮精油生产线、建设年处理鲜果6万吨NFC果汁生产线、柑桔籽油生产线、建设年产5万吨的饲料加工厂。 | G32: 2021.01- 2022.12 | H32: 25000 | J32: 25000 | K32: 5000 | L32: 20000 | P32: 新平县农业农村局 | R32: 农业 | S32: 否 | T32: 否 | U32: 否
A33: 25 | B33: 农林牧渔 | C33: 新平县戛洒美丽乡村建设项目 | D33: 新建 | E33: 新平县戛洒镇 | F33: 1.在曼哈、平寨、南蚌、耀南等村（社区）打造100个美丽乡村人居环境整治示范点，实施村庄绿化、亮化、美化工程；建设活动场地和体育设施、公益房、公厕、道路硬化、污水处理、垃圾清运等设施设备；开展林果产业发展，村民技能培训等项目。 2.实施东瓜林、耀南、平田、发启、达哈、磨刀、新寨、大田、腊戛底等17个村委会业务用房修缮，并建立村史馆。 | G33: 2021.01- 2022.12 | H33: 20000 | J33: 20000 | K33: 10000 | L33: 10000 | P33: 新平县农业农村局 | R33: 农业 | S33: 是 | T33: 否 | U33: 否
A34: 26 | B34: 农林牧渔 | C34: 新平县戛洒镇传统村落提升改造项目 | D34: 新建 | E34: 新平县戛洒镇 | F34: 1.实施土锅寨、曼秀、曼湾、速都、曼李、旋涡、马家寨、大平掌、南薅、南碱10个传统村落提升改造项目。重点开展传统民居外观改造提升和内部宜居功能提升，纺织、刺绣、土陶等传统手工艺传承及产业化开发，花腰傣传统舞蹈、节庆、农耕技艺等民俗文化传承、展示及旅游体验； 2.建设特色产品线上线下综合营销平台； | G34: 2021.01- 2022.12 | H34: 20000 | J34: 20000 | K34: 5000 | L34: 15000 | P34: 新平县农业农村局 | R34: 农业 | S34: 否 | T34: 否 | U34: 否
A35: 27 | B35: 农林牧渔 | C35: 新平县戛洒镇柑桔博物馆 | D35: 新建 | E35: 新平县戛洒镇 | F35: 建设集柑桔品种科普展示、种植科技展示、加工技艺展示、衍生品展示、数据展示、纪念品销售、管理用房、停车场、充电桩等。 | G35: 2021.01- 2022.12 | H35: 5000 | J35: 5000 | K35: 2000 | L35: 3000 | P35: 新平县农业农村局 | R35: 农业 | S35: 否 | T35: 否 | U35: 否
A36: 28 | B36: 农林牧渔 | C36: 新平县戛洒镇百家千户休闲农业产业联盟提升工程 | D36: 新建 | E36: 新平县戛洒镇 | F36: 实施100家以民宿、农庄、特色农产品工坊为主的设施设备、服务、生产能力提升工程。每1家民宿、农庄、特色农产品工坊至少与10户农户建立稳定的农产品生产、购销或双方认可的利益分配和链结机制，带动1000户以上农户深度参与农旅融合发展。 | G36: 2021.01- 2022.12 | H36: 10000 | J36: 10000 | K36: 5000 | L36: 5000 | P36: 新平县农业农村局 | R36: 农业 | S36: 否 | T36: 否 | U36: 否
A37: 29 | B37: 农林牧渔 | C37: 新平县红河流域农村污水垃圾处理设施建设项目 | D37: 新建 | E37: 新平县戛洒镇 | F37: 实施戛洒、水塘、漠沙柑桔产业园农村污水收集管网及污水处理设施建设、垃圾及污水处理设施运营管理、涉及44个行政村、1054个自然村、受益人口96469，新增农村污水日处理能力5700立方米，年收集处理垃圾4.23万吨。 | G37: 2021.01- 2022.12 | H37: 6000 | J37: 6000 | K37: 3000 | L37: 3000 | P37: 新平县农业农村局 | R37: 公共设施管理业 | S37: 是 | T37: 否 | U37: 否
A38: 30 | B38: 制造业 | C38: 新平县晶凯生物科技有限公司年产15万吨有机肥项目 | D38: 新建 | E38: 新平县戛洒镇 | F38: 在新平县戛洒镇新寨村委会棉花河建设厂区规划面积62亩的有机肥生产线。建设三条独立生产线， 年产15万吨生物肥料。其中生物有机肥5万吨 有机无机肥5万吨 复合肥5万吨。 | G38: 2021.01-2022.12 | H38: 10000 | J38: 10000 | K38: 4000 | L38: 6000 | P38: 新平县农业农村局 | R38: 工业 | S38: 否 | T38: 否 | U38: 否
A39: 31 | B39: 农林牧渔 | C39: 新平县农产品初加工能力提升项目 | D39: 其他 | E39: 新平县 | F39: 通过加装近红外及光电品质分选功能模块等技术手段，在项目区建设（含改造提升）6通道的柑橘选果生产线23条，带动项目区果品分选从初级的按大小、重量分选向按内在品质分选跨越。每条生产线投资800万元。 建设果蔬预冷保鲜冷库10万立方米，每立方米投资650元。配套建设货运周转场地及附设业务用房。 扩大茶叶初制加工产能，完成1000吨生态茶鲜叶和50吨有机茶鲜叶的初制加工。 | G39: 2021.1-2025.12 | H39: =I39+J39 -> 24000 | I39: 6000 | J39: =K39+L39+M39+N39+O39 -> 18000 | K39: 3600 | L39: 3600 | M39: 3600 | N39: 3600 | O39: 3600 | P39: 新平县农业农村局 | R39: 农业 | S39: 否 | T39: 否 | U39: 否
A40: 32 | B40: 农林牧渔 | C40: 新平县柑桔深加工能力建设项目 | D40: 其他 | E40: 新平县 | F40: 继续建设普柑茶生产线。项目占地10亩，主体厂房2000平方米，购置普柑挖肉机、普柑茶烘干机、环保水处理等设备62台（套）。年产普柑茶10000吨。 新建NFC果汁生产线。项目占地30亩，建设机电一体化、多功能模块化、自动化、标准化的的NFC果汁生产线。年处理鲜橙4万吨，年产果汁2万吨。 | G40: 2021.03-2025.12 | H40: 11000 | J40: 11000 | K40: 2200 | L40: 2200 | M40: 2200 | N40: 2200 | O40: 2200 | P40: 新平县农业农村局 | R40: 农业 | S40: 否 | T40: 否 | U40: 否
A41: 33 | B41: 农林牧渔 | C41: 新平县优质杜仲茶精深加工项目 | D41: 扩建 | E41: 平掌乡 | F41: 扩大杜仲种植基地到1000亩。扩建1000平方米，实现杜仲茶精深加工年产100吨。 | G41: 2021.3-2024.12 | H41: 1200 | J41: 1200 | K41: 600 | L41: 200 | M41: 200 | N41: 200 | P41: 新平县农业农村局 | R41: 农业 | S41: 否 | T41: 否 | U41: 否
A42: 34 | B42: 农林牧渔 | C42: 新平县现代农业产业园建设项目 | D42: 新建 | E42: 平甸乡、戛洒镇 | F42: 规划面积10000亩，建成旅游、养生、农场体验、休闲度假、科技示范、创意农业示范、基础工程及景观区。辐射带动周边地区旅游住宿餐饮业的发展，预计实现产值12029.14万元。 | G42: 2021.1-2025.12 | H42: 33783 | I42: 0 | J42: 33783 | K42: 200 | L42: 100 | M42: 1000 | N42: 15600 | O42: 16883 | P42: 新平县农业农村局 | R42: 农业 | S42: 否 | T42: 否 | U42: 否
A43: 35 | B43: 农林牧渔 | C43: 新平县现代农业绿色有机产业园 | D43: 新建 | E43: 新平县 | F43: 建设1.2万亩现代农业综合示范园。其中：建设16万平方米标准化养殖圈舍，年出栏肥猪20万头；建设绿色柑橘基地1万亩，建设有机茶基地1000亩；配套建设户外营地观光园、农旅文化产业园。 | G43: 2020.6-2025.12 | H43: 166200 | I43: 200 | J43: 166000 | K43: 30000 | L43: 40000 | M43: 50000 | N43: 25000 | O43: 21000 | P43: 新平县农业农村局 | R43: 农业 | S43: 否 | T43: 否 | U43: 否
A44: 36 | B44: 农林牧渔 | C44: 新平县高标准农田建设项目 | D44: 新建 | E44: 各乡镇 | F44: 建设高标准农田30万亩，每亩投资1500元，实施土地平整、沟渠、农耕道路、水池、管道建设等。 | G44: 2021.1-2025.12 | H44: 45000 | J44: 45000 | K44: 9000 | L44: 9000 | M44: 9000 | N44: 9000 | O44: 9000 | P44: 新平县农业农村局 | R44: 农业 | S44: 否 | T44: 否 | U44: 否
A45: 37 | B45: 农林牧渔 | C45: 新平县粮食作物绿色高产高效种植项目 | D45: 新建 | E45: 新平县 | F45: 规划种植示范区主要粮食作物10万亩。 | G45: 2021.1-2025.12 | H45: 3000 | J45: 3000 | K45: 600 | L45: 600 | M45: 600 | N45: 600 | O45: 600 | P45: 新平县农业农村局 | R45: 农业 | S45: 否 | T45: 否 | U45: 否
A46: 38 | B46: 农林牧渔 | C46: 新平县饲料加工厂建设项目 | D46: 新建 | E46: 桂山街道办 | F46: 建设年产30万吨的饲料加工厂1座 | G46: 2021.1-2025.12 | H46: 10000 | J46: 10000 | N46: 9000 | O46: 1000 | P46: 新平县农业农村局 | R46: 农业 | S46: 否 | T46: 否 | U46: 否
A47: 39 | B47: 农林牧渔 | C47: 新平县畜禽运输车辆洗消中心建设项目 | D47: 新建 | E47: 新平县 | F47: 建设对生猪运输车辆等清洗消毒的洗消中心4个 | G47: 2021.3-2025.12 | H47: 4000 | J47: 4000 | K47: 2000 | L47: 1500 | M47: 500 | P47: 新平县农业农村局 | R47: 农业 | S47: 否 | T47: 否 | U47: 否
A48: 40 | B48: 农林牧渔 | C48: 新平县高素质农民科技培训项目 | D48: 其他 | E48: 新平县 | F48: 培训高素质农民800人以上，开展农民科技培训3万人次以上。建设项目65个，重点打造蔬菜种植合作社15个。 | G48: 2020.1-2025.12 | H48: 2095 | I48: 70 | J48: 2025 | K48: 405 | L48: 405 | M48: 405 | N48: 405 | O48: 405 | P48: 新平县农业农村局 | R48: 农业 | S48: 否 | T48: 否 | U48: 否
A49: 41 | B49: 农林牧渔 | C49: 新平县农产品质量安全监测系统建设项目 | D49: 新建 | E49: 新平县 | F49: 对《新平县农产品质量安全监管目录》内的农产品（蔬菜水果）生产企业生产的产品力争做到100％全覆盖。十四五期间计划开展主要农产品农药残留定量检测3000批次、快速检测14000批次，建设质量安全体系建设15个；并开展农产品质量安全绿色食品认证20个。 | G49: 2021.1-2025.12 | H49: 790 | J49: 790 | K49: 182 | L49: 153 | M49: 158 | N49: 128 | O49: 169 | P49: 新平县农业农村局 | R49: 农业 | S49: 是 | T49: 是 | U49: 否
A50: 42 | B50: 农林牧渔 | C50: 新平县蔬菜工厂化育苗基地建设项目 | D50: 新建 | E50: 新平县 | F50: 建设工厂化育苗基地200亩。 | G50: 2021.8-2025.12 | H50: 800 | J50: 800 | K50: 160 | L50: 160 | M50: 160 | N50: 160 | O50: 160 | P50: 新平县农业农村局 | R50: 农业 | S50: 是 | T50: 否 | U50: 否
A51: 43 | B51: 农林牧渔 | C51: 新平县重要中药材种植技术标准构建及应用项目 | D51: 新建 | E51: 新平县 | F51: 建立露水草、滇黄精、滇重楼、芦荟、滇龙胆等重要中药材种子种苗质量标准、规范化种植技术规程等质量标准，并规范化种植示范基地。 | G51: 2025.1-2025.12 | H51: 100 | J51: 100 | O51: 100 | P51: 新平县农业农村局 | R51: 农业 | S51: 否 | T51: 否 | U51: 否
A52: 44 | B52: 农林牧渔 | C52: 新平县柑桔产业产学研成果转化能力提升项目 | D52: 其他 | E52: 新平县 | F52: 深化与中柑所等国内一流科研单位的产学研合作，针对制约新平柑桔产业发展的精准施肥、绿色防控、产品品控等重点难点问题进行攻关，形成与新平环境资源承载力相适应的生产技术模式。 新建新平恒冠泰达职业技能培训学校。项目占地16857.3平方米，总建筑面积8713.89平方米，新建4层框架结构实训楼和学员住宿楼，活动室2间、厨房餐厅1间、操场等配套教学设施2套。 | G52: 2021.02-2025.03 | H52: 6350 | J52: 6350 | K52: 1270 | L52: 1270 | M52: 1270 | N52: 1270 | O52: 1270 | P52: 新平县农业农村局 | R52: 农业 | S52: 否 | T52: 否 | U52: 否
A53: 45 | B53: 农林牧渔 | C53: 新平县大型沼气工程建设项目 | D53: 新建 | E53: 新平县 | F53: 建设反应装置为2000m31座、1500m34座、1000m310座、800m31座。 | G53: 2021.8-2025.12 | H53: 8000 | J53: 8000 | K53: 2000 | L53: 1500 | M53: 1500 | N53: 1500 | O53: 1500 | P53: 新平县农业农村局 | R53: 农业 | S53: 否 | T53: 否 | U53: 否
A54: 46 | B54: 农林牧渔 | C54: 云南鼎成农业科技有限公司沼液循环利用建设项目 | D54: 新建 | E54: 漠沙镇 | F54: 建成3个1000立方米储液池及62千米沼液输送管网及6.75千米电网改造购置6台增压泵。 | G54: 2021.3-2023.12 | H54: 990 | J54: 990 | K54: 600 | L54: 300 | M54: 90 | P54: 新平县农业农村局 | R54: 农业 | S54: 否 | T54: 否 | U54: 否
A55: 47 | B55: 农林牧渔 | C55: 新平县太阳能热水器安装工程项目 | D55: 新建 | E55: 新平县 | F55: 计划争取太阳能热水器6000台，每年在全县实施太阳能热水器项目建设1200户，争取中央、省级财政投资600万元，群众投资600万元。 | G55: 2021.1-2025.12 | H55: 600 | J55: 600 | K55: 120 | L55: 120 | M55: 120 | N55: 120 | O55: 120 | P55: 新平县农业农村局 | R55: 农业 | S55: 否 | T55: 否 | U55: 否
A56: 48 | B56: 农林牧渔 | C56: 新平县病旧沼气池安全处置工程项目 | D56: 改建 | E56: 新平县 | F56: 计划进行改厕所2000个，每年400个；根据农户愿意，可以进行修复改造的，进行修复2000户，每年计划400户；对无法使用的，为了安全实行填埋，计划2000口，每年计划400口。 | G56: 2021.1-2025.12 | H56: 600 | J56: 600 | K56: 120 | L56: 120 | M56: 120 | N56: 120 | O56: 120 | P56: 新平县农业农村局 | R56: 农业 | S56: 否 | T56: 否 | U56: 否
A57: 49 | B57: 农林牧渔 | C57: 新平县农用地土壤污染防治工程项目 | D57: 新建 | E57: 新平县 | F57: 修复受污染耕地4000亩 | G57: 2021.1-2024.12 | H57: 400 | J57: 400 | K57: 100 | L57: 100 | M57: 100 | N57: 100 | P57: 新平县农业农村局 | R57: 农业 | S57: 否 | T57: 否 | U57: 否
A58: 50 | B58: 农林牧渔 | C58: 新平县耕地保护与质量提升项目 | D58: 新建 | E58: 新平县 | F58: 耕地土壤改良示范103000亩 | G58: 2021.1-2025.12 | H58: 2600 | J58: 2600 | K58: 600 | L58: 500 | M58: 500 | N58: 500 | O58: 500 | P58: 新平县农业农村局 | R58: 农业 | S58: 否 | T58: 否 | U58: 否
A59: 51 | B59: 农林牧渔 | C59: 新平县秸秆资源化利用工程项目 | D59: 新建 | E59: 新平县 | F59: 通过3年时间，推行秸秆资源化利用5万亩 | G59: 2021.1-2023.12 | H59: 1000 | J59: 1000 | K59: 334 | L59: 333 | M59: 333 | P59: 新平县农业农村局 | R59: 农业 | S59: 否 | T59: 否 | U59: 否
A60: 52 | B60: 农林牧渔 | C60: 新平县规模化以下畜禽养殖污染处理项目 | D60: 新建 | E60: 新平县 | F60: 拟建农村人畜分离点100个，主要建设内容，畜圈异地搬迁建设，配套水电路设施及养殖粪污处理设施。 | G60: 2021.1-2021.12 | H60: 10000 | J60: 10000 | K60: 10000 | P60: 新平县农业农村局 | R60: 农业 | S60: 否 | T60: 否 | U60: 否
A61: 53 | B61: 农林牧渔 | C61: 新平县粪污资源化利用整县推进项目 | D61: 新建 | E61: 新平县 | F61: 实施101个养殖场改造提升，配置高压冲洗机106台、干湿分离机84台，建设沉淀池3722立方米、堆粪棚2万平方米，沼气池3000立方米。实施规模化种猪场、养殖专业村粪污集中处理工程。建设3座有机肥加工厂，涉及生产规模合计16.5万吨。 | G61: 2021.1-2022.6 | H61: 5743 | J61: 5743 | K61: 5000 | L61: 743 | P61: 新平县农业农村局 | R61: 农业 | S61: 否 | T61: 否 | U61: 否
A62: 54 | B62: 农林牧渔 | C62: 新平县美丽乡村建设项目 | D62: 续建 | E62: 新平县 | F62: 亚尼社区6个小组雨污分离建设，硬化工程5200平方米，新建公厕2座；古城街道主要建设硬化工程8000平方米，排污管道建设9800米，11个小组的亮化工程，改建1座公厕；扬武镇主要建设硬化工程11100平方米，安装太阳能路灯27盏，猪圈改造80个，堆粪池84个，排污管道12000米；改建村庄公厕619座，硬化工程493个，每个村庄1000米，进行人畜分离、雨污分流、亮化、绿化、活动室、活动场地等建设。 | G62: 2021.1-2025.12 | H62: 147439 | J62: 147439 | K62: 35000 | L62: 35000 | M62: 35000 | N62: 35000 | O62: 7439 | P62: 新平县农业农村局 | R62: 农业 | S62: 否 | T62: 否 | U62: 否
A63: 二 | C63: 县林业和草原局 | E63: =COUNT(A64:A79) -> 16 | H63: =SUM(H64:H79) -> 165855 | I63: =SUM(I64:I79) -> 0 | J63: 165855 | K63: 35135 | L63: 33600 | M63: 34600 | N63: 32560 | O63: 29960
A64: 1 | B64: 信息传输软件和信息技术服务业 | C64: 新平县林草数据化系统建设项目 | D64: 新建 | E64: 县域12个乡镇（街道） | F64: 新建防火检查站卡口视频监控120个，新建瞭望台视频监控系统建设10套，升级改造5套；投资2650万元。境内各自然保护地安装远程监控近距红外线自拍相机等监测设施200套、视频监控系统2套，投资1300万。境内国家重点保护珍稀濒危极小种群绿孔雀、陈式苏铁、旱地油杉、伯乐树等资源分布区安装远程监控50套，投资500万元；新建有害生物远程视频监控设备100套1000万元；建立智能化、可视化、数据化的监测预警指挥中心1个200平方米，投资1000万元，项目共投资6450万元。 | G64: 2021.5-2022.05 | H64: 6450 | J64: 6450 | K64: 1210 | L64: 1060 | M64: 1060 | N64: 1560 | O64: 1560 | P64: 新平县林业和草原局 | Q64: 部分新增 | R64: 农业 | S64: 是 | T64: 是 | U64: 否
A65: 2 | B65: 农林牧渔 | C65: 新平县自然保护地管护站建设项目 | D65: 新建 | E65: 新平县哀牢山、磨盘山、新化乡 | F65: 建设哀牢山县级自然保护区2个，磨盘山国家森林自然公园2个，新化古州野林森林自然公园2个共6个保护地管护站，每个建设规模280平方，投资100万元，共计投资600万元。管护点7个、哨卡22、个巡护补给点20个，收容救护站1个500平方米，扑火队营房1个500平方米。3个木材检查站建设投资300万元。 | G65: 2023.1.-2023.12 | H65: 2900 | J65: 2900 | K65: 700 | L65: 600 | M65: 600 | N65: 500 | O65: 500 | P65: 新平县林业和草原局、哀牢山管护局 | Q65: 部分新增 | R65: 农业 | S65: 否 | T65: 否 | U65: 否
A66: 3 | B66: 农林牧渔 | C66: 新平县森林草原防火基础设施建设项目 | D66: 新建 | E66: 县域12个乡镇（街道） | F66: 新建瞭望台1座，50平方米，投资80万元；新建防火检查站50个每个30平方米，共375万元；新建防火公路450公里，投资2700万元；新建防火隔离带500公里，投资1500万元；运兵车购置20辆共投资400万元，摩托车10辆投资10万，消防水车购置2辆投资80万元，防火物资10批500万元。 | G66: 2021.1-2025.12 | H66: 5645 | J66: 5645 | K66: 1045 | L66: 1200 | M66: 1200 | N66: 1200 | O66: 1000 | P66: 新平县林业和草原局 | Q66: 部分新增 | R66: 农业 | S66: 否 | T66: 否 | U66: 否
A67: 4 | B67: 农林牧渔 | C67: 新平县核桃竹子林区道路建设项目 | D67: 新建 | E67: 县域12个乡镇（街道） | F67: 新建核桃竹子林区道路500公里，每公里投资5万元，共2500万元。修缮林区道路500公里，每公里投资3万元，共1500万元。 | G67: 2021.3-2025.12 | H67: 4000 | J67: 4000 | K67: 800 | L67: 800 | M67: 800 | N67: 800 | O67: 800 | P67: 新平县林业和草原局 | R67: 农业 | S67: 否 | T67: 否 | U67: 否
A68: 5 | B68: 农林牧渔 | C68: 新平县造林绿化保障性苗圃建设项目 | D68: 改建 | E68: 县域内 | F68: 总建设5000亩（1000亩/ 年）、每亩投资1万元。 | G68: 2021-2022 | H68: 5000 | J68: 5000 | K68: 1000 | L68: 1000 | M68: 1000 | N68: 1000 | O68: 1000 | P68: 新平县林业和草原局 | Q68: 增加规模 | R68: 农业 | S68: 否 | T68: 否 | U68: 否
A69: 6 | B69: 农林牧渔 | C69: 新平县大戛高速公路建设临时用地绿化恢复项目 | D69: 新建 | E69: 县域内 | F69: 大戛高速公路建设临时用地恢复造林5000亩，每亩1200元，造林树种：榕树、黄连木、云南松、清香木、旱冬瓜等。项目共计投资600万元。 | G69: 2021.1-2022.12 | H69: 600 | J69: 600 | K69: 120 | L69: 240 | M69: 240 | P69: 新平县林业和草原局 | Q69: 新增 | R69: 农业 | S69: 否 | T69: 否 | U69: 否
A70: 7 | B70: 农林牧渔 | C70: 新平县自然保护地勘界立标建设 | D70: 新建 | E70: 新平县 | F70: 新平县自然保护地勘界立标建设。安装国家级自然保护区200颗界桩、20座界碑、300块警示牌、指示牌。 | G70: 2021 | H70: 900 | J70: 900 | K70: 900 | P70: 新平县林业和草原局 | Q70: 新增 | R70: 农业 | S70: 否 | T70: 否 | U70: 否
A71: 8 | B71: 农林牧渔 | C71: 新平县哀牢山国家级保护区生态监测站建设 | D71: 新建 | E71: 哀牢山 | F71: 建设2个生态系统定位监测站1000平方米、气象监测站2个100平方米、鸟类监测环志站2个800平方米、野外生态教育点5个1000平方米、公众教育路线步道100公里、栈道50公里 | G71: 2021-2025 | H71: 2000 | J71: 2000 | K71: 400 | L71: 400 | M71: 400 | N71: 400 | O71: 400 | P71: 新平县林业和草原局 | Q71: 新增 | R71: 农业 | S71: 否 | T71: 否 | U71: 否
A72: 9 | B72: 农林牧渔 | C72: 新平县哀牢山国家级保护区科研宣教中心及配套建设 | D72: 新建 | E72: 新平县 | F72: 建设科研宣教用房500平方米、宣教场馆200平方米，配备相应设备。 | G72: 2022-2024 | H72: 1600 | J72: 1600 | L72: 600 | M72: 600 | N72: 400 | P72: 新平县林业和草原局 | Q72: 新增 | R72: 农业 | S72: 否 | T72: 否 | U72: 否
A73: 10 | B73: 农林牧渔 | C73: 新平县乡村公路绿化美化 | D73: 新建 | E73: 县域乡镇（街道） | F73: 县乡村公路两侧绿化美化2000公里 | G73: 2021-2025 | H73: 10000 | J73: 10000 | K73: 2000 | L73: 2000 | M73: 2000 | N73: 2000 | O73: 2000 | P73: 新平县林业和草原局 | Q73: 新增 | R73: 农业 | S73: 否 | T73: 否 | U73: 否
A74: 11 | B74: 农林牧渔 | C74: 新平县林产品交易市场（含冷库）建设 | D74: 新建 | E74: 相关乡镇 | F74: 者竜、水塘、戛洒、漠沙、建兴、老厂、桂山各建一个。交易市场具备核桃加工、包装、交易、仓储、信息网络平台于一体的综合功能，创新农村电子商务模式和运营机制，实施“互联网+核桃”营销战略，解决当前我县核桃交易无市场、交易零乱的问题。每个集散地计划1000平米，其中含长20米，宽10米，高6米的冷库，库容1300立方米，100-200吨左右的产品的冷库一个。总投资3500万元. | G74: 2021-2025年 | H74: 3500 | J74: 3500 | K74: 700 | L74: 700 | M74: 700 | N74: 700 | O74: 700 | P74: 新平县林业和草原局 | Q74: 新增 | R74: 仓储冷链物流业 | S74: 是 | T74: 否 | U74: 否
A75: 12 | B75: 农林牧渔 | C75: 新平县城及面山绿化美化项目 | D75: 新建 | E75: 桂山、古城 | F75: 县城面山绿化美化项目，投资10000万元 | G75: 2021.07-2025.12 | H75: 10000 | J75: 10000 | K75: 2000 | L75: 2000 | M75: 2000 | N75: 2000 | O75: 2000 | P75: 新平县林业和草原局 | Q75: 新增 | R75: 农业 | S75: 否 | T75: 否 | U75: 否
A76: 13 | B76: 农林牧渔 | C76: 新平县村庄集镇绿化美化项目 | D76: 新建 | E76: 县域内 | F76: 11个异地搬迁点每个投资100万元，19个集镇每个投资200万元，1459个村庄每个投资40万元的绿化美化 | G76: 2021-2025年 | H76: 63260 | J76: 63260 | K76: 13260 | L76: 13000 | M76: 13000 | N76: 12000 | O76: 12000 | P76: 新平县林业和草原局 | Q76: 新增 | R76: 农业 | S76: 否 | T76: 否 | U76: 否
A77: 14 | B77: 农林牧渔 | C77: 新平县长江经济带生态修复治理项目 | D77: 新建 | E77: 戛洒镇、新化乡 | F77: 在戛洒集镇面山造林5000亩，造林树种：凤凰木、小叶榕、攀枝花。新化乡造林5000亩，造林树种：旱冬瓜、青香木、小叶榕等。 | G77: 2021-2024 | H77: 10000 | J77: 10000 | K77: 3000 | L77: 2000 | M77: 3000 | N77: 2000 | P77: 新平县林业和草原局 | Q77: 新增 | R77: 农业 | S77: 是 | T77: 否 | U77: 否
A78: 15 | B78: 农林牧渔 | C78: 新平县森林景观道建设项目 | D78: 新建 | E78: 县域内 | F78: 全县新建设森林景观道500公里，投资10000万元。 | G78: 2021.05-2025.12 | H78: 10000 | J78: 10000 | K78: 2000 | L78: 2000 | M78: 2000 | N78: 2000 | O78: 2000 | P78: 新平县林业和草原局 | Q78: 新增 | R78: 农业 | S78: 否 | T78: 否 | U78: 否
A79: 16 | B79: 农林牧渔 | C79: 新平县森林康养项目 | D79: 新建 | E79: 相关乡镇、新型林业经营主体基地 | F79: 建设磨盘山森林康养基地、哀牢山森林康养基地、戛洒镇万亩竹林森林康养基地、新平县新化乡古州野林森林康养基地、新平县黄草坝森林湿地康养基地，每个投资6000万元。 | G79: 2021-2025年 | H79: 30000 | J79: 30000 | K79: 6000 | L79: 6000 | M79: 6000 | N79: 6000 | O79: 6000 | P79: 新平县林业和草原局 | R79: 农业 | S79: 否 | T79: 否 | U79: 否
A80: 三 | C80: 县扶贫办 | E80: =COUNT(A81) -> 1 | H80: =SUM(H81) -> 6000 | I80: 0 | J80: 6000 | K80: 1000 | L80: 1300 | M80: 1500 | N80: 1200 | O80: 1000
A81: 1 | B81: 农林牧渔 | C81: 新平县巩固脱贫成果配套基础设施建设项目 | D81: 新建 | E81: 平掌乡、建兴乡、老厂乡等10个乡镇 | F81: 平掌乡、建兴乡、老厂乡等10个乡镇机耕路、农田灌溉设施等基础设施建设，巩固脱贫攻坚成果 | G81: 2021.1-2025.11 | H81: 6000 | J81: =SUM(K81:O81) -> 6000 | K81: 1000 | L81: 1300 | M81: 1500 | N81: 1200 | O81: 1000 | P81: 新平县扶贫办 | R81: 农业 | S81: 否 | T81: 否 | U81: 否
A82: 四 | C82: 县自然资源局 | E82: =COUNT(A83:A105) -> 23 | H82: =SUM(H83:H105) -> 53119 | I82: =SUM(I83:I105) -> 319 | J82: 52799 | K82: 28983 | L82: 11483 | M82: 2709 | N82: 3464 | O82: 6160
A83: 1 | B83: 农林牧渔 | C83: 玉溪市新平县平甸等2个乡（镇）小石缸等2个村土地整治（提质改造）项目 | D83: 新建 | E83: 平甸乡小石缸村委会、漠沙镇坡头村委会 | F83: 建设规模243.6394公倾，其中土地平整232.2154公顷。灌溉与排水工程，新建取水坝1座、4条斗渠4537米、5条农渠总计3903米、3条干管共计10532米、20条支管总计4520米，配建镇墩250座、沉砂池9座，建设6条农沟共计10383米，修建9.8万m3的坝塘1座，2座容量为2000m3水池和14座100m3水池，修建DN600涵洞42座，盖板涵6座。田间道路工程，新建田间路2条总计2728米，改建田间道路4条总计10724米，新建生产路6条7103米，新建过水路面生产路1座，新建错车位8座。新建M7.5浆砌石挡墙13条总计919米，撒施有机肥量1067053.20公斤。 | G83: 2020.9-2021.9 | H83: 3100 | J83: 3100 | K83: 3100 | P83: 新平县自然资源局 | R83: 农业 | S83: 否 | T83: 否 | U83: 否
A84: 2 | B84: 农林牧渔 | C84: 玉溪市新平县平掌乡梭山等3个村土地整治（提质改造）项目 | D84: 新建 | E84: 梭山、平掌、瓦寺村委会 | F84: 建设规模399.2754公倾，其中土地平整393.7352公顷（其中水田292.4121公顷、水浇地101.3231公顷）。灌溉与排水工程，修建取水口3座，取水坝2座，新建管径DN250管道4条共计8167米，新建管径DN200管道2条共计6460米，新建管径DN40管道5条共计3209米，新建沉砂池9座、200立方米水池1座、阀门井1座、50立方米水池20座、15立方米水窖39座、农渠17条共计27826米、农沟3条总计1902米，修建盖板涵11座、DN600涵洞47座。田间道路工程，新建田间路1条2450米，改建田间道路5条总计14929米，新建生产路1条3274米，改建生产路6条总计6766米，新建错车位23座。新建M7.5浆砌石挡墙5条总计315米，撒施有机肥量1715269.75公斤。 | G84: 2020.11-2021.11 | H84: 2383 | J84: 2383 | K84: 2383 | P84: 新平县自然资源局 | R84: 农业 | S84: 否 | T84: 否 | U84: 否
A85: 3 | B85: 农林牧渔 | C85: 玉溪市新平县建兴乡建兴村土地整治（提质改造）项目 | D85: 新建 | E85: 建兴村委会 | F85: 建设规模532.5266公顷，其中土地平整528.2751公顷。灌溉与排水工程，修建取水口5座，新建管径DN250管道4条共计15612米，新建DN140mm支管13条,长1585.00米；新建镇墩66座；新建沉砂池7座；新建100m3水池13座；新建农渠22条，长22522米；农沟10条，总长8563米；修建盖板涵13座；修建DN600涵洞64座。田间道路工程，新建田间路1条2450米，改建田间道路4条总计5558米，改建田间道4条总计7907米；新建生产路9条共7989米；改建生产路6条共计4293米；过水路面1座；新建错车位8座。新建M7.5浆砌石挡墙10条总计2113米，撒施有机肥量2474892.724公斤。 | G85: 2021.3-2022.3 | H85: 3528 | J85: 3528 | K85: 3528 | P85: 新平县自然资源局 | R85: 农业 | S85: 否 | T85: 否 | U85: 否
A86: 4 | B86: 农林牧渔 | C86: 玉溪市新平县漠沙镇曼勒社区、漠沙农场土地整治（提质改造）项目 | D86: 新建 | E86: 漠沙农场、曼勒村委会 | F86: 建设规模339.0333公顷,建设内容包括土地平整、田间道路工程、灌溉设施工程（暂未提交成果）。 | G86: 2022.3-2023.3 | H86: 2034 | J86: 2034 | L86: 2034 | P86: 新平县自然资源局 | R86: 农业 | S86: 否 | T86: 否 | U86: 否
A87: 5 | B87: 农林牧渔 | C87: 玉溪市新平县老厂乡勐炳等3个村土地整治(提质改造）项目 | D87: 新建 | E87: 老厂乡勐炳、哈科底和转马都村民委员会 | F87: 建设规模167.5141公顷，建设内容包括土地平整、田间道路工程、灌溉设施工程（暂未提交成果）。 | G87: 2021.3-2022.3 | H87: 1069 | J87: 1069 | K87: 1069 | P87: 新平县自然资源局 | R87: 农业 | S87: 否 | T87: 否 | U87: 否
A88: 6 | B88: 农林牧渔 | C88: 玉溪市新平县老厂乡太和等2个村土地整治（提质改造）项目 | D88: 新建 | E88: 老厂乡太和、马家坝村委会 | F88: 建设规模137.5590公顷，其中土地平整105.5475公顷（其中水田84.5228公顷、水浇地21.0247公顷）。灌溉与排水工程，建设农渠共计26条总长32.291km；支管4条总长2.038km；新建蓄水池10座（500m³7座，200m³3座）、水窖36座、沉砂池1座、涵洞83座。田间道路工程，改建田间道3条总长7.558km。 | G88: 2020.11-2021.11 | H88: 1180 | J88: 1180 | K88: 1180 | P88: 新平县自然资源局 | R88: 农业 | S88: 否 | T88: 否 | U88: 否
A89: 7 | B89: 农林牧渔 | C89: 玉溪市新平县新化等2个乡老五斗等8个村土地整治（提质改造）项目 | D89: 新建 | E89: 新化乡老五斗、大寨、白达莫、海外、新甸、六竜、甸末和平甸乡白鹤村民委员会 | F89: 建设规模365.2453公顷，其中土地平整278.5245公顷。灌溉与排水工程，共新建农渠28条合计25.943km；干管6条合计22.258km；新建200m3水池1座、15m3水窖65座，建设道路边沟10条总长7.516 km，新建取水坝1座、沉砂池5座、涵洞92座。田间道路工程，建设田间道路工程，改建田间道11条总长16.440km，新建田间道路4条总长3.709km，改建生产路1条总长0.774 km。 | G89: 2020.11-2021.11 | H89: 3004 | J89: 3004 | K89: 3004 | P89: 新平县自然资源局 | R89: 农业 | S89: 否 | T89: 否 | U89: 否
A90: 8 | B90: 农林牧渔 | C90: 新平县老厂乡全域综合土地整治 | D90: 新建 | E90: 老厂乡 | F90: 建设规模2000 公顷,建设内容包括土地平整、田间道路工程、灌溉设施工程（未做可研）。 | G90: 2021.1-2025.12 | H90: 8000 | J90: 8000 | K90: 2000 | L90: 2000 | M90: 2000 | N90: 1000 | O90: 1000 | P90: 新平县自然资源局 | R90: 农业 | S90: 否 | T90: 否 | U90: 否
A91: 9 | B91: 农林牧渔 | C91: 玉溪市新平县建兴乡磨味等3个村土地整治土地整治（提质改造）项目 | D91: 新建 | E91: 建兴乡帽盒、磨味、挖窑村委会 | F91: 建设规模277.3182公顷,建设内容包括土地平整、田间道路工程、灌溉设施工程（未做可研）。 | G91: 2022.1-2023.1 | H91: 1664 | J91: 1664 | L91: 1664 | P91: 新平县自然资源局 | R91: 农业 | S91: 否 | T91: 否 | U91: 否
A92: 10 | B92: 农林牧渔 | C92: 玉溪市新平县漠沙镇胜利村土地整治（提质改造）项目 | D92: 新建 | E92: 漠沙镇胜利村委会 | F92: 建设规模54.4776公顷，建设内容包括土地平整、田间道路工程、灌溉设施工程（未做可研）。 | G92: 2022.1-2025-12 | H92: 327 | J92: 327 | L92: 327 | P92: 新平县自然资源局 | R92: 农业 | S92: 否 | T92: 否 | U92: 否
A93: 11 | B93: 农林牧渔 | C93: 玉溪市新平县水塘镇大口等2个村土地整治（提质改造）项目 | D93: 新建 | E93: 水塘镇波村、大口村委会 | F93: 建设规模171.1073公顷，建设内容包括土地平整、田间道路工程、灌溉设施工程（未做可研）。 | G93: 2023.1-2025-12 | H93: 1027 | J93: 1027 | L93: 1027 | P93: 新平县自然资源局 | R93: 农业 | S93: 否 | T93: 否 | U93: 否
A94: 12 | B94: 农林牧渔 | C94: 玉溪市新平县者竜乡向阳村土地整治土地整治（提质改造）项目 | D94: 新建 | E94: 者竜乡向阳村委会 | F94: 建设规模94.0953公顷，建设内容包括土地平整、田间道路工程、灌溉设施工程（未做可研）。 | G94: 2023.1-2025-12 | H94: 565 | J94: 565 | M94: 565 | P94: 新平县自然资源局 | R94: 农业 | S94: 否 | T94: 否 | U94: 否
A95: 13 | B95: 农林牧渔 | C95: 玉溪市新平县平掌乡曼干等2个村土地整治（提质改造）项目 | D95: 新建 | E95: 平掌乡富库、曼干村委会 | F95: 建设规模346.9622公顷，建设内容包括土地平整、田间道路工程、灌溉设施工程（未做可研）。 | G95: 2023.1-2025-12 | H95: 2082 | J95: 2082 | O95: 2082 | P95: 新平县自然资源局 | R95: 农业 | S95: 否 | T95: 否 | U95: 否
A96: 14 | B96: 农林牧渔 | C96: 玉溪市新平县漠沙等2个乡镇双河等3个村土地整治（提质改造）项目 | D96: 新建 | E96: 漠沙镇双河、西尼村委会、平甸乡弥勒村委会 | F96: 建设规模512.9838公顷，建设内容包括土地平整、田间道路工程、灌溉设施工程（未做可研）。 | G96: 2023.1-2025-12 | H96: 3078 | J96: 3078 | O96: 3078 | P96: 新平县自然资源局 | R96: 农业 | S96: 否 | T96: 否 | U96: 否
A97: 15 | B97: 农林牧渔 | C97: 玉溪市新平县水塘等2个乡镇南达等4个村土地整治（提质改造）项目 | D97: 新建 | E97: 水塘镇南达、旧哈和拉博村委会、戛洒镇新寨村委会 | F97: 建设规模410.7380公顷，建设内容包括土地平整、田间道路工程、灌溉设施工程（未做可研）。 | G97: 2023.1-2025-12 | H97: 2464 | J97: 2464 | N97: 2464 | P97: 新平县自然资源局 | R97: 农业 | S97: 否 | T97: 否 | U97: 否
A98: 16 | B98: 农林牧渔 | C98: 玉溪市新平县戛洒镇土地整治（提质改造）项目 | D98: 新建 | E98: 新平县戛洒镇 | F98: 实施土地平整343.33公顷，修建DN250干管1条、15000米；斗渠6条、9029米；新建农渠15条，长8542米；新建农沟15条，长8942米；新建100立方米水池11座；新建15立方米水窖23座；新建田间道4条，长1240米；改建田间道4条，长1762米；新建生产路12条，长6099米；改建生产路18条，长8902米。增收1442吨有机肥改良土壤。 | G98: 2021.01-2022.12 | H98: 7000 | J98: 7000 | K98: 3000 | L98: 4000 | P98: 新平县自然资源局 | R98: 农业 | S98: 否 | T98: 否 | U98: 否
A99: 17 | B99: 水利环境和公共设施管理业 | C99: 玉溪市新平县老厂镇老厂中学滑坡治理项目 | D99: 新建 | E99: 新平县老厂乡老厂中学 | F99: 危岩清理、主动防护网、锚杆工程、凹腔嵌补、护脚墙、格构锚杆、挡墙、排水沟。 | G99: 2020.7-2021.12 | H99: 369 | I99: 277 | J99: 92 | K99: 92 | P99: 新平县自然资源局 | R99: 公共设施管理业 | S99: 否 | T99: 否 | U99: 否
A100: 18 | B100: 水利环境和公共设施管理业 | C100: 玉溪市新平县戛洒镇耀南土司府崩塌和不稳定斜坡治理项目 | D100: 新建 | E100: 新平县戛洒镇耀南村委会旁 | F100: 对不稳定斜坡采用锚索、锚索（杆）框格梁辅以一定的截排水工程进行系统加固支护进行治理，属于大型项目。 | G100: 2020.11-2021.12 | H100: 350 | I100: 42 | J100: 308 | K100: 308 | P100: 新平县自然资源局 | R100: 公共设施管理业 | S100: 否 | T100: 否 | U100: 否
A101: 19 | B101: 水利环境和公共设施管理业 | C101: 云南省新平县城小山头小组滑坡、旧城小组滑坡地质灾害治理项目 | D101: 新建 | E101: 新平县城小山头小组滑坡和旧城小组 | F101: 滑坡前缘设置一排抗滑桩（1.5m×2.0m）,桩心距5m，桩长10m；在滑坡外围修建截排水沟；村内完善排水措施及地面硬化措施和在滑坡中部民房前缘设置三排抗滑桩（1.5m×2.0m）,桩心距5m，桩长20-25m，共20棵，排水沟492m；地面硬化。属于大型项目 | G101: 2021.1-2021.12 | H101: 1050 | I101: 0 | J101: 1050 | K101: 1050 | P101: 新平县自然资源局 | R101: 公共设施管理业 | S101: 否 | T101: 否 | U101: 否
A102: 20 | B102: 水利环境和公共设施管理业 | C102: 玉溪市绿汁江-红河谷土地综合开发新平段灌区管道工程建设项目 | D102: 新建 | E102: 老厂乡、新化乡 | F102: 3条主管道总长47.045公里，7条支管总长4.755公里，200立方米蓄水池6座，500立方米蓄水池2座，沉沙池2座，取水坝2座 | G102: 2020.9-2021.9 | H102: 5968 | J102: 5968 | K102: 5968 | P102: 新平县自然资源局 | R102: 水利 | S102: 否 | T102: 否 | U102: 是
A103: 21 | B103: 交通运输仓储和邮政业 | C103: 新平县平甸乡小石缸村土地整治漠沙农场大桥 | D103: 新建 | E103: 漠沙镇 | F103: 新建预应力混凝土桥梁1座，长190米。桥台引道改路长300米。 | G103: 2020.9-2023.12 | H103: 1203 | J103: =K103+L103+M103 -> 1202 | K103: 962 | L103: 180 | M103: 60 | P103: 新平县自然资源局 | R103: 综合交通 | S103: 否 | T103: 否 | U103: 是
A104: 22 | B104: 交通运输仓储和邮政业 | C104: 新平县老厂乡太和等两个村土地整治老船口大桥工程 | D104: 新建 | E104: 老厂乡 | F104: 新建预应力混凝土桥梁1座，长190米。新建桥头引道70米。 | G104: 2020.9-2023.12 | H104: 954 | J104: 954 | K104: 763 | L104: 143 | M104: 48 | P104: 新平县自然资源局 | R104: 综合交通 | S104: 否 | T104: 否 | U104: 是
A105: 23 | B105: 交通运输仓储和邮政业 | C105: 新平县老厂乡勐炳村土地整治勐炳大桥工程 | D105: 新建 | E105: 老厂乡 | F105: 新建预应力混凝土桥梁1座，长130米。新建桥头引道1393米。 | G105: 2020.9-2023.12 | H105: 720 | J105: 720 | K105: 576 | L105: 108 | M105: 36 | P105: 新平县自然资源局 | R105: 综合交通 | S105: 否 | T105: 否 | U105: 是
A106: 五 | C106: 县水利局 | E106: =COUNT(A107:A195) -> 89 | H106: =SUM(H107:H195) -> 619144 | I106: =SUM(I107:I195) -> 800 | J106: 618344 | K106: 96525 | L106: 129198 | M106: 140604 | N106: 150705 | O106: 101312
A107: 1 | B107: 水利环境和公共设施管理业 | C107: 新平县洋发城水库扩建工程 | D107: 续建 | E107: 漠沙镇 | F107: 中型水库，坝高52.5m,总库容容1145万m3；扩建大坝、新建溢洪道、隧洞、配套渠系工程等。 | G107: 2019.6-2022.6 | H107: 15800 | I107: 800 | J107: 15000 | K107: 10000 | L107: 5000 | P107: 新平县水利局 | R107: 水利 | S107: 是 | T107: 否 | U107: 是
A108: 2 | B108: 水利环境和公共设施管理业 | C108: 新平县十里河水库（西水东调中线）工程 | D108: 新建 | E108: 戛洒镇 | F108: 中型水库，坝高94.4m,总库容容1064万m3；新建大坝、溢洪道、隧洞、配套输水工程等。 | G108: 2021.12-2024.6 | H108: 110256 | J108: =H108 -> 110256 | K108: 25000 | L108: 30000 | M108: 30000 | N108: 25256 | P108: 新平县水利局 | R108: 水利 | S108: 是 | T108: 否 | U108: 是
A109: 3 | B109: 水利环境和公共设施管理业 | C109: 新平县白沙河水库（西水东调南线）工程 | D109: 新建 | E109: 漠沙镇、扬武镇 | F109: 中型水库，坝高81.5m,总库容容1089万m3；新建大坝、溢洪道、隧洞、配套输水工程等。 | G109: 2022.12-2025.6 | H109: 130142 | J109: 130142 | L109: 20000 | M109: 40000 | N109: 50000 | O109: =J109-L109-M109-N109 -> 20142 | P109: 新平县水利局 | R109: 水利 | S109: 是 | T109: 否 | U109: 是
A110: 4 | B110: 水利环境和公共设施管理业 | C110: 新平县亚尼河水库工程 | D110: 新建 | E110: 桂山街道 | F110: 中型水库，坝高60.8m,总库容容1516万m3；新建大坝、溢洪道、隧洞、配套渠系工程等。 | G110: 2023.1-2025.12 | H110: 31800 | J110: 31800 | M110: 10000 | N110: 10800 | O110: 11000 | P110: 新平县水利局 | R110: 水利 | S110: 是 | T110: 否 | U110: 是
A111: 5 | B111: 水利环境和公共设施管理业 | C111: 新平县洋芋山水库工程 | D111: 新建 | E111: 水塘镇 | F111: 小（1）型水库，坝高63.5m,总库容容416万m3；新建大坝、溢洪道、隧洞、配套渠系工程等。 | G111: 2021.1-2024.6 | H111: 13773 | J111: 13773 | K111: 5000 | L111: 5000 | M111: =J111-K111-L111 -> 3773 | P111: 新平县水利局 | R111: 水利 | S111: 否 | T111: 否 | U111: 是
A112: 6 | B112: 水利环境和公共设施管理业 | C112: 新平县阿者河水库工程 | D112: 新建 | E112: 平甸乡 | F112: 小（1）型水库，坝高50.3m,总库容容190万m3；新建大坝、溢洪道、隧洞、配套渠系工程等。 | G112: 2022.1-2024.1 | H112: 6604 | J112: 6604 | L112: 3000 | M112: 2000 | N112: 1604 | P112: 新平县水利局 | R112: 水利 | S112: 否 | T112: 否 | U112: 是
A113: 7 | B113: 水利环境和公共设施管理业 | C113: 新平县摆依寨水库工程 | D113: 新建 | E113: 扬武镇 | F113: 小（1）型水库，坝高51m,总库容容196万m3；新建大坝、溢洪道、隧洞、配套渠系工程等。 | G113: 2024.1-2025.12 | H113: 16164 | J113: 16164 | N113: 7000 | O113: 9164 | P113: 新平县水利局 | R113: 水利 | S113: 否 | T113: 否 | U113: 是
A114: 8 | B114: 水利环境和公共设施管理业 | C114: 新平县平田水库工程 | D114: 新建 | E114: 老厂乡 | F114: 小（1）型水库，坝高58 m,总库容容300万m3；新建大坝、溢洪道、隧洞、配套渠系工程等。 | G114: 2023.6-2025.12 | H114: 12000 | J114: 12000 | M114: 3000 | N114: 5000 | O114: 4000 | P114: 新平县水利局 | R114: 水利 | S114: 否 | T114: 否 | U114: 是
A115: 9 | B115: 水利环境和公共设施管理业 | C115: 新平县哈科甲水库除险加固工程 | D115: 其他 | E115: 平甸乡 | F115: 拦河坝防渗处理、加固整形，输水涵洞防渗改造处理，改造溢洪道。 | G115: 2025.6-2025.12 | H115: 150 | J115: 150 | O115: 150 | P115: 新平县水利局 | R115: 水利 | S115: 否 | T115: 否 | U115: 是
A116: 10 | B116: 水利环境和公共设施管理业 | C116: 新平县扬武镇高梁冲水库工程 | D116: 新建 | E116: 扬武镇 | F116: 小（1）型水库，坝高50m,总库容140万m³；新建大坝、溢洪道、隧洞、配套渠系工程等。 | G116: 2022.01-2025.07 | H116: 13000 | J116: 13000 | L116: 3500 | M116: 3500 | N116: 3500 | O116: 2500 | P116: 新平县水利局 | R116: 水利 | S116: 否 | T116: 否 | U116: 是
A117: 11 | B117: 水利环境和公共设施管理业 | C117: 新平县新化乡双河水库建设项目 | D117: 新建 | E117: 新化乡 | F117: 建设为库容110万m³的水库，受益则若克、瓦房寨、旧寨、营盘、后寨、新寨6个小组，面积1700亩。 | G117: 2024.1-2025.12 | H117: 6000 | J117: 6000 | N117: 3000 | O117: 3000 | P117: 新平县水利局 | R117: 水利 | S117: 否 | T117: 否 | U117: 是
A118: 12 | B118: 水利环境和公共设施管理业 | C118: 新平县新化乡奋起可水库项目 | D118: 新建 | E118: 新化乡 | F118: 小（1）型水库，坝高52m,库容150万m³。 | G118: 2024.1-2025.12 | H118: 6750 | J118: 6750 | N118: 3000 | O118: 3750 | P118: 新平县水利局 | R118: 水利 | S118: 否 | T118: 否 | U118: 是
A119: 13 | B119: 水利环境和公共设施管理业 | C119: 新平县新化乡瓦白果二坝水库项目 | D119: 新建 | E119: 新化乡 | F119: 小（1）型水库，坝高48m,库容125万m³。 | G119: 2023.1-2024.12 | H119: 6625 | J119: 6625 | M119: 3625 | N119: 3000 | P119: 新平县水利局 | R119: 水利 | S119: 否 | T119: 否 | U119: 是
A120: 14 | B120: 水利环境和公共设施管理业 | C120: 新平县白鹤塘水库工程 | D120: 新建 | E120: 平甸乡 | F120: 小（1）型水库，坝高54.9m,总库容容141万m3；新建大坝、溢洪道、隧洞、配套渠系工程等。 | G120: 2024.1-2025.12 | H120: 8000 | J120: 8000 | N120: 4000 | O120: 4000 | P120: 新平县水利局 | R120: 水利 | S120: 否 | T120: 否 | U120: 是
A121: 15 | B121: 水利环境和公共设施管理业 | C121: 新平县大箐河水库 | D121: 新建 | E121: 古城街道 | F121: 小（二）型水库，总库容容23.1万m3；新建大坝、溢洪道、涵洞、配套渠系工程等。 | G121: 2022.6-2023.12 | H121: 1200 | J121: 1200 | L121: 600 | M121: 600 | P121: 新平县水利局 | R121: 水利 | S121: 否 | T121: 否 | U121: 是
A122: 16 | B122: 水利环境和公共设施管理业 | C122: 新平县白梅箐坝塘 | D122: 新建 | E122: 古城街道 | F122: 小（二）型水库，总库容容9.6万m4；新建大坝、溢洪道、涵洞、配套渠系工程等。 | G122: 2023.10-2024.4 | H122: 500 | J122: 500 | M122: 200 | N122: 300 | P122: 新平县水利局 | R122: 水利 | S122: 否 | T122: 否 | U122: 是
A123: 17 | B123: 水利环境和公共设施管理业 | C123: 新平县戛洒江戛洒段大沐浴段治理工程 | D123: 新建 | E123: 漠沙镇 | F123: 新建堤防、防护岸加固(河道治理长度5.1km,保护耕地0.2万亩,保护人口5万人) | G123: 2021.10-2022.10 | H123: 6200 | J123: 6200 | K123: 3000 | L123: =H123-K123 -> 3200 | P123: 新平县水利局 | R123: 水利 | S123: 否 | T123: 否 | U123: 是
A124: 18 | B124: 水利环境和公共设施管理业 | C124: 绿汁江新平县段二期治理工程 | D124: 新建 | E124: 老厂乡 | F124: 新建堤防、防护岸加固(河道治理长度15km,保护耕地1万亩,保护人口0.2万人) | G124: 2021.10-2022.11 | H124: 9000 | J124: 9000 | K124: 5500 | L124: =J124-K124 -> 3500 | P124: 新平县水利局 | R124: 水利 | S124: 是 | T124: 否 | U124: 是
A125: 19 | B125: 水利环境和公共设施管理业 | C125: 新平县挖窖河治理工程 | D125: 新建 | E125: 漠沙镇、建兴乡 | F125: 新建河堤、河道清淤、崩岸治理(河道治理长度2.3km,保护耕地0.26万亩,保护人口0.44万人) | G125: 2020.12-2021.6 | H125: 2200 | J125: 2200 | K125: 2200 | P125: 新平县水利局 | R125: 水利 | S125: 是 | T125: 否 | U125: 是
A126: 20 | B126: 水利环境和公共设施管理业 | C126: 新平县大春河二期治理工程 | D126: 续建 | E126: 水塘镇 | F126: 新建河堤、河道清淤、崩岸治理(河道治理长度5.2km,保护耕地0.08万亩,保护人口0.2万人) | G126: 2022.1-2022.12 | H126: 3000 | J126: 3000 | L126: 3000 | P126: 新平县水利局 | R126: 水利 | S126: 是 | T126: 否 | U126: 是
A127: 21 | B127: 水利环境和公共设施管理业 | C127: 新平县新平河治理工程 | D127: 新建 | E127: 桂山街道、古城街道、平甸乡 | F127: 新建河堤、河道清淤、崩岸治理(河道治理长度4km,保护耕地0.19万亩,保护人口0.26万人) | G127: 2022.03-2022.12 | H127: 2400 | J127: 2400 | L127: 2400 | P127: 新平县水利局 | R127: 水利 | S127: 是 | T127: 否 | U127: 是
A128: 22 | B128: 水利环境和公共设施管理业 | C128: 新平县困龙河治理工程 | D128: 新建 | E128: 戛洒镇 | F128: 新建河堤、河道清淤、崩岸治理(河道治理长度5.2km,保护耕地0.06万亩,保护人口0.11万人) | G128: 2023.3-2024.6 | H128: 3500 | J128: 3500 | M128: 2500 | N128: 1000 | P128: 新平县水利局 | R128: 水利 | S128: 是 | T128: 否 | U128: 是
A129: 23 | B129: 水利环境和公共设施管理业 | C129: 新平县南恩河治理工程 | D129: 新建 | E129: 戛洒镇 | F129: 新建河堤、河道清淤、崩岸治理(河道治理长度2.3km,保护耕地0.1万亩,保护集镇人口0.33万人) | G129: 2023.10-2024.6 | H129: 2000 | J129: 2000 | M129: 800 | N129: 1200 | P129: 新平县水利局 | R129: 水利 | S129: 是 | T129: 否 | U129: 是
A130: 24 | B130: 水利环境和公共设施管理业 | C130: 新平县蚌岗河治理工程 | D130: 新建 | E130: 漠沙镇 | F130: 新建河堤、河道清淤、崩岸治理(河道治理长度4.38km,保护耕地0.1万亩,保护人口0.129万人) | G130: 2024.10-2025.10 | H130: 3000 | J130: 3000 | N130: 600 | O130: 2400 | P130: 新平县水利局 | R130: 水利 | S130: 否 | T130: 否 | U130: 是
A131: 25 | B131: 水利环境和公共设施管理业 | C131: 新平县丫味河治理工程 | D131: 新建 | E131: 漠沙镇 | F131: 新建河堤、河道清淤、崩岸治理(河道治理长度1.5km,保护耕地0.03万亩,保护人口0.08万人) | G131: 2024.12-2025.6 | H131: 1650 | J131: 1650 | N131: 200 | O131: 1450 | P131: 新平县水利局 | R131: 水利 | S131: 是 | T131: 否 | U131: 是
A132: 26 | B132: 水利环境和公共设施管理业 | C132: 新平县棉花河治理工程 | D132: 新建 | E132: 水塘镇 | F132: 新建河堤、河道清淤、崩岸治理(河道治理长度3km,保护耕地0.06万亩,保护人口0.12万人) | G132: 2024.10-2025.10 | H132: 3000 | J132: 3000 | N132: 300 | O132: 2700 | P132: 新平县水利局 | R132: 水利 | S132: 是 | T132: 否 | U132: 是
A133: 27 | B133: 水利环境和公共设施管理业 | C133: 新平县康之康河治理工程 | D133: 新建 | E133: 平甸乡 | F133: 新建河堤、河道清淤、崩岸治理(河道治理长度4.4km,保护耕地0.05万亩,保护人口0.15万人) | G133: 2024.10-2025.11 | H133: 1900 | J133: 1900 | N133: 200 | O133: 1700 | P133: 新平县水利局 | R133: 水利 | S133: 是 | T133: 否 | U133: 是
A134: 28 | B134: 水利环境和公共设施管理业 | C134: 新平县南渡河治理工程 | D134: 新建 | E134: 漠沙镇 | F134: 新建河堤、河道清淤、崩岸治理(河道治理长度7km,保护耕地0.06万亩,保护人口0.12万人) | G134: 2024.12-2025.10 | H134: 3000 | J134: 3000 | O134: 3000 | P134: 新平县水利局 | R134: 水利 | S134: 是 | T134: 否 | U134: 是
A135: 29 | B135: 水利环境和公共设施管理业 | C135: 新平县班东河治理工程 | D135: 新建 | E135: 平掌乡 | F135: 新建河堤、河道清淤、崩岸治理(河道治理长度3.1km,保护耕地0.05万亩,保护人口0.1万人) | G135: 2025.3-2025.12 | H135: 1700 | J135: 1700 | O135: 1700 | P135: 新平县水利局 | R135: 水利 | S135: 是 | T135: 否 | U135: 是
A136: 30 | B136: 水利环境和公共设施管理业 | C136: 新平县西尼河治理工程 | D136: 新建 | E136: 漠沙镇 | F136: 新建河堤、河道清淤、崩岸治理(河道治理长度7km,保护耕地0.11万亩,保护人口0.3万人) | G136: 2025.01-2025.12 | H136: 3000 | J136: 3000 | O136: 3000 | P136: 新平县水利局 | R136: 水利 | S136: 是 | T136: 否 | U136: 是
A137: 31 | B137: 水利环境和公共设施管理业 | C137: 新平县十里牌河治理工程 | D137: 新建 | E137: 扬武镇 | F137: 新建河堤、河道清淤、崩岸治理(河道治理长度6.2km,保护耕地0.07万亩,保护人口0.13万人) | G137: 2023.03-2024.6 | H137: 3000 | J137: 3000 | M137: 1500 | N137: 1500 | P137: 新平县水利局 | R137: 水利 | S137: 是 | T137: 否 | U137: 是
A138: 32 | B138: 水利环境和公共设施管理业 | C138: 新平县依施河治理工程 | D138: 新建 | E138: 新化乡 | F138: 新建河堤、河道清淤、崩岸治理(河道治理长度5km,保护耕地0.5万亩,保护人口0.25万人) | G138: 2023.1-2024.10 | H138: 3000 | J138: 3000 | M138: 2000 | N138: 1000 | P138: 新平县水利局 | R138: 水利 | S138: 是 | T138: 否 | U138: 是
A139: 33 | B139: 水利环境和公共设施管理业 | C139: 新平县者竜乡竹箐河治理工程 | D139: 新建 | E139: 新平县者竜乡 | F139: 河道清障、清淤、新建防洪堤、河道消能设施、护岸护坡、绿化及水生态工程。 | G139: 2022.1-2022.12 | H139: 2128 | J139: 2128 | L139: 2128 | P139: 新平县水利局 | R139: 水利 | S139: 是 | T139: 否 | U139: 是
A140: 34 | B140: 水利环境和公共设施管理业 | C140: 新平县老鸹箐山洪沟治理工程 | D140: 新建 | E140: 水塘镇 | F140: 新建河堤、河道清淤、崩岸治理(新建护岸及堤防长度6.92km,保护农田0.35万亩,保护人口0.25万人） | G140: 2021.3-2021.12 | H140: 1500 | J140: 1500 | K140: 1500 | P140: 新平县水利局 | R140: 水利 | S140: 是 | T140: 否 | U140: 是
A141: 35 | B141: 水利环境和公共设施管理业 | C141: 新平县纳溪新寨河山洪沟治理工程 | D141: 新建 | E141: 古城街道 | F141: 新建河堤、河道清淤、崩岸治理(新建护岸及堤防长度3.2km,保护农田0.07万亩,保护人口0.21万人） | G141: 2021.3-2021.12 | H141: 1300 | J141: 1300 | K141: 1300 | P141: 新平县水利局 | R141: 水利 | S141: 是 | T141: 否 | U141: 是
A142: 36 | B142: 水利环境和公共设施管理业 | C142: 新平县米达起箐山洪沟治理工程 | D142: 新建 | E142: 新化乡 | F142: 新建河堤、河道清淤、崩岸治理(新建护岸及堤防长度4km,保护农田0.15万亩,保护人口0.03万人） | G142: 2022.3-2022.12 | H142: 1300 | J142: 1300 | L142: 1300 | P142: 新平县水利局 | R142: 水利 | S142: 是 | T142: 否 | U142: 是
A143: 37 | B143: 水利环境和公共设施管理业 | C143: 新平县豹子母河山洪沟治理工程 | D143: 新建 | E143: 漠沙镇 | F143: 新建河堤、河道清淤、崩岸治理(新建护岸及堤防长度9.16km,保护农田0.74万亩,保护人口0.06万人） | G143: 2022.3-2022.12 | H143: 1300 | J143: 1300 | L143: 1300 | P143: 新平县水利局 | R143: 水利 | S143: 是 | T143: 否 | U143: 是
A144: 38 | B144: 水利环境和公共设施管理业 | C144: 新平县沙河山洪沟治理工程 | D144: 新建 | E144: 古城街道 | F144: 新建河堤、河道清淤、崩岸治理(新建护岸及堤防长度2km,保护农田0.02万亩,保护人口0.15万人） | G144: 2023.3-2023.10 | H144: 1300 | J144: 1300 | M144: 1300 | P144: 新平县水利局 | R144: 水利 | S144: 是 | T144: 否 | U144: 是
A145: 39 | B145: 水利环境和公共设施管理业 | C145: 新平县小马命山洪沟山洪沟治理工程 | D145: 新建 | E145: 桂山街道 | F145: 新建河堤、河道清淤、崩岸治理(新建护岸及堤防长度1.64km,保护农田0.02万亩,保护人口0.03万人） | G145: 2024.3-2024.12 | H145: 1300 | J145: 1300 | N145: 1300 | P145: 新平县水利局 | R145: 水利 | S145: 是 | T145: 否 | U145: 是
A146: 40 | B146: 水利环境和公共设施管理业 | C146: 新平县革棚山洪沟山洪沟治理工程 | D146: 新建 | E146: 桂山街道 | F146: 新建河堤、河道清淤、崩岸治理(新建护岸及堤防长度2.6km,保护农田0.05万亩,保护人口0.11万人） | G146: 2025.3-2025.12 | H146: 1300 | J146: 1300 | O146: 1300 | P146: 新平县水利局 | R146: 水利 | S146: 是 | T146: 否 | U146: 是
A147: 41 | B147: 水利环境和公共设施管理业 | C147: 新平县平掌乡山洪沟治理工程 | D147: 新建 | E147: 平掌乡 | F147: 治理老缪寨河道、白腊度河道、大沙坝河道4公里，新建河道拦河坝挡墙20处长3000米 | G147: 2024.1-2024.12 | H147: 1200 | J147: 1200 | N147: 1200 | P147: 新平县水利局 | R147: 水利 | S147: 是 | T147: 否 | U147: 是
A148: 42 | B148: 水利环境和公共设施管理业 | C148: 新平县乙本甲山洪沟治理工程 | D148: 新建 | E148: 古城街道 | F148: 新建河堤、河道清淤、崩岸治理(新建护岸及堤防长度2.6km,保护农田0.05万亩,保护人口0.12万人） | G148: 2024.3-2025.6 | H148: 1300 | J148: 1300 | N148: 650 | O148: 650 | P148: 新平县水利局 | R148: 水利 | S148: 是 | T148: 否 | U148: 是
A149: 43 | B149: 水利环境和公共设施管理业 | C149: 新平县平甸河水库除险加固工程 | D149: 其他 | E149: 桂山街道 | F149: 大坝加固，输水、导流洞加固及其金属、机电设备改造。 | G149: 2022.1-2022.12 | H149: 1728 | J149: =H149 -> 1728 | L149: 1728 | P149: 新平县水利局 | R149: 水利 | S149: 是 | T149: 否 | U149: 是
A150: 44 | B150: 水利环境和公共设施管理业 | C150: 新平县他克冲水库除险加固工程 | D150: 其他 | E150: 杨武镇 | F150: 库区防渗处理 | G150: 2021.3-2021.12 | H150: 1300 | J150: 1300 | K150: 1300 | P150: 新平县水利局 | R150: 水利 | S150: 否 | T150: 否 | U150: 是
A151: 45 | B151: 水利环境和公共设施管理业 | C151: 新平县维白拉水库除险加固工程 | D151: 其他 | E151: 老厂乡 | F151: 大坝防渗处理，坝体整形；输水隧洞改造。 | G151: 2021.8-2021.12 | H151: 150 | J151: 150 | K151: 150 | P151: 新平县水利局 | R151: 水利 | S151: 否 | T151: 否 | U151: 是
A152: 46 | B152: 水利环境和公共设施管理业 | C152: 新平县尼鲊水库除险加固工程 | D152: 其他 | E152: 杨武镇 | F152: 扩建溢洪道，大坝加固、整形处理，输水涵洞改造。 | G152: 2021.1-2021.12 | H152: 1200 | J152: 1200 | K152: 1200 | P152: 新平县水利局 | R152: 水利 | S152: 否 | T152: 否 | U152: 是
A153: 47 | B153: 水利环境和公共设施管理业 | C153: 新平县老厂河水库除险加固工程 | D153: 其他 | E153: 老厂乡 | F153: 坝体防渗、整形加固处理，改建溢洪道；改造输水洞。 | G153: 2022.3-2022.12 | H153: 800 | J153: 800 | L153: 800 | P153: 新平县水利局 | R153: 水利 | S153: 否 | T153: 否 | U153: 是
A154: 48 | B154: 水利环境和公共设施管理业 | C154: 新平且县黑马箐水库除险加固工程 | D154: 其他 | E154: 建兴乡 | F154: 大坝防渗处理，改造输水涵洞。 | G154: 2022.6-2022.12 | H154: 120 | J154: 120 | L154: 120 | P154: 新平县水利局 | R154: 水利 | S154: 否 | T154: 否 | U154: 是
A155: 49 | B155: 水利环境和公共设施管理业 | C155: 新平县团结水库除险加固工程 | D155: 其他 | E155: 古城街道 | F155: 拦河坝加固整形，改造输水涵洞，改造溢洪道。 | G155: 2021.1-2021.12 | H155: 1180 | J155: 1180 | K155: 1180 | P155: 新平县水利局 | R155: 水利 | S155: 否 | T155: 否 | U155: 是
A156: 50 | B156: 水利环境和公共设施管理业 | C156: 新平县峨德河水库除险加固工程 | D156: 其他 | E156: 漠沙镇 | F156: 拦河坝加固整形，改造输水隧洞，改造溢洪道。 | G156: 2023.3-2023.12 | H156: 1232 | J156: 1232 | M156: 1232 | P156: 新平县水利局 | R156: 水利 | S156: 否 | T156: 否 | U156: 是
A157: 51 | B157: 水利环境和公共设施管理业 | C157: 新平县滑石板水库除险加固工程 | D157: 其他 | E157: 老厂乡 | F157: 大坝防渗处理，溢洪道和输水涵洞改建。 | G157: 2023.6-2023.12 | H157: 160 | J157: 160 | M157: 160 | P157: 新平县水利局 | R157: 水利 | S157: 否 | T157: 否 | U157: 是
A158: 52 | B158: 水利环境和公共设施管理业 | C158: 新平县小弯子水库除险加固工程 | D158: 其他 | E158: 老厂乡 | F158: 大坝整形加固，溢洪道和输水涵洞改建。 | G158: 2024.1-2024.12 | H158: 710 | J158: 710 | N158: 710 | P158: 新平县水利局 | R158: 水利 | S158: 否 | T158: 否 | U158: 是
A159: 53 | B159: 水利环境和公共设施管理业 | C159: 新平县水底汞水库除险加固工程 | D159: 其他 | E159: 老厂乡 | F159: 大坝整形加固，溢洪道和输水涵洞改建。 | G159: 2024.5-2024.12 | H159: 650 | J159: 650 | N159: 650 | P159: 新平县水利局 | R159: 水利 | S159: 否 | T159: 否 | U159: 是
A160: 54 | B160: 水利环境和公共设施管理业 | C160: 新平县小竹箐水库除险加固工程 | D160: 其他 | E160: 平甸乡 | F160: 拦河坝加固整形，输水涵洞防渗、溢洪道改造处理。 | G160: 2024.1-2024.6 | H160: 140 | J160: 140 | N160: 140 | P160: 新平县水利局 | R160: 水利 | S160: 否 | T160: 否 | U160: 是
A161: 55 | B161: 水利环境和公共设施管理业 | C161: 新平县老五斗水库除险加固工程 | D161: 其他 | E161: 新化乡 | F161: 拦河坝加固整形，输水涵洞防渗改造处理，改造溢洪道。 | G161: 2024.6-2024.12 | H161: 202 | J161: 202 | N161: 202 | P161: 新平县水利局 | R161: 水利 | S161: 否 | T161: 否 | U161: 是
A162: 56 | B162: 水利环境和公共设施管理业 | C162: 新平县孙家寨（罗锅斗）水库除险加固工程 | D162: 其他 | E162: 古城街道 | F162: 拦河坝加固整形，输水涵洞改造处理，改扩建溢洪道。 | G162: 2023.1-2023.6 | H162: 76 | J162: 76 | M162: 76 | P162: 新平县水利局 | R162: 水利 | S162: 否 | T162: 否 | U162: 是
A163: 57 | B163: 水利环境和公共设施管理业 | C163: 新平县新马厩水库除险加固工程 | D163: 其他 | E163: 平甸乡 | F163: 拦河坝防渗处理等。 | G163: 2025.1-2025.6 | H163: 110 | J163: 110 | O163: 110 | P163: 新平县水利局 | R163: 水利 | S163: 否 | T163: 否 | U163: 是
A164: 58 | B164: 水利环境和公共设施管理业 | C164: 新平县革棚水库除险加固工程 | D164: 其他 | E164: 古城街道 | F164: 拦河坝加固整形，输水涵洞改造处理，改扩建溢洪道。 | G164: 2025.6-2025.12 | H164: 100 | J164: 100 | O164: 100 | P164: 新平县水利局 | R164: 水利 | S164: 否 | T164: 否 | U164: 是
A165: 59 | B165: 水利环境和公共设施管理业 | C165: 新平县10万m3以下库塘除险加固工程 | D165: 其他 | E165: 县域各乡镇 | F165: 大坝防渗处理，坝坡整形；溢洪道改扩建，输水涵洞改造等。 | G165: 2021.1-2025.12 | H165: 20489 | J165: 20489 | K165: 4000 | L165: 4000 | M165: 4000 | N165: 4000 | O165: 4489 | P165: 新平县水利局 | R165: 水利 | S165: 否 | T165: 否 | U165: 是
A166: 60 | B166: 水利环境和公共设施管理业 | C166: 新平县马鞍山水库渠系工程 | D166: 新建 | E166: 戛洒镇 | F166: 渠道工程等 | G166: 2021.1-2021.12 | H166: 3000 | J166: 3000 | K166: 3000 | P166: 新平县水利局 | R166: 水利 | S166: 否 | T166: 否 | U166: 是
A167: 61 | B167: 水利环境和公共设施管理业 | C167: 新平县工业园区大开门综合开发平甸河管道供水工程 | D167: 新建 | E167: 桂山街道、扬武镇 | F167: 供水管道工程等 | G167: 2021.1-2023.12 | H167: 13500 | J167: 13500 | K167: 4500 | L167: 4000 | M167: 5000 | P167: 新平县水利局 | R167: 水利 | S167: 是 | T167: 否 | U167: 是
A168: 62 | B168: 水利环境和公共设施管理业 | C168: 新平县团结水库备用水源保护工程 | D168: 新建 | E168: 古城街道 | F168: 水源地保护工程、拦排污、围栏工程建设等 | G168: 2021-1-2021.6 | H168: 400 | J168: 400 | K168: 400 | P168: 新平县水利局 | R168: 水利 | S168: 否 | T168: 否 | U168: 是
A169: 63 | B169: 水利环境和公共设施管理业 | C169: 新平县红河谷中型供水灌区配套改造工程 | D169: 新建 | E169: 新平县戛洒镇 | F169: 设计灌区面积12.15万亩，工程水源主要为达哈河、南恩河、丫味河、马龙河、白沙河，灌区种植作物主要有柑桔、荔枝、香蕉、芒果等热带经济作物。建设内容主要为新建取水坝56处、渠道防渗加固120公里，灌区内调节水池400座，新建配水干、支管900公里，计量设施800套，工程估算投资24000万元。灌区年设计供水量3045万立方米。 | G169: 2021.01-2022.12 | H169: 22000 | J169: 22000 | K169: 11000 | L169: 11000 | P169: 新平县水利局 | R169: 水利 | S169: 否 | T169: 否 | U169: 是
A170: 64 | B170: 水利环境和公共设施管理业 | C170: 新平县戛洒灌区节水改造工程 | D170: 新建 | E170: 戛洒镇 | F170: 渠系工程管渠结合节水配套提升改造，计量设施配置、机制建设等 | G170: 2025.1-2025.12 | H170: 3960 | J170: 3960 | O170: 3960 | P170: 新平县水利局 | R170: 水利 | S170: 是 | T170: 否 | U170: 是
A171: 65 | B171: 水利环境和公共设施管理业 | C171: 新平县者竜灌区节水改造工程 | D171: 新建 | E171: 者竜乡 | F171: 渠系工程管渠结合节水配套提升改造，计量设施配置、机制建设等 | G171: 2021.1-2021.12 | H171: 3780 | J171: 3780 | K171: 3780 | P171: 新平县水利局 | R171: 水利 | S171: 是 | T171: 否 | U171: 是
A172: 66 | B172: 水利环境和公共设施管理业 | C172: 新平县新化依施河灌区节水改造工程 | D172: 新建 | E172: 新化乡 | F172: 渠系工程管渠结合节水配套提升改造，计量设施配置、机制建设等 | G172: 2023.1-2023.12 | H172: 2500 | J172: 2500 | M172: 2500 | P172: 新平县水利局 | R172: 水利 | S172: 是 | T172: 否 | U172: 是
A173: 67 | B173: 水利环境和公共设施管理业 | C173: 新平县扬武顺水灌区节水改造工程 | D173: 新建 | E173: 扬武镇 | F173: 渠系工程管渠结合节水配套提升改造，计量设施配置、机制建设等 | G173: 2022.03-2022.12 | H173: 1450 | J173: 1450 | L173: 1450 | P173: 新平县水利局 | R173: 水利 | S173: 是 | T173: 否 | U173: 是
A174: 68 | B174: 水利环境和公共设施管理业 | C174: 新平县平掌曼干灌区节水改造工程 | D174: 新建 | E174: 平掌乡 | F174: 渠系工程管渠结合节水配套提升改造，计量设施配置、机制建设等 | G174: 2024.1-2024.12 | H174: 1050 | J174: 1050 | N174: 1050 | P174: 新平县水利局 | R174: 水利 | S174: 是 | T174: 否 | U174: 是
A175: 69 | B175: 水利环境和公共设施管理业 | C175: 新平县峨德河水库灌区节水改造工程 | D175: 其他 | E175: 漠沙镇 | F175: 渠系工程管渠结合节水配套提升改造，计量设施配置、机制建设等 | G175: 2023.3-2025.12 | H175: 2800 | J175: 2800 | L175: 800 | M175: 1000 | N175: 1000 | P175: 新平县水利局 | R175: 水利 | S175: 是 | T175: 否 | U175: 是
A176: 70 | B176: 水利环境和公共设施管理业 | C176: 新平县漠沙镇西尼河小流域水土流失综合治理工程 | D176: 新建 | E176: 新化乡 | F176: 拟对 25 度以下坡地实施梯田工程；配套措施主要包括蓄水池、管网工程、机耕道路工程等 | G176: 2024.1-2025.12 | H176: 1250 | J176: 1250 | N176: 750 | O176: 500 | P176: 新平县水利局 | R176: 水利 | S176: 是 | T176: 否 | U176: 是
A177: 71 | B177: 水利环境和公共设施管理业 | C177: 新平县新化乡鲁一尼小流域水土流失综合治理工程 | D177: 新建 | E177: 漠沙镇 | F177: 拟对 26 度以下坡地实施梯田工程；配套措施主要包括蓄水池、管网工程、机耕道路工程等 | G177: 2024.1-2024.12 | H177: 625 | J177: 625 | N177: 625 | P177: 新平县水利局 | R177: 水利 | S177: 是 | T177: 否 | U177: 是
A178: 72 | B178: 水利环境和公共设施管理业 | C178: 新平县漠沙镇白沙河小流域水土流失综合治理工程 | D178: 新建 | E178: 漠沙镇 | F178: 拟对 27 度以下坡地实施梯田工程；配套措施主要包括蓄水池、管网工程、机耕道路工程等 | G178: 2022.6-2023.12 | H178: 1250 | J178: 1250 | L178: 500 | M178: 750 | P178: 新平县水利局 | R178: 水利 | S178: 是 | T178: 否 | U178: 是
A179: 73 | B179: 水利环境和公共设施管理业 | C179: 新平县新化乡依施河小流域水土流失综合治理工程 | D179: 新建 | E179: 新化乡 | F179: 拟对 28 度以下坡地实施梯田工程；配套措施主要包括蓄水池、管网工程、机耕道路工程等 | G179: 2022.1-2022.2 | H179: 750 | J179: 750 | L179: 750 | P179: 新平县水利局 | R179: 水利 | S179: 是 | T179: 否 | U179: 是
A180: 74 | B180: 水利环境和公共设施管理业 | C180: 新平县扬武镇玉租河小流域水土流失综合治理工程 | D180: 新建 | E180: 扬武镇 | F180: 拟对 28 度以下坡地实施梯田工程；配套措施主要包括蓄水池、管网工程、机耕道路工程等 | G180: 2021.1-2021.12 | H180: 560 | J180: 560 | K180: 560 | P180: 新平县水利局 | R180: 水利 | S180: 是 | T180: 否 | U180: 是
A181: 75 | B181: 水利环境和公共设施管理业 | C181: 新平县狗头坡小流域水土流失综合治理工程 | D181: 新建 | E181: 建兴乡 | F181: 拟对 28度以下坡地实施梯田工程；配套措施主要包括蓄水池、管网工程、机耕道路工程等 | G181: 2025.1-2025.12 | H181: 1250 | J181: 1250 | O181: 1250 | P181: 新平县水利局 | R181: 水利 | S181: 是 | T181: 否 | U181: 是
A182: 76 | B182: 水利环境和公共设施管理业 | C182: 新平县平甸河流域综合治理项目 | D182: 新建 | E182: 古城街道 | F182: 挡墙、清淤、跌坎、机耕道路工程等 | G182: 2022.3-2025.12 | H182: 37962 | J182: 37962 | L182: 7500 | M182: 10154 | N182: 10154 | O182: 10154 | P182: 新平县水利局 | R182: 水利 | S182: 是 | T182: 否 | U182: 是
A183: 77 | B183: 信息传输软件和信息技术服务业 | C183: 新平县中小河流智慧水利建设项目 | D183: 新建 | E183: 新平县 | F183: 对4条1000平方公里以上河流、34条50至1000平方公里和7条50平方公里以下河流进行视频、水位、雨量和水质实时监控。分别建设52个视频、水位、雨量和水质自动监测站，其中每条1000平方公里以上的河流分别设置3个监控点，其余河河分别设置1个监控点。 | G183: 2021.3-2023.3 | H183: 2000 | J183: 2000 | K183: 1000 | L183: 500 | M183: 500 | P183: 新平县水利局 | R183: 水利 | S183: 是 | T183: 是 | U183: 是
A184: 78 | B184: 信息传输软件和信息技术服务业 | C184: 新平县中、小型水库数字水利设施体系建设工程 | D184: 新建 | E184: 新平县 | F184: 新平县黄草坝、平甸河2座中型水库蓄水状态在线监测，输、泄水闸门及启闭设施网络监控，流量监测，水情测报设施配置在线监测等；新平县22座小（一）型水库、98座小（二）型通信线路架设、蓄水状态在线监测，输、泄水闸门及启闭设施网络监控，流量监测，水情测报设施配置及在线监测等。 | G184: 2021.3-2023.3 | H184: 6900 | J184: 6900 | K184: 3000 | L184: 2000 | M184: 1900 | P184: 新平县水利局 | R184: 水利 | S184: 是 | T184: 否 | U184: 是
A185: 79 | B185: 信息传输软件和信息技术服务业 | C185: 新平县水资源管理信息系统建设方案 | D185: 新建 | E185: 新平县 | F185: 新平县水资源管理信息系统主要建设内容涉及工业取水项目9个、农业取水项目18个、集镇供水项目4个共计31个监测点，县级信息平台1个。 | G185: 2021.3-2022.03 | H185: 620 | J185: 620 | K185: 500 | L185: 120 | P185: 新平县水利局 | R185: 水利 | S185: 是 | T185: 否 | U185: 是
A186: 80 | B186: 信息传输软件和信息技术服务业 | C186: 新平县河道采砂在线监控系统建设方案 | D186: 新建 | E186: 新平县 | F186: 新平县河道采砂规划（2020-2025年）共规划可采区砂场共38个.建设内容涉及38个采砂场在线监控采砂界线及安装运输车辆过板称系统，县级监控信息平台1个。 | G186: 2021.3-2022.03 | H186: 1368 | J186: 1368 | K186: 368 | L186: 1000 | P186: 新平县水利局 | R186: 水利 | S186: 是 | T186: 否 | U186: 是
A187: 81 | B187: 信息传输软件和信息技术服务业 | C187: 新平县小水电在线监测项目 | D187: 新建 | E187: 新平县 | F187: 新平县大春河流域3个梯级水电站、挖窖河流域8个梯级水电站、丫味河3个梯级水电站、花桥河1个梯级水电站、那板箐水电站、麻洋河二级水电站、者竜电站等18座小水电站生态流量进行监测，及对电站厂区、取水坝进行河道水位、流量、降雨量进行在线监测。 | G187: 2021.3-2022.03 | H187: 900 | J187: 900 | K187: 500 | L187: 400 | P187: 新平县水利局 | R187: 水利 | S187: 是 | T187: 否 | U187: 是
A188: 82 | B188: 水利环境和公共设施管理业 | C188: 新平县马龙河整治工程 | D188: 新建 | E188: 漠沙镇 | F188: 河道清障、清淤、新建防洪堤、河道消能设施、护岸护坡、绿化及水生态工程。 | G188: 2021.3-2021.12 | H188: 1222 | J188: 1222 | K188: 1222 | P188: 新平县水利局 | R188: 水利 | S188: 是 | T188: 否 | U188: 是
A189: 83 | B189: 水利环境和公共设施管理业 | C189: 新平县金厂河整治工程 | D189: 新建 | E189: 水塘镇 | F189: 河道清障、清淤、新建防洪堤、河道消能设施、护岸护坡、绿化及水生态工程。 | G189: 2021.1-2021.12 | H189: 2080 | J189: 2080 | K189: 2080 | P189: 新平县水利局 | R189: 水利 | S189: 是 | T189: 否 | U189: 是
A190: 84 | B190: 水利环境和公共设施管理业 | C190: 新平县达哈河整治工程 | D190: 新建 | E190: 戛洒镇 | F190: 河道清障、清淤、新建防洪堤、河道消能设施、护岸护坡、绿化及水生态工程。 | G190: 2022.1-2022.12 | H190: 2320 | J190: 2320 | L190: 2320 | P190: 新平县水利局 | R190: 水利 | S190: 是 | T190: 否 | U190: 是
A191: 85 | B191: 水利环境和公共设施管理业 | C191: 新平县竹箐河整治工程 | D191: 新建 | E191: 者竜乡 | F191: 河道清障、清淤、新建防洪堤、河道消能设施、护岸护坡、绿化及水生态工程。 | G191: 2022.1-2022.12 | H191: 2128 | J191: 2128 | L191: 2128 | P191: 新平县水利局 | R191: 水利 | S191: 是 | T191: 否 | U191: 是
A192: 86 | B192: 水利环境和公共设施管理业 | C192: 新平县棉花河整治工程 | D192: 新建 | E192: 水塘镇 | F192: 河道清障、清淤、新建防洪堤、河道消能设施、护岸护坡、绿化及水生态工程。 | G192: 2023.1-2023.12 | H192: 3040 | J192: 3040 | M192: 3040 | P192: 新平县水利局 | R192: 水利 | S192: 是 | T192: 否 | U192: 是
A193: 87 | B193: 水利环境和公共设施管理业 | C193: 新平县农村供水保障工程 | D193: 改建 | E193: 县域各乡镇 | F193: 共新建、改造配套各类农村供水工程116处，工程覆盖人口16余万人，其中新增覆盖人口15余万人，新增供水规模19569 m3/d。安装水质净化设备136套，消毒设备136套；管网配套1638km；进、出水厂水计量装置228块；规模化水厂水质化验室建设1处，规模化水厂自动化监控系统建设48处。 | G193: 2021.3-2025.12 | H193: 17422 | J193: 17422 | K193: 3285 | L193: 3266 | M193: 3564 | N193: 3414 | O193: 3893 | P193: 新平县水利局 | R193: 水利 | S193: 否 | T193: 否 | U193: 是
A194: 88 | B194: 水利环境和公共设施管理业 | C194: 新平县库塘清淤扩容 | D194: 其他 | E194: 县域各乡镇 | F194: 需清淤的库塘共111座，总清淤量170万立方米，估算投资2688万元。其中包括小（一）型水库2座、小（二）型水库1座、小坝塘108座。 | G194: 2022.12-2024.12 | H194: 2688 | J194: 2688 | L194: 388 | M194: 1150 | N194: 1150 | P194: 新平县水利局 | R194: 水利 | S194: 否 | T194: 否 | U194: 是
A195: 89 | B195: 水利环境和公共设施管理业 | C195: 新平县干支渠及库坝引蓄水沟防渗加固 | D195: 其他 | E195: 县域各乡镇 | F195: 全县范围内需对老旧干支渠进行防渗处理，共计27条沟渠，总长63km，估算投资3780万元。 | G195: 2022.12-2025.1 | H195: 3780 | J195: 3780 | L195: 500 | M195: 780 | N195: 1250 | O195: 1250 | P195: 新平县水利局 | R195: 水利 | S195: 否 | T195: 否 | U195: 是
A196: 六 | C196: 市生态环境局新平分局 | E196: =COUNT(A197:A207) -> 11 | H196: =SUM(H197:H207) -> 73579 | I196: =SUM(I197:I207) -> 15000 | J196: 58579 | K196: 5100 | L196: 4479 | M196: 11600 | N196: 16900 | O196: 20500
A197: 1 | B197: 水利环境和公共设施管理业 | C197: 新平县乡镇集中式饮用水水源地环境保护项目 | D197: 新建 | E197: 新平县戛洒镇、漠沙镇、扬武镇、水塘镇、建兴乡、者竜乡、新化乡、老厂乡、平掌乡 | F197: 规范化建设标志与隔离防护工程：界标122个，交通警示牌40个，宣传牌86个，禁止标示牌21个；涂塑围网28840m，植物篱（青刺果）17755m；重要水源地监控能力建设工程。 | G197: 2022.05-2023.12 | H197: 2679 | I197: 0 | J197: 2679 | K197: 0 | L197: 1679 | M197: 1000 | N197: 0 | O197: 0 | P197: 玉溪市生态环境局新平分局 | R197: 水利 | S197: 否 | T197: 否 | U197: 是
A198: 2 | B198: 水利环境和公共设施管理业 | C198: 新平县农村污水综合整治工程（一期） | D198: 新建 | E198: 新平县12个乡镇（街道） | F198: 组织实施新平县人居环境提升三年行动计划（旅游特色型、生态宜居型、提升改善型）6 个自然村、新平县农村人居环境村庄治理73个自然村、千吨万人饮用水源地二级保护区范围内 2 个自然村生活污水收集、治理设施建设；县城（集镇）周边分散村庄 28 个自然村农村生活污水得到有效管控。 | G198: 2022.06-2023.12 | H198: 5000 | I198: 0 | J198: 5000 | K198: 0 | L198: 2500 | M198: 2500 | N198: 0 | O198: 0 | P198: 玉溪市生态环境局新平分局 | R198: 公共设施管理业 | S198: 否 | T198: 否 | U198: 否
A199: 3 | B199: 水利环境和公共设施管理业 | C199: 新平县农村污水综合整治工程（二期） | D199: 新建 | E199: 新平县12个乡镇（街道） | F199: 治理集中式饮用水源地二级保护区内（除千吨万人饮用水源地）村庄 16 个、美丽乡村、特色村等重点建设的村庄 52 个；治理县城及乡镇周边纳管村庄 15 个、已建污水处理设施改扩建村庄 8 个；治理行政村中心村 49 个。 | G199: 2023.06-2023.12 | H199: 5000 | I199: 0 | J199: 5000 | K199: 0 | L199: 0 | M199: 5000 | N199: 0 | O199: 0 | P199: 玉溪市生态环境局新平分局 | R199: 公共设施管理业 | S199: 否 | T199: 否 | U199: 否
A200: 4 | B200: 水利环境和公共设施管理业 | C200: 新平县农村污水综合整治工程（三期） | D200: 新建 | E200: 新平县12个乡镇（街道） | F200: 组织实施水功能区划敏感区沿线现状直排村庄 37 个治理，治理交通便利、户数在 50户以下的居住分散型村庄 102 个，农村生活污水治理率≥80%、生活污水有效管控率≥80%。农村已建生活污水处理设施20m3/d 及以上规模）实现专职专人、定期运维。 | G200: 2024.06-2025.12 | H200: 5000 | I200: 0 | J200: 5000 | K200: 0 | L200: 0 | M200: 0 | N200: 2500 | O200: 2500 | P200: 玉溪市生态环境局新平分局 | R200: 公共设施管理业 | S200: 否 | T200: 否 | U200: 否
... 583 more rows

Sheet 汇总表 (hidden)
A1: 新平彝族傣族自治县“十四五”规划建设项目汇总表
A2: 编制单位： | D2: 填表联系人及电话： | I2: 联系领导： | K2: 单位：万元
A3: 序号 | B3: 单位名称 | C3: 项目数 | D3: 项目总投资 | E3: 其中：投资情况 | L3: 备注
E4: 到2020年累计完成投资 | F4: “十四五”期间规划投资 | G4: “十四五”年度投资建设规划
G5: 2021年 | H5: 2022年 | I5: 2023年 | J5: 2024年 | K5: 2025年
A6: 合计 | C6: =C7+C38 ->  | D6: =D7+D38 -> 
B7: 县直单位 | C7: =SUM(C8:C37) -> 0 | D7: =SUM(D8:D37) -> 0 | E7: =SUM(E8:E37) -> 0 | F7: 0 | G7: 0 | H7: 0 | I7: 0 | J7: 0 | K7: 0
A8: 1 | B8: 县农业农村局
A9: 2 | B9: 县林业和草原局
A10: 3 | B10: 县扶贫办
A11: 4 | B11: 县自然资源局
A12: 5 | B12: 县水利局
A13: 6 | B13: 市生态环境局新平分局
A14: 7 | B14: 县工信局
A15: 8 | B15: 县工业园区管委会
A16: 9 | B16: 县发改局
A17: 10 | B17: 县住建局
A18: 11 | B18: 县城市管理局
A19: 12 | B19: 县交通运输局
A20: 13 | B20: 县教育体育局
A21: 14 | B21: 县卫生健康局
A22: 15 | B22: 县文化旅游局
A23: 16 | B23: 县商务局
A24: 17 | B24: 县民政局
A25: 18 | B25: 县公安局
A26: 19 | B26: 县应急管理局
A27: 20 | B27: 县防震减灾局
A28: 21 | B28: 县投资促进局
A29: 22 | B29: 县人民法院
A30: 23 | B30: 县残联
A31: 24 | B31: 县妇联
A32: 25 | B32: 县科协
A33: 26 | B33: 县广播电视局
A34: 27 | B34: 县供电局
A35: 28 | B35: 县市场监督管理
A36: 29 | B36: 县医疗保障局
A37: 30 | B37: 县政务服务管理局
B38: 乡镇街道 | C38: =SUM(C39:C50) ->  | D38: =SUM(D39:D50) -> 
A39: 1 | B39: 桂山街道 | C39: =#REF! ->  | D39: =#REF! ->  | E39: =#REF! ->  | F39: =#REF! ->  | G39: =#REF! ->  | H39: =#REF! ->  | I39: =#REF! ->  | J39: =#REF! ->  | K39: =#REF! -> 
A40: 2 | B40: 古城街道 | C40: =#REF! ->  | D40: =#REF! ->  | E40: =#REF! ->  | F40: =#REF! ->  | G40: =#REF! ->  | H40: =#REF! ->  | I40: =#REF! ->  | J40: =#REF! ->  | K40: =#REF! -> 
A41: 3 | B41: 平甸乡 | C41: =#REF! ->  | D41: =#REF! ->  | E41: =#REF! ->  | F41: =#REF! ->  | G41: =#REF! ->  | H41: =#REF! ->  | I41: =#REF! ->  | J41: =#REF! ->  | K41: =#REF! -> 
A42: 4 | B42: 扬武镇 | C42: =#REF! ->  | D42: =#REF! ->  | E42: =#REF! ->  | F42: =#REF! ->  | G42: =#REF! ->  | H42: =#REF! ->  | I42: =#REF! ->  | J42: =#REF! ->  | K42: =#REF! -> 
A43: 5 | B43: 新化乡 | C43: =#REF! ->  | D43: =#REF! ->  | E43: =#REF! ->  | F43: =#REF! ->  | G43: =#REF! ->  | H43: =#REF! ->  | I43: =#REF! ->  | J43: =#REF! ->  | K43: =#REF! -> 
A44: 6 | B44: 老厂乡 | C44: =#REF! ->  | D44: =#REF! ->  | E44: =#REF! ->  | F44: =#REF! ->  | G44: =#REF! ->  | H44: =#REF! ->  | I44: =#REF! ->  | J44: =#REF! ->  | K44: =#REF! -> 
A45: 7 | B45: 戛洒镇 | C45: =#REF! ->  | D45: =#REF! ->  | E45: =#REF! ->  | F45: =#REF! ->  | G45: =#REF! ->  | H45: =#REF! ->  | I45: =#REF! ->  | J45: =#REF! ->  | K45: =#REF! -> 
A46: 8 | B46: 水塘镇 | C46: =#REF! ->  | D46: =#REF! ->  | E46: =#REF! ->  | F46: =#REF! ->  | G46: =#REF! ->  | H46: =#REF! ->  | I46: =#REF! ->  | J46: =#REF! ->  | K46: =#REF! -> 
A47: 9 | B47: 者竜乡 | C47: =#REF! ->  | D47: =#REF! ->  | E47: =#REF! ->  | F47: =#REF! ->  | G47: =#REF! ->  | H47: =#REF! ->  | I47: =#REF! ->  | J47: =#REF! ->  | K47: =#REF! -> 
A48: 10 | B48: 漠沙镇 | C48: =#REF! ->  | D48: =#REF! ->  | E48: =#REF! ->  | F48: =#REF! ->  | G48: =#REF! ->  | H48: =#REF! ->  | I48: =#REF! ->  | J48: =#REF! ->  | K48: =#REF! -> 
A49: 11 | B49: 建兴乡 | C49: =#REF! ->  | D49: =#REF! ->  | E49: =#REF! ->  | F49: =#REF! ->  | G49: =#REF! ->  | H49: =#REF! ->  | I49: =#REF! ->  | J49: =#REF! ->  | K49: =#REF! -> 
A50: 12 | B50: 平掌乡 | C50: =#REF! ->  | D50: =#REF! ->  | E50: =#REF! ->  | F50: =#REF! ->  | G50: =#REF! ->  | H50: =#REF! ->  | I50: =#REF! ->  | J50: =#REF! ->  | K50: =#REF! -> 
